﻿Directorate,Sub Directorate,Accounting Date,COST CENTRE,Supplier Name,Net Amount,Type
DIRECT SOCIAL SERVICES,DIRECT SOCIAL SERVICES,01-Aug-2018,215489,All Saints DC Limited,694.10,Revenue
DIRECT SOCIAL SERVICES,DIRECT SOCIAL SERVICES,01-Aug-2018,215489,All Saints DC Limited,662.28,Revenue
DIRECT SOCIAL SERVICES,DIRECT SOCIAL SERVICES,01-Aug-2018,215489,All Saints DC Limited,627.96,Revenue
DIRECT SOCIAL SERVICES,DIRECT SOCIAL SERVICES,01-Aug-2018,215489,All Saints DC Limited,588.94,Revenue
DIRECT SOCIAL SERVICES,DIRECT SOCIAL SERVICES,01-Aug-2018,215489,All Saints DC Limited,669.86,Revenue
DIRECT SOCIAL SERVICES,DIRECT SOCIAL SERVICES,01-Aug-2018,215489,All Saints DC Limited,694.10,Revenue
DIRECT SOCIAL SERVICES,DIRECT SOCIAL SERVICES,01-Aug-2018,215489,All Saints DC Limited,662.28,Revenue
DIRECT SOCIAL SERVICES,DIRECT SOCIAL SERVICES,01-Aug-2018,215489,All Saints DC Limited,627.96,Revenue
DIRECT SOCIAL SERVICES,DIRECT SOCIAL SERVICES,01-Aug-2018,215489,All Saints DC Limited,588.94,Revenue
DIRECT SOCIAL SERVICES,DIRECT SOCIAL SERVICES,01-Aug-2018,215489,All Saints DC Limited,669.86,Revenue
DIRECT SOCIAL SERVICES,DIRECT SOCIAL SERVICES,01-Aug-2018,215489,Caring Companions Limited,750.68,Revenue
DIRECT SOCIAL SERVICES,DIRECT SOCIAL SERVICES,01-Aug-2018,215489,Caring Companions Limited,571.55,Revenue
DIRECT SOCIAL SERVICES,DIRECT SOCIAL SERVICES,01-Aug-2018,215489,Caring Companions Limited,544.18,Revenue
DIRECT SOCIAL SERVICES,DIRECT SOCIAL SERVICES,01-Aug-2018,215489,Caring Companions Limited,660.94,Revenue
DIRECT SOCIAL SERVICES,DIRECT SOCIAL SERVICES,01-Aug-2018,215489,Caring Companions Limited,523.60,Revenue
DIRECT SOCIAL SERVICES,DIRECT SOCIAL SERVICES,01-Aug-2018,215489,Caring Companions Limited,599.20,Revenue
DIRECT SOCIAL SERVICES,DIRECT SOCIAL SERVICES,01-Aug-2018,215489,GJ Care & Training Limited,559.02,Revenue
DIRECT SOCIAL SERVICES,DIRECT SOCIAL SERVICES,01-Aug-2018,215489,GJ Care & Training Limited,618.26,Revenue
DIRECT SOCIAL SERVICES,DIRECT SOCIAL SERVICES,01-Aug-2018,215489,Parkrow Care Limited,568.78,Revenue
DIRECT SOCIAL SERVICES,DIRECT SOCIAL SERVICES,01-Aug-2018,215489,Parkrow Care Limited,600.48,Revenue
DIRECT SOCIAL SERVICES,DIRECT SOCIAL SERVICES,01-Aug-2018,217909,GJ Care & Training Limited,699.54,Revenue
DIRECT SOCIAL SERVICES,DIRECT SOCIAL SERVICES,01-Aug-2018,218321,GJ Care & Training Limited,571.20,Revenue
DIRECT LEARNING AND SKILLS,DIRECT LEARNING AND SKILLS,01-Aug-2018,101025,Schools Into Europe Limited,"10,683.56",Revenue
DIRECT LEARNING AND SKILLS,DIRECT LEARNING AND SKILLS,01-Aug-2018,101030,Academics Limited,"2,132.40",Revenue
DIRECT LEARNING AND SKILLS,DIRECT LEARNING AND SKILLS,01-Aug-2018,101030,Academics Limited,"1,340.36",Revenue
DIRECT LEARNING AND SKILLS,DIRECT LEARNING AND SKILLS,01-Aug-2018,101030,Academics Limited,912.20,Revenue
DIRECT LEARNING AND SKILLS,DIRECT LEARNING AND SKILLS,01-Aug-2018,101030,The Consortium for Purchasing and Distribution Limited,514.58,Revenue
DIRECT LEARNING AND SKILLS,DIRECT LEARNING AND SKILLS,01-Aug-2018,101063,Print & Stationery Management Co Limited t/a Prism,"1,619.00",Revenue
DIRECT LEARNING AND SKILLS,DIRECT LEARNING AND SKILLS,01-Aug-2018,101063,The Consortium for Purchasing and Distribution Limited,"1,161.89",Revenue
DIRECT LEARNING AND SKILLS,DIRECT LEARNING AND SKILLS,01-Aug-2018,101075,Fronting The Challenge Projects Limited t/a Thrive,721.28,Revenue
DIRECT LEARNING AND SKILLS,DIRECT LEARNING AND SKILLS,01-Aug-2018,101095,eBuyer UK Limited,"5,389.28",Revenue
DIRECT LEARNING AND SKILLS,DIRECT LEARNING AND SKILLS,01-Aug-2018,101171,Academics Limited,806.80,Revenue
DIRECT LEARNING AND SKILLS,DIRECT LEARNING AND SKILLS,01-Aug-2018,101171,Circle IT Solutions Limited,"2,179.95",Revenue
DIRECT LEARNING AND SKILLS,DIRECT LEARNING AND SKILLS,01-Aug-2018,101233,EDF Energy Plc,736.92,Revenue
DIRECT LEARNING AND SKILLS,DIRECT LEARNING AND SKILLS,01-Aug-2018,101233,Ignite & Inspire Limited,"1,015.00",Revenue
DIRECT LEARNING AND SKILLS,DIRECT LEARNING AND SKILLS,01-Aug-2018,101233,The Running School Limited t/a The Movement & Running School,"1,330.00",Revenue
DIRECT LEARNING AND SKILLS,DIRECT LEARNING AND SKILLS,01-Aug-2018,101233,Virtual College Limited,760.00,Revenue
DIRECT LEARNING AND SKILLS,DIRECT LEARNING AND SKILLS,01-Aug-2018,102594,Dwr Cymru Cyf,637.25,Revenue
DIRECT LEARNING AND SKILLS,DIRECT LEARNING AND SKILLS,01-Aug-2018,102594,INVEC Investigation Services Limited,"1,714.80",Revenue
DIRECT LEARNING AND SKILLS,DIRECT LEARNING AND SKILLS,01-Aug-2018,102594,SysCon Limited,858.10,Revenue
DIRECT LEARNING AND SKILLS,DIRECT LEARNING AND SKILLS,01-Aug-2018,102801,CJ Contract Travel Services Limited,688.50,Revenue
DIRECT LEARNING AND SKILLS,DIRECT LEARNING AND SKILLS,01-Aug-2018,157800,Castell Howell Foods Limited,"1,813.69",Revenue
DIRECT LEARNING AND SKILLS,DIRECT LEARNING AND SKILLS,01-Aug-2018,157800,DairyLink UK Limited,620.27,Revenue
DIRECT ENVIRONMENT AND HOUSING,DIRECT ENVIRONMENT AND HOUSING,01-Aug-2018,300600,Numlock Limited t/a Continuity Shop,"1,362.00",Revenue
DIRECT ENVIRONMENT AND HOUSING,DIRECT ENVIRONMENT AND HOUSING,01-Aug-2018,303901,Edmundson Electrical Limited,"1,186.09",Revenue
DIRECT ENVIRONMENT AND HOUSING,DIRECT ENVIRONMENT AND HOUSING,01-Aug-2018,303901,Handicare Accessibility Limited,"1,610.00",Revenue
DIRECT ENVIRONMENT AND HOUSING,DIRECT ENVIRONMENT AND HOUSING,01-Aug-2018,303931,G.P.H.I.T (Integrated Services) Limited,"1,200.00",Revenue
DIRECT ENVIRONMENT AND HOUSING,DIRECT ENVIRONMENT AND HOUSING,01-Aug-2018,303931,G.P.H.I.T (Integrated Services) Limited,"3,240.00",Revenue
DIRECT ENVIRONMENT AND HOUSING,DIRECT ENVIRONMENT AND HOUSING,01-Aug-2018,303931,G.P.H.I.T (Integrated Services) Limited,"5,105.00",Revenue
DIRECT ENVIRONMENT AND HOUSING,DIRECT ENVIRONMENT AND HOUSING,01-Aug-2018,304103,AKW Medi-Care Limited,633.95,Revenue
DIRECT ENVIRONMENT AND HOUSING,DIRECT ENVIRONMENT AND HOUSING,01-Aug-2018,304103,N & C Building Products Limited,586.27,Revenue
DIRECT ENVIRONMENT AND HOUSING,DIRECT ENVIRONMENT AND HOUSING,01-Aug-2018,305717,G.P.H.I.T (Integrated Services) Limited,"3,695.00",Revenue
DIRECT ENVIRONMENT AND HOUSING,DIRECT ENVIRONMENT AND HOUSING,01-Aug-2018,305721,G.P.H.I.T (Integrated Services) Limited,"6,190.00",Revenue
DIRECT ENVIRONMENT AND HOUSING,DIRECT ENVIRONMENT AND HOUSING,01-Aug-2018,305725,G.P.H.I.T (Integrated Services) Limited,"1,970.00",Revenue
DIRECT ENVIRONMENT AND HOUSING,DIRECT ENVIRONMENT AND HOUSING,01-Aug-2018,305726,G.P.H.I.T (Integrated Services) Limited,"5,850.00",Revenue
DIRECT ENVIRONMENT AND HOUSING,DIRECT ENVIRONMENT AND HOUSING,01-Aug-2018,305741,G.P.H.I.T (Integrated Services) Limited,"3,240.00",Revenue
DIRECT ENVIRONMENT AND HOUSING,DIRECT ENVIRONMENT AND HOUSING,01-Aug-2018,305744,G.P.H.I.T (Integrated Services) Limited,"9,295.00",Revenue
DIRECT ENVIRONMENT AND HOUSING,DIRECT ENVIRONMENT AND HOUSING,01-Aug-2018,319010,Premier Diagnostics Limited,695.00,Revenue
DIRECT ENVIRONMENT AND HOUSING,DIRECT ENVIRONMENT AND HOUSING,01-Aug-2018,325644,Centregreat Limited,"68,802.03",Revenue
DIRECT ENVIRONMENT AND HOUSING,DIRECT ENVIRONMENT AND HOUSING,01-Aug-2018,333550,British Soil (Western) Limited,"1,415.00",Revenue
DIRECT ENVIRONMENT AND HOUSING,DIRECT ENVIRONMENT AND HOUSING,01-Aug-2018,341500,Cromwell Polythene Limited,"4,077.63",Revenue
DIRECT ENVIRONMENT AND HOUSING,DIRECT ENVIRONMENT AND HOUSING,01-Aug-2018,352730,Hexion UK Limited,"11,890.58",Revenue
DIRECT ENVIRONMENT AND HOUSING,DIRECT ENVIRONMENT AND HOUSING,01-Aug-2018,352730,Hexion UK Limited,"2,321.89",Revenue
DIRECT ENVIRONMENT AND HOUSING,DIRECT ENVIRONMENT AND HOUSING,01-Aug-2018,359341,Sterling Hydrotech Limited,521.00,Revenue
DIRECT ENVIRONMENT AND HOUSING,DIRECT ENVIRONMENT AND HOUSING,01-Aug-2018,365803,CJ Contract Travel Services Limited,"21,577.65",Revenue
DIRECT ENVIRONMENT AND HOUSING,DIRECT ENVIRONMENT AND HOUSING,01-Aug-2018,405113,Interlet Residential Limited,650.00,Revenue
DIRECT ENVIRONMENT AND HOUSING,DIRECT ENVIRONMENT AND HOUSING,01-Aug-2018,405113,Knights Lettings Limited T/A Knights Estate Agents,635.00,Revenue
DIRECT MANAGING DIRECTOR AND RESOURCES,DIRECT MANAGING DIRECTOR AND RESOURCES,01-Aug-2018,421230,Power Tecnique Limited,"5,110.00",Revenue
DIRECT MANAGING DIRECTOR AND RESOURCES,DIRECT MANAGING DIRECTOR AND RESOURCES,01-Aug-2018,421230,Power Tecnique Limited,"3,920.00",Revenue
DIRECT MANAGING DIRECTOR AND RESOURCES,DIRECT MANAGING DIRECTOR AND RESOURCES,01-Aug-2018,422003,Frontline EPCs LLP,651.00,Revenue
DIRECT CAPITAL LEARN AND SKILLS,DIRECT CAPITAL LEARN AND SKILLS,01-Aug-2018,812297,ARC Electrical Engineering Solutions Limited,"28,014.90",Capital
DIRECT CAPITAL VISIBLE AND HOUSING SERVICES,DIRECT CAPITAL VISIBLE AND HOUSING SERVICES,01-Aug-2018,831534,Capita Property and Infrastructure Limited,"6,112.78",Capital
DIRECT CAPITAL DEVELOPMENT,DIRECT CAPITAL DEVELOPMENT,01-Aug-2018,834231,Dwr Cymru Cyf,"76,134.52",Capital
DIRECT CAPITAL VISIBLE AND HOUSING SERVICES,DIRECT CAPITAL VISIBLE AND HOUSING SERVICES,01-Aug-2018,842068,Willis Construction Limited,"98,946.21",Capital
DIRECT CAPITAL DEVELOPMENT,DIRECT CAPITAL DEVELOPMENT,01-Aug-2018,845003,GKR Maintenance & Building Co. Limited,"4,979.73",Capital
DIRECT CAPITAL DEVELOPMENT,DIRECT CAPITAL DEVELOPMENT,01-Aug-2018,845003,GKR Maintenance & Building Co. Limited,"4,071.67",Capital
DIRECT CAPITAL DEVELOPMENT,DIRECT CAPITAL DEVELOPMENT,01-Aug-2018,845003,Handicare Accessibility Limited,"4,181.00",Capital
DIRECT CAPITAL DEVELOPMENT,DIRECT CAPITAL DEVELOPMENT,01-Aug-2018,845003,Prism UK Medical Limited T/A Prism Medical Westholme,"1,747.75",Capital
DIRECT CAPITAL DEVELOPMENT,DIRECT CAPITAL DEVELOPMENT,01-Aug-2018,845003,R & M Williams Limited,"5,290.12",Capital
DIRECT CAPITAL DEVELOPMENT,DIRECT CAPITAL DEVELOPMENT,01-Aug-2018,845003,Steddy Limited,"6,979.50",Capital
DIRECT CAPITAL POLICY,DIRECT CAPITAL POLICY,01-Aug-2018,852234,Phonelink Installations Limited,"15,871.49",Capital
DIRECT SOCIAL SERVICES,DIRECT SOCIAL SERVICES,01-Aug-2018,216181,Cardiff & Vale University Local Health Board,"3,703.44",Revenue
DIRECT SOCIAL SERVICES,DIRECT SOCIAL SERVICES,01-Aug-2018,239011,Torfaen County Borough Council,"2,400.00",Revenue
DIRECT SOCIAL SERVICES,DIRECT SOCIAL SERVICES,01-Aug-2018,239043,Blaenau Gwent County Borough Council,"40,000.00",Revenue
DIRECT ENVIRONMENT AND HOUSING,DIRECT ENVIRONMENT AND HOUSING,01-Aug-2018,341001,Cardiff County Council,"1,098.00",Revenue
DIRECT MANAGING DIRECTOR AND RESOURCES,DIRECT MANAGING DIRECTOR AND RESOURCES,01-Aug-2018,471900,Rhondda Cynon Taff County Borough Council,"1,638.20",Revenue
DIRECT ENVIRONMENT AND HOUSING,DIRECT ENVIRONMENT AND HOUSING,01-Aug-2018,359457,Leanne Witts & Ptn t/a Girl & Boy Studio,"1,225.00",Revenue
DIRECT ENVIRONMENT AND HOUSING,DIRECT ENVIRONMENT AND HOUSING,01-Aug-2018,405113,Elaine Hulbert & Ptn t/a Hulbert's Property Services,550.00,Revenue
DIRECT SOCIAL SERVICES,DIRECT SOCIAL SERVICES,01-Aug-2018,260050,Emma Sutton,"1,250.00",Revenue
DIRECT ENVIRONMENT AND HOUSING,DIRECT ENVIRONMENT AND HOUSING,01-Aug-2018,365803,Andrew Barnes,"1,485.00",Revenue
DIRECT ENVIRONMENT AND HOUSING,DIRECT ENVIRONMENT AND HOUSING,01-Aug-2018,405113,Salvatore Cannatella,650.00,Revenue
DIRECT ENVIRONMENT AND HOUSING,DIRECT ENVIRONMENT AND HOUSING,01-Aug-2018,405113,Sharon Metson,650.00,Revenue
DIRECT LEARNING AND SKILLS,DIRECT LEARNING AND SKILLS,01-Aug-2018,101030,Teaching Personnel Limited,618.52,Revenue
DIRECT LEARNING AND SKILLS,DIRECT LEARNING AND SKILLS,01-Aug-2018,102594,BS Project Services Limited,615.43,Revenue
DIRECT ENVIRONMENT AND HOUSING,DIRECT ENVIRONMENT AND HOUSING,01-Aug-2018,323686,Hays Specialist Recruitment Limited,"1,505.25",Revenue
DIRECT ENVIRONMENT AND HOUSING,DIRECT ENVIRONMENT AND HOUSING,01-Aug-2018,323686,Hays Specialist Recruitment Limited,640.64,Revenue
DIRECT ENVIRONMENT AND HOUSING,DIRECT ENVIRONMENT AND HOUSING,01-Aug-2018,405305,James Andrews Recruitment Solutions Limited,906.50,Revenue
DIRECT SOCIAL SERVICES,DIRECT SOCIAL SERVICES,01-Aug-2018,215489,Willowmere Home Care Agency Limited,619.08,Revenue
DIRECT SOCIAL SERVICES,DIRECT SOCIAL SERVICES,01-Aug-2018,215489,Willowmere Home Care Agency Limited,756.96,Revenue
DIRECT SOCIAL SERVICES,DIRECT SOCIAL SERVICES,01-Aug-2018,215489,Willowmere Home Care Agency Limited,619.08,Revenue
DIRECT SOCIAL SERVICES,DIRECT SOCIAL SERVICES,01-Aug-2018,215489,Willowmere Home Care Agency Limited,536.85,Revenue
DIRECT SOCIAL SERVICES,DIRECT SOCIAL SERVICES,01-Aug-2018,215489,Willowmere Home Care Agency Limited,540.75,Revenue
DIRECT SOCIAL SERVICES,DIRECT SOCIAL SERVICES,01-Aug-2018,215489,Willowmere Home Care Agency Limited,857.92,Revenue
DIRECT SOCIAL SERVICES,DIRECT SOCIAL SERVICES,01-Aug-2018,215489,Willowmere Home Care Agency Limited,652.54,Revenue
DIRECT SOCIAL SERVICES,DIRECT SOCIAL SERVICES,01-Aug-2018,215489,Willowmere Home Care Agency Limited,816.14,Revenue
DIRECT SOCIAL SERVICES,DIRECT SOCIAL SERVICES,01-Aug-2018,215489,Willowmere Home Care Agency Limited,695.68,Revenue
DIRECT SOCIAL SERVICES,DIRECT SOCIAL SERVICES,01-Aug-2018,215489,Willowmere Home Care Agency Limited,619.08,Revenue
DIRECT SOCIAL SERVICES,DIRECT SOCIAL SERVICES,01-Aug-2018,215489,Willowmere Home Care Agency Limited,584.08,Revenue
DIRECT SOCIAL SERVICES,DIRECT SOCIAL SERVICES,01-Aug-2018,215489,Willowmere Home Care Agency Limited,619.08,Revenue
DIRECT SOCIAL SERVICES,DIRECT SOCIAL SERVICES,01-Aug-2018,215489,Willowmere Home Care Agency Limited,667.86,Revenue
DIRECT SOCIAL SERVICES,DIRECT SOCIAL SERVICES,01-Aug-2018,215489,Willowmere Home Care Agency Limited,695.68,Revenue
DIRECT ENVIRONMENT AND HOUSING,DIRECT ENVIRONMENT AND HOUSING,01-Aug-2018,303910,Elwyn J Kerslake t/a Woodland Electrical,"2,083.83",Revenue
DIRECT ENVIRONMENT AND HOUSING,DIRECT ENVIRONMENT AND HOUSING,01-Aug-2018,304103,Ashley Lynch-Wilson t/a ALW Steel Fabricator,540.00,Revenue
DIRECT MANAGING DIRECTOR AND RESOURCES,DIRECT MANAGING DIRECTOR AND RESOURCES,01-Aug-2018,460203,Steve Dancey t/a The Hold Up,"2,002.00",Revenue
DIRECT SOCIAL SERVICES,DIRECT SOCIAL SERVICES,01-Aug-2018,216181,Sight Cymru,"4,105.06",Revenue
DIRECT ENVIRONMENT AND HOUSING,DIRECT ENVIRONMENT AND HOUSING,01-Aug-2018,356021,National Heritage Memorial Fund,"-4,441.00",Revenue
DIRECT ENVIRONMENT AND HOUSING,DIRECT ENVIRONMENT AND HOUSING,01-Aug-2018,403221,Royal Society For Public Health,600.00,Revenue
DIRECT SOCIAL SERVICES,DIRECT SOCIAL SERVICES,02-Aug-2018,215489,1st Grade Care Limited,532.70,Revenue
DIRECT SOCIAL SERVICES,DIRECT SOCIAL SERVICES,02-Aug-2018,215489,1st Grade Care Limited,582.40,Revenue
DIRECT SOCIAL SERVICES,DIRECT SOCIAL SERVICES,02-Aug-2018,215489,1st Grade Care Limited,582.40,Revenue
DIRECT SOCIAL SERVICES,DIRECT SOCIAL SERVICES,02-Aug-2018,215489,1st Grade Care Limited,621.60,Revenue
DIRECT SOCIAL SERVICES,DIRECT SOCIAL SERVICES,02-Aug-2018,215489,1st Grade Care Limited,597.15,Revenue
DIRECT SOCIAL SERVICES,DIRECT SOCIAL SERVICES,02-Aug-2018,215489,1st Grade Care Limited,532.70,Revenue
DIRECT SOCIAL SERVICES,DIRECT SOCIAL SERVICES,02-Aug-2018,215489,All Care (South Wales) Limited,510.77,Revenue
DIRECT SOCIAL SERVICES,DIRECT SOCIAL SERVICES,02-Aug-2018,215489,All Care (South Wales) Limited,645.10,Revenue
DIRECT SOCIAL SERVICES,DIRECT SOCIAL SERVICES,02-Aug-2018,215489,All Care (South Wales) Limited,618.94,Revenue
DIRECT SOCIAL SERVICES,DIRECT SOCIAL SERVICES,02-Aug-2018,215489,All Care (South Wales) Limited,514.08,Revenue
DIRECT SOCIAL SERVICES,DIRECT SOCIAL SERVICES,02-Aug-2018,215489,All Care (South Wales) Limited,593.87,Revenue
DIRECT SOCIAL SERVICES,DIRECT SOCIAL SERVICES,02-Aug-2018,215489,All Care (South Wales) Limited,810.41,Revenue
DIRECT SOCIAL SERVICES,DIRECT SOCIAL SERVICES,02-Aug-2018,215489,All Care (South Wales) Limited,530.96,Revenue
DIRECT SOCIAL SERVICES,DIRECT SOCIAL SERVICES,02-Aug-2018,215489,All Care (South Wales) Limited,950.13,Revenue
DIRECT SOCIAL SERVICES,DIRECT SOCIAL SERVICES,02-Aug-2018,215489,Annwyl Limited t/a Bluebird Care,655.25,Revenue
DIRECT SOCIAL SERVICES,DIRECT SOCIAL SERVICES,02-Aug-2018,215489,Annwyl Limited t/a Bluebird Care,666.68,Revenue
DIRECT SOCIAL SERVICES,DIRECT SOCIAL SERVICES,02-Aug-2018,215489,Annwyl Limited t/a Bluebird Care,732.21,Revenue
DIRECT SOCIAL SERVICES,DIRECT SOCIAL SERVICES,02-Aug-2018,215489,Annwyl Limited t/a Bluebird Care,608.80,Revenue
DIRECT SOCIAL SERVICES,DIRECT SOCIAL SERVICES,02-Aug-2018,215489,Cherish Cymru Limited,617.90,Revenue
DIRECT SOCIAL SERVICES,DIRECT SOCIAL SERVICES,02-Aug-2018,215489,Cherish Cymru Limited,"1,218.59",Revenue
DIRECT SOCIAL SERVICES,DIRECT SOCIAL SERVICES,02-Aug-2018,215489,Cherish Cymru Limited,637.01,Revenue
DIRECT SOCIAL SERVICES,DIRECT SOCIAL SERVICES,02-Aug-2018,215489,Cherish Cymru Limited,572.52,Revenue
DIRECT SOCIAL SERVICES,DIRECT SOCIAL SERVICES,02-Aug-2018,215489,Cherish Cymru Limited,538.54,Revenue
DIRECT SOCIAL SERVICES,DIRECT SOCIAL SERVICES,02-Aug-2018,215489,Cherish Cymru Limited,533.74,Revenue
DIRECT SOCIAL SERVICES,DIRECT SOCIAL SERVICES,02-Aug-2018,215489,Hallows Care Limited T/A Hallows Care,690.95,Revenue
DIRECT SOCIAL SERVICES,DIRECT SOCIAL SERVICES,02-Aug-2018,215489,Hallows Care Limited T/A Hallows Care,635.32,Revenue
DIRECT SOCIAL SERVICES,DIRECT SOCIAL SERVICES,02-Aug-2018,215489,Hallows Care Limited T/A Hallows Care,618.29,Revenue
DIRECT SOCIAL SERVICES,DIRECT SOCIAL SERVICES,02-Aug-2018,215489,Hallows Care Limited T/A Hallows Care,608.35,Revenue
DIRECT SOCIAL SERVICES,DIRECT SOCIAL SERVICES,02-Aug-2018,216179,All Care (South Wales) Limited,730.06,Revenue
DIRECT SOCIAL SERVICES,DIRECT SOCIAL SERVICES,02-Aug-2018,216179,All Care (South Wales) Limited,553.13,Revenue
DIRECT SOCIAL SERVICES,DIRECT SOCIAL SERVICES,02-Aug-2018,216179,All Care (South Wales) Limited,894.24,Revenue
DIRECT SOCIAL SERVICES,DIRECT SOCIAL SERVICES,02-Aug-2018,216179,Hallows Care Limited T/A Hallows Care,597.79,Revenue
DIRECT SOCIAL SERVICES,DIRECT SOCIAL SERVICES,02-Aug-2018,216179,Heidi Christoforato t/a Churchfields Home Care,534.21,Revenue
DIRECT SOCIAL SERVICES,DIRECT SOCIAL SERVICES,02-Aug-2018,217909,1st Grade Care Limited,676.70,Revenue
DIRECT SOCIAL SERVICES,DIRECT SOCIAL SERVICES,02-Aug-2018,217909,All Care (South Wales) Limited,505.29,Revenue
DIRECT SOCIAL SERVICES,DIRECT SOCIAL SERVICES,02-Aug-2018,218419,All Care (South Wales) Limited,680.68,Revenue
DIRECT SOCIAL SERVICES,DIRECT SOCIAL SERVICES,02-Aug-2018,218419,Annwyl Limited t/a Bluebird Care,625.01,Revenue
DIRECT LEARNING AND SKILLS,DIRECT LEARNING AND SKILLS,02-Aug-2018,101065,Sportsafe UK Limited,512.47,Revenue
DIRECT LEARNING AND SKILLS,DIRECT LEARNING AND SKILLS,02-Aug-2018,101094,Academics Limited,535.28,Revenue
DIRECT LEARNING AND SKILLS,DIRECT LEARNING AND SKILLS,02-Aug-2018,101094,Academics Limited,669.10,Revenue
DIRECT LEARNING AND SKILLS,DIRECT LEARNING AND SKILLS,02-Aug-2018,101137,DSG Retail Limited,726.63,Revenue
DIRECT LEARNING AND SKILLS,DIRECT LEARNING AND SKILLS,02-Aug-2018,101137,Glen Cleaning Company Limited,"2,007.16",Revenue
DIRECT LEARNING AND SKILLS,DIRECT LEARNING AND SKILLS,02-Aug-2018,101137,iTeach Limited,684.00,Revenue
DIRECT LEARNING AND SKILLS,DIRECT LEARNING AND SKILLS,02-Aug-2018,120080,Askews & Holts Library Services Limited,639.06,Revenue
DIRECT SOCIAL SERVICES,DIRECT SOCIAL SERVICES,02-Aug-2018,215489,Cardiff Homecare Limited,708.18,Revenue
DIRECT SOCIAL SERVICES,DIRECT SOCIAL SERVICES,02-Aug-2018,215489,Cardiff Homecare Limited,766.92,Revenue
DIRECT SOCIAL SERVICES,DIRECT SOCIAL SERVICES,02-Aug-2018,216179,Gofal Cymru Care Limited,"12,000.00",Revenue
DIRECT SOCIAL SERVICES,DIRECT SOCIAL SERVICES,02-Aug-2018,216179,Gofal Cymru Care Limited,"12,000.00",Revenue
DIRECT ENVIRONMENT AND HOUSING,DIRECT ENVIRONMENT AND HOUSING,02-Aug-2018,305739,G.P.H.I.T (Integrated Services) Limited,"5,025.00",Revenue
DIRECT ENVIRONMENT AND HOUSING,DIRECT ENVIRONMENT AND HOUSING,02-Aug-2018,319010,Dawsonrentals Materials Handling Equipment Limited t/a Dawsonrentals Sweepers,"2,100.00",Revenue
DIRECT ENVIRONMENT AND HOUSING,DIRECT ENVIRONMENT AND HOUSING,02-Aug-2018,319010,Dawsonrentals Materials Handling Equipment Limited t/a Dawsonrentals Sweepers,"2,200.00",Revenue
DIRECT ENVIRONMENT AND HOUSING,DIRECT ENVIRONMENT AND HOUSING,02-Aug-2018,319010,Leeds Commercial Limited T/A LC Vehicle Hire,"3,300.00",Revenue
DIRECT ENVIRONMENT AND HOUSING,DIRECT ENVIRONMENT AND HOUSING,02-Aug-2018,319010,RD Geeson (Derby) Limited T/A Harprule Hire,"4,025.00",Revenue
DIRECT ENVIRONMENT AND HOUSING,DIRECT ENVIRONMENT AND HOUSING,02-Aug-2018,319010,RD Geeson (Derby) Limited T/A Harprule Hire,"4,025.00",Revenue
DIRECT ENVIRONMENT AND HOUSING,DIRECT ENVIRONMENT AND HOUSING,02-Aug-2018,354717,Golley Slater Group Limited,510.77,Revenue
DIRECT ENVIRONMENT AND HOUSING,DIRECT ENVIRONMENT AND HOUSING,02-Aug-2018,400052,Royal Mail Group Limited,"2,423.62",Revenue
DIRECT ENVIRONMENT AND HOUSING,DIRECT ENVIRONMENT AND HOUSING,02-Aug-2018,400052,Royal Mail Group Limited,"3,759.48",Revenue
DIRECT ENVIRONMENT AND HOUSING,DIRECT ENVIRONMENT AND HOUSING,02-Aug-2018,400063,British Telecommunications Plc,"45,714.85",Revenue
DIRECT ENVIRONMENT AND HOUSING,DIRECT ENVIRONMENT AND HOUSING,02-Aug-2018,403135,Lyreco UK Limited,578.32,Revenue
DIRECT MANAGING DIRECTOR AND RESOURCES,DIRECT MANAGING DIRECTOR AND RESOURCES,02-Aug-2018,440530,Zipporah Limited,"3,713.15",Revenue
DIRECT CAPITAL VISIBLE AND HOUSING SERVICES,DIRECT CAPITAL VISIBLE AND HOUSING SERVICES,02-Aug-2018,842182,Warrior Doors Limited,"9,553.69",Capital
DIRECT CAPITAL VISIBLE AND HOUSING SERVICES,DIRECT CAPITAL VISIBLE AND HOUSING SERVICES,02-Aug-2018,842182,Warrior Doors Limited,"9,553.69",Capital
DIRECT CAPITAL POLICY,DIRECT CAPITAL POLICY,02-Aug-2018,852513,Commercial Transfer Limited,522.00,Capital
DIRECT LEARNING AND SKILLS,DIRECT LEARNING AND SKILLS,02-Aug-2018,101317,Yorkshire Purchasing Organisation,"1,197.56",Revenue
DIRECT LEARNING AND SKILLS,DIRECT LEARNING AND SKILLS,02-Aug-2018,150690,St Cyres Comprehensive School,"3,044.04",Revenue
DIRECT MANAGING DIRECTOR AND RESOURCES,DIRECT MANAGING DIRECTOR AND RESOURCES,02-Aug-2018,440530,Carmarthenshire County Council,"13,500.00",Revenue
DIRECT LEARNING AND SKILLS,DIRECT LEARNING AND SKILLS,02-Aug-2018,101860,PSC - Alison Powell,500.00,Revenue
DIRECT ENVIRONMENT AND HOUSING,DIRECT ENVIRONMENT AND HOUSING,02-Aug-2018,359457,Sian Roberts,"1,540.00",Revenue
DIRECT ENVIRONMENT AND HOUSING,DIRECT ENVIRONMENT AND HOUSING,02-Aug-2018,365780,Christopher Hyatt t/a Chris Hyatt Partnership,"1,500.00",Revenue
DIRECT SOCIAL SERVICES,DIRECT SOCIAL SERVICES,02-Aug-2018,216179,Bridgend College,"4,134.10",Revenue
DIRECT SOCIAL SERVICES,DIRECT SOCIAL SERVICES,02-Aug-2018,216179,Bridgend College,"6,005.86",Revenue
DIRECT SOCIAL SERVICES,DIRECT SOCIAL SERVICES,02-Aug-2018,217909,Bridgend College,"6,092.66",Revenue
DIRECT LEARNING AND SKILLS,DIRECT LEARNING AND SKILLS,02-Aug-2018,101195,Millennium Personnel Services (Education) Limited,783.00,Revenue
DIRECT ENVIRONMENT AND HOUSING,DIRECT ENVIRONMENT AND HOUSING,02-Aug-2018,407119,Hays Specialist Recruitment Limited,"1,528.29",Revenue
DIRECT SOCIAL SERVICES,DIRECT SOCIAL SERVICES,02-Aug-2018,215489,Vale Care Services Limited,910.00,Revenue
DIRECT SOCIAL SERVICES,DIRECT SOCIAL SERVICES,02-Aug-2018,215489,Vale Care Services Limited,910.00,Revenue
DIRECT SOCIAL SERVICES,DIRECT SOCIAL SERVICES,02-Aug-2018,215489,Vale Care Services Limited,531.00,Revenue
DIRECT SOCIAL SERVICES,DIRECT SOCIAL SERVICES,02-Aug-2018,215489,Vale Care Services Limited,910.00,Revenue
DIRECT SOCIAL SERVICES,DIRECT SOCIAL SERVICES,02-Aug-2018,215489,Vale Care Services Limited,796.50,Revenue
DIRECT SOCIAL SERVICES,DIRECT SOCIAL SERVICES,02-Aug-2018,216179,Inspiration Lifestyle Services Limited T/A Ceriosen Bren Care Home,"7,528.30",Revenue
DIRECT SOCIAL SERVICES,DIRECT SOCIAL SERVICES,02-Aug-2018,216179,Inspiration Lifestyle Services Limited T/A Ceriosen Bren Care Home,"6,022.64",Revenue
DIRECT SOCIAL SERVICES,DIRECT SOCIAL SERVICES,02-Aug-2018,216179,Senad Limited T/A Winslow Court,"32,602.44",Revenue
DIRECT SOCIAL SERVICES,DIRECT SOCIAL SERVICES,02-Aug-2018,216179,Voyage 1 Limited t/a Brook Lodge,"2,528.20",Revenue
DIRECT SOCIAL SERVICES,DIRECT SOCIAL SERVICES,02-Aug-2018,216179,Voyage 1 Limited t/a Brook Lodge,"2,528.20",Revenue
DIRECT SOCIAL SERVICES,DIRECT SOCIAL SERVICES,02-Aug-2018,216179,Voyage 1 Limited t/a Brook Lodge,"2,528.20",Revenue
DIRECT SOCIAL SERVICES,DIRECT SOCIAL SERVICES,02-Aug-2018,216179,Voyage 1 Limited t/a Brook Lodge,"2,528.20",Revenue
DIRECT SOCIAL SERVICES,DIRECT SOCIAL SERVICES,02-Aug-2018,216179,Voyage 1 Limited t/a Falcons Rest & Poachers Cottage,"1,438.67",Revenue
DIRECT SOCIAL SERVICES,DIRECT SOCIAL SERVICES,02-Aug-2018,216179,Voyage 1 Limited t/a Falcons Rest & Poachers Cottage,"1,438.67",Revenue
DIRECT SOCIAL SERVICES,DIRECT SOCIAL SERVICES,02-Aug-2018,239052,The Cedars Care Services Limited t/a The Willows,"10,029.70",Revenue
DIRECT SOCIAL SERVICES,DIRECT SOCIAL SERVICES,02-Aug-2018,239052,The Cedars Care Services Limited t/a The Willows,"3,134.28",Revenue
DIRECT ENVIRONMENT AND HOUSING,DIRECT ENVIRONMENT AND HOUSING,02-Aug-2018,359457,Jason Barker t/a Elemental Force,"1,500.00",Revenue
DIRECT LEARNING AND SKILLS,DIRECT LEARNING AND SKILLS,02-Aug-2018,101094,Motion Control Dance,"1,500.00",Revenue
DIRECT SOCIAL SERVICES,DIRECT SOCIAL SERVICES,02-Aug-2018,209157,Action for Children,"-2,000.00",Revenue
DIRECT SOCIAL SERVICES,DIRECT SOCIAL SERVICES,02-Aug-2018,209157,Action for Children,"2,000.00",Revenue
DIRECT SOCIAL SERVICES,DIRECT SOCIAL SERVICES,02-Aug-2018,215011,Hafal,"3,050.01",Revenue
DIRECT SOCIAL SERVICES,DIRECT SOCIAL SERVICES,02-Aug-2018,216179,Freeways Trust,"2,992.00",Revenue
DIRECT SOCIAL SERVICES,DIRECT SOCIAL SERVICES,03-Aug-2018,215489,Nestor Primecare Services Limited t/a Allied Healthcare,575.20,Revenue
DIRECT SOCIAL SERVICES,DIRECT SOCIAL SERVICES,03-Aug-2018,216179,Nestor Primecare Services Limited t/a Allied Healthcare,723.89,Revenue
DIRECT LEARNING AND SKILLS,DIRECT LEARNING AND SKILLS,03-Aug-2018,100130,Computacenter (UK) Limited,610.69,Revenue
DIRECT LEARNING AND SKILLS,DIRECT LEARNING AND SKILLS,03-Aug-2018,101137,Ikea Limited T/A Ikea Business,"1,629.07",Revenue
DIRECT LEARNING AND SKILLS,DIRECT LEARNING AND SKILLS,03-Aug-2018,101306,Globebrow Limited t/a Manor Adventure,"1,350.00",Revenue
DIRECT LEARNING AND SKILLS,DIRECT LEARNING AND SKILLS,03-Aug-2018,101306,Solutions in Technology Limited,616.19,Revenue
DIRECT MANAGING DIRECTOR AND RESOURCES,DIRECT MANAGING DIRECTOR AND RESOURCES,03-Aug-2018,140122,Childcare Vouchers Limited,"30,515.92",Revenue
DIRECT LEARNING AND SKILLS,DIRECT LEARNING AND SKILLS,03-Aug-2018,154401,ABM Catering for Leisure Limited,742.00,Revenue
DIRECT SOCIAL SERVICES,DIRECT SOCIAL SERVICES,03-Aug-2018,215489,Cartrefi Cymru Co-Operative Limited,"3,540.00",Revenue
DIRECT SOCIAL SERVICES,DIRECT SOCIAL SERVICES,03-Aug-2018,215489,Cartrefi Cymru Co-Operative Limited,"1,282.50",Revenue
DIRECT SOCIAL SERVICES,DIRECT SOCIAL SERVICES,03-Aug-2018,217909,Cartrefi Cymru Co-Operative Limited,"7,348.75",Revenue
DIRECT SOCIAL SERVICES,DIRECT SOCIAL SERVICES,03-Aug-2018,239801,Dwr Cymru Cyf,661.95,Revenue
DIRECT ENVIRONMENT AND HOUSING,DIRECT ENVIRONMENT AND HOUSING,03-Aug-2018,319010,Fleetwheel Limited,510.00,Revenue
DIRECT ENVIRONMENT AND HOUSING,DIRECT ENVIRONMENT AND HOUSING,03-Aug-2018,323684,Stanford Marsh Limited t/a Cadspec,"10,490.00",Revenue
DIRECT ENVIRONMENT AND HOUSING,DIRECT ENVIRONMENT AND HOUSING,03-Aug-2018,325510,Centregreat Limited,"18,225.06",Revenue
DIRECT ENVIRONMENT AND HOUSING,DIRECT ENVIRONMENT AND HOUSING,03-Aug-2018,325560,Centregreat Limited,"69,553.44",Revenue
DIRECT ENVIRONMENT AND HOUSING,DIRECT ENVIRONMENT AND HOUSING,03-Aug-2018,325644,Centregreat Limited,"68,231.30",Revenue
DIRECT ENVIRONMENT AND HOUSING,DIRECT ENVIRONMENT AND HOUSING,03-Aug-2018,333013,The Firewood Company (UK) Limited T/A Esa Tree Care,770.00,Revenue
DIRECT ENVIRONMENT AND HOUSING,DIRECT ENVIRONMENT AND HOUSING,03-Aug-2018,333013,The Firewood Company (UK) Limited T/A Esa Tree Care,"1,600.00",Revenue
DIRECT ENVIRONMENT AND HOUSING,DIRECT ENVIRONMENT AND HOUSING,03-Aug-2018,333037,GB Sport & Leisure UK Limited,726.60,Revenue
DIRECT ENVIRONMENT AND HOUSING,DIRECT ENVIRONMENT AND HOUSING,03-Aug-2018,359410,Portable Toilets Limited,740.00,Revenue
DIRECT ENVIRONMENT AND HOUSING,DIRECT ENVIRONMENT AND HOUSING,03-Aug-2018,365786,Cardiff City Transport Services Limited,"123,298.11",Revenue
DIRECT ENVIRONMENT AND HOUSING,DIRECT ENVIRONMENT AND HOUSING,03-Aug-2018,365787,Cardiff City Transport Services Limited,"6,510.00",Revenue
DIRECT ENVIRONMENT AND HOUSING,DIRECT ENVIRONMENT AND HOUSING,03-Aug-2018,365791,Cardiff City Transport Services Limited,"1,475.00",Revenue
DIRECT ENVIRONMENT AND HOUSING,DIRECT ENVIRONMENT AND HOUSING,03-Aug-2018,407111,RPA Quantity Surveyors Limited t/a RPA,"1,000.00",Revenue
DIRECT ENVIRONMENT AND HOUSING,DIRECT ENVIRONMENT AND HOUSING,03-Aug-2018,407118,Geraint John Planning Limited,"1,000.00",Revenue
DIRECT MANAGING DIRECTOR AND RESOURCES,DIRECT MANAGING DIRECTOR AND RESOURCES,03-Aug-2018,421230,British Telecommunications Public Limited Company,"2,175.00",Revenue
DIRECT MANAGING DIRECTOR AND RESOURCES,DIRECT MANAGING DIRECTOR AND RESOURCES,03-Aug-2018,422120,BBM Control Systems Limited,"2,864.00",Revenue
DIRECT CAPITAL SOCIAL SERVICES,DIRECT CAPITAL SOCIAL SERVICES,03-Aug-2018,821032,Pinit Building & Civil Engineering Limited,"5,528.02",Capital
DIRECT CAPITAL SOCIAL SERVICES,DIRECT CAPITAL SOCIAL SERVICES,03-Aug-2018,821057,Pinit Building & Civil Engineering Limited,"9,766.00",Capital
DIRECT CAPITAL VISIBLE AND HOUSING SERVICES,DIRECT CAPITAL VISIBLE AND HOUSING SERVICES,03-Aug-2018,842170,Lodestone Consulting Engineers Limited,"8,100.00",Capital
DIRECT CAPITAL VISIBLE AND HOUSING SERVICES,DIRECT CAPITAL VISIBLE AND HOUSING SERVICES,03-Aug-2018,842177,Jetcom Solutions Limited t/a Prestige Signs,"1,262.00",Capital
DIRECT ENVIRONMENT AND HOUSING,DIRECT ENVIRONMENT AND HOUSING,03-Aug-2018,341220,Cardiff County Council,"8,139.84",Revenue
DIRECT SOCIAL SERVICES,DIRECT SOCIAL SERVICES,03-Aug-2018,217901,Dave Bamforth,"1,894.20",Revenue
DIRECT ENVIRONMENT AND HOUSING,DIRECT ENVIRONMENT AND HOUSING,03-Aug-2018,333600,Jonathan Edwards & Ptn T/A Jonathan Edwards & Son,"2,037.50",Revenue
DIRECT SOCIAL SERVICES,DIRECT SOCIAL SERVICES,03-Aug-2018,215489,April Complete Care Solutions Limited,584.00,Revenue
DIRECT SOCIAL SERVICES,DIRECT SOCIAL SERVICES,03-Aug-2018,215489,April Complete Care Solutions Limited,548.10,Revenue
DIRECT SOCIAL SERVICES,DIRECT SOCIAL SERVICES,03-Aug-2018,216179,April Complete Care Solutions Limited,605.48,Revenue
DIRECT SOCIAL SERVICES,DIRECT SOCIAL SERVICES,03-Aug-2018,216179,April Complete Care Solutions Limited,922.66,Revenue
DIRECT SOCIAL SERVICES,DIRECT SOCIAL SERVICES,03-Aug-2018,217909,April Complete Care Solutions Limited,866.90,Revenue
DIRECT MANAGING DIRECTOR AND RESOURCES,DIRECT MANAGING DIRECTOR AND RESOURCES,03-Aug-2018,422160,Hays Specialist Recruitment Limited,942.23,Revenue
DIRECT LEARNING AND SKILLS,DIRECT LEARNING AND SKILLS,03-Aug-2018,101261,Katherine Gaughan t/a SRG Carpets,690.00,Revenue
DIRECT ENVIRONMENT AND HOUSING,DIRECT ENVIRONMENT AND HOUSING,03-Aug-2018,407108,Joanne Weston T/A Crazy Faces Face Painting,500.00,Revenue
DIRECT SOCIAL SERVICES,DIRECT SOCIAL SERVICES,03-Aug-2018,239781,Action for Children,"1,600.00",Revenue
DIRECT LEARNING AND SKILLS,DIRECT LEARNING AND SKILLS,06-Aug-2018,120080,Askews & Holts Library Services Limited,577.96,Revenue
DIRECT LEARNING AND SKILLS,DIRECT LEARNING AND SKILLS,06-Aug-2018,130045,Edson Print (Services) Limited,"1,987.00",Revenue
DIRECT SOCIAL SERVICES,DIRECT SOCIAL SERVICES,06-Aug-2018,215489,Celtic Community Services Limited,630.00,Revenue
DIRECT SOCIAL SERVICES,DIRECT SOCIAL SERVICES,06-Aug-2018,217909,Everycare (Cardiff) Limited,822.12,Revenue
DIRECT SOCIAL SERVICES,DIRECT SOCIAL SERVICES,06-Aug-2018,217909,Everycare (Cardiff) Limited,673.32,Revenue
DIRECT SOCIAL SERVICES,DIRECT SOCIAL SERVICES,06-Aug-2018,260130,Llamau Limited,560.00,Revenue
DIRECT SOCIAL SERVICES,DIRECT SOCIAL SERVICES,06-Aug-2018,260140,Llamau Limited,"9,259.75",Revenue
DIRECT ENVIRONMENT AND HOUSING,DIRECT ENVIRONMENT AND HOUSING,06-Aug-2018,325600,Calibre Contracting Limited,"1,127.91",Revenue
DIRECT ENVIRONMENT AND HOUSING,DIRECT ENVIRONMENT AND HOUSING,06-Aug-2018,325600,Centregreat Limited,"1,145.88",Revenue
DIRECT ENVIRONMENT AND HOUSING,DIRECT ENVIRONMENT AND HOUSING,06-Aug-2018,325790,Calibre Contracting Limited,"1,230.67",Revenue
DIRECT ENVIRONMENT AND HOUSING,DIRECT ENVIRONMENT AND HOUSING,06-Aug-2018,356020,The Abbey Cleaning Services Limited,610.50,Revenue
DIRECT ENVIRONMENT AND HOUSING,DIRECT ENVIRONMENT AND HOUSING,06-Aug-2018,405100,ACTL Limited,815.96,Revenue
DIRECT MANAGING DIRECTOR AND RESOURCES,DIRECT MANAGING DIRECTOR AND RESOURCES,06-Aug-2018,420212,Global Document Systems Limited,"1,605.00",Revenue
DIRECT CAPITAL LEARN AND SKILLS,DIRECT CAPITAL LEARN AND SKILLS,06-Aug-2018,812251,Boyes Rees Architects Limited,"1,050.00",Capital
DIRECT ENVIRONMENT AND HOUSING,DIRECT ENVIRONMENT AND HOUSING,06-Aug-2018,354727,Evan Rosser,"1,520.00",Revenue
DIRECT ENVIRONMENT AND HOUSING,DIRECT ENVIRONMENT AND HOUSING,06-Aug-2018,405100,Duncan M Evans,"2,433.06",Revenue
DIRECT ENVIRONMENT AND HOUSING,DIRECT ENVIRONMENT AND HOUSING,06-Aug-2018,359457,The Police and Crime Commissioner for South Wales,"1,796.76",Revenue
DIRECT ENVIRONMENT AND HOUSING,DIRECT ENVIRONMENT AND HOUSING,06-Aug-2018,365763,Valuation Office Agency,"1,000.00",Revenue
DIRECT MANAGING DIRECTOR AND RESOURCES,DIRECT MANAGING DIRECTOR AND RESOURCES,06-Aug-2018,471901,South Wales Fire and Rescue Service,"500,508.00",Revenue
DIRECT MANAGING DIRECTOR AND RESOURCES,DIRECT MANAGING DIRECTOR AND RESOURCES,06-Aug-2018,475970,The Police and Crime Commissioner for South Wales,"1,140,674.00",Revenue
DIRECT MANAGING DIRECTOR AND RESOURCES,DIRECT MANAGING DIRECTOR AND RESOURCES,06-Aug-2018,140119,Acorn Recruitment Limited,"1,360.72",Revenue
DIRECT SOCIAL SERVICES,DIRECT SOCIAL SERVICES,06-Aug-2018,217909,Crosshands Care Limited,"6,181.32",Revenue
DIRECT SOCIAL SERVICES,DIRECT SOCIAL SERVICES,06-Aug-2018,217909,Crosshands Care Limited,"2,160.00",Revenue
DIRECT SOCIAL SERVICES,DIRECT SOCIAL SERVICES,06-Aug-2018,217909,Crosshands Care Limited,"5,014.12",Revenue
DIRECT SOCIAL SERVICES,DIRECT SOCIAL SERVICES,06-Aug-2018,217909,Crosshands Care Limited,"4,008.00",Revenue
DIRECT SOCIAL SERVICES,DIRECT SOCIAL SERVICES,06-Aug-2018,217909,Walter Standen T/A Standens Contract Hire,926.00,Revenue
DIRECT LEARNING AND SKILLS,DIRECT LEARNING AND SKILLS,06-Aug-2018,102593,Bay-Den Scout Hall,640.00,Revenue
DIRECT SOCIAL SERVICES,DIRECT SOCIAL SERVICES,06-Aug-2018,217909,HF Trust Limited,"4,463.20",Revenue
DIRECT LEARNING AND SKILLS,DIRECT LEARNING AND SKILLS,07-Aug-2018,101233,CharlesJames Limited,665.00,Revenue
DIRECT LEARNING AND SKILLS,DIRECT LEARNING AND SKILLS,07-Aug-2018,102652,Bredon School (2002) Limited,"9,630.00",Revenue
DIRECT SOCIAL SERVICES,DIRECT SOCIAL SERVICES,07-Aug-2018,215489,Grangelodge Residential Home Limited t/a Grangelodge,513.66,Revenue
DIRECT SOCIAL SERVICES,DIRECT SOCIAL SERVICES,07-Aug-2018,217909,Ategi Limited,"1,979.55",Revenue
DIRECT SOCIAL SERVICES,DIRECT SOCIAL SERVICES,07-Aug-2018,217909,Consensus Support Services Limited t/a Ty Machen,"2,163.85",Revenue
DIRECT SOCIAL SERVICES,DIRECT SOCIAL SERVICES,07-Aug-2018,260060,Care 4 Children Residential Services Limited,"18,821.34",Revenue
DIRECT ENVIRONMENT AND HOUSING,DIRECT ENVIRONMENT AND HOUSING,07-Aug-2018,323672,Alpine Land Surveyors Limited,600.00,Revenue
DIRECT ENVIRONMENT AND HOUSING,DIRECT ENVIRONMENT AND HOUSING,07-Aug-2018,323684,The British Parking Association,654.00,Revenue
DIRECT ENVIRONMENT AND HOUSING,DIRECT ENVIRONMENT AND HOUSING,07-Aug-2018,325344,Calibre Contracting Limited,"1,538.67",Revenue
DIRECT ENVIRONMENT AND HOUSING,DIRECT ENVIRONMENT AND HOUSING,07-Aug-2018,325600,Calibre Contracting Limited,565.10,Revenue
DIRECT ENVIRONMENT AND HOUSING,DIRECT ENVIRONMENT AND HOUSING,07-Aug-2018,325811,Calibre Contracting Limited,925.71,Revenue
DIRECT ENVIRONMENT AND HOUSING,DIRECT ENVIRONMENT AND HOUSING,07-Aug-2018,359457,Fool's Paradise Limited,"1,799.00",Revenue
DIRECT ENVIRONMENT AND HOUSING,DIRECT ENVIRONMENT AND HOUSING,07-Aug-2018,359457,Vibe Creative Limited,"1,950.00",Revenue
DIRECT ENVIRONMENT AND HOUSING,DIRECT ENVIRONMENT AND HOUSING,07-Aug-2018,365803,A2B (South Wales) Limited,"2,340.00",Revenue
DIRECT ENVIRONMENT AND HOUSING,DIRECT ENVIRONMENT AND HOUSING,07-Aug-2018,400063,I-proc - BT Global Services Limited,"5,515.90",Revenue
DIRECT ENVIRONMENT AND HOUSING,DIRECT ENVIRONMENT AND HOUSING,07-Aug-2018,400063,Sky UK Limited,"2,314.00",Revenue
DIRECT ENVIRONMENT AND HOUSING,DIRECT ENVIRONMENT AND HOUSING,07-Aug-2018,403138,Sonic Communications (International) Limited,832.00,Revenue
DIRECT ENVIRONMENT AND HOUSING,DIRECT ENVIRONMENT AND HOUSING,07-Aug-2018,403208,Minton Treharne & Davies Limited,681.00,Revenue
DIRECT ENVIRONMENT AND HOUSING,DIRECT ENVIRONMENT AND HOUSING,07-Aug-2018,403301,Funeral Services Limited,995.00,Revenue
DIRECT ENVIRONMENT AND HOUSING,DIRECT ENVIRONMENT AND HOUSING,07-Aug-2018,405100,L Mustoe Limited,"1,628.58",Revenue
DIRECT ENVIRONMENT AND HOUSING,DIRECT ENVIRONMENT AND HOUSING,07-Aug-2018,409103,Heatforce (Wales) Limited,"15,986.90",Revenue
DIRECT ENVIRONMENT AND HOUSING,DIRECT ENVIRONMENT AND HOUSING,07-Aug-2018,409103,Heatforce (Wales) Limited,"1,999.56",Revenue
DIRECT ENVIRONMENT AND HOUSING,DIRECT ENVIRONMENT AND HOUSING,07-Aug-2018,409103,Heatforce (Wales) Limited,"16,847.32",Revenue
DIRECT MANAGING DIRECTOR AND RESOURCES,DIRECT MANAGING DIRECTOR AND RESOURCES,07-Aug-2018,422120,Circuit Electrical Testing Limited,"1,217.40",Revenue
DIRECT MANAGING DIRECTOR AND RESOURCES,DIRECT MANAGING DIRECTOR AND RESOURCES,07-Aug-2018,440530,Granicus LLC T/A GovDelivery Europe Limited,"12,870.00",Revenue
DIRECT MANAGING DIRECTOR AND RESOURCES,DIRECT MANAGING DIRECTOR AND RESOURCES,07-Aug-2018,440530,Sabio Limited,"2,250.00",Revenue
DIRECT CAPITAL DEVELOPMENT,DIRECT CAPITAL DEVELOPMENT,07-Aug-2018,837115,Laurel Landscapes UK Limited,"2,688.40",Capital
DIRECT CAPITAL VISIBLE AND HOUSING SERVICES,DIRECT CAPITAL VISIBLE AND HOUSING SERVICES,07-Aug-2018,842145,Curtins Consulting Limited,"1,800.00",Capital
DIRECT ENVIRONMENT AND HOUSING,DIRECT ENVIRONMENT AND HOUSING,07-Aug-2018,323685,Caerphilly County Borough Council,"12,270.58",Revenue
DIRECT ENVIRONMENT AND HOUSING,DIRECT ENVIRONMENT AND HOUSING,07-Aug-2018,403211,Bridgend County Borough Council,"1,388.78",Revenue
DIRECT ENVIRONMENT AND HOUSING,DIRECT ENVIRONMENT AND HOUSING,07-Aug-2018,403211,Cardiff County Council,"12,224.05",Revenue
DIRECT ENVIRONMENT AND HOUSING,DIRECT ENVIRONMENT AND HOUSING,07-Aug-2018,359750,Leanne Witts & Ptn t/a Girl & Boy Studio,650.00,Revenue
DIRECT ENVIRONMENT AND HOUSING,DIRECT ENVIRONMENT AND HOUSING,07-Aug-2018,333013,Jonathan Edwards & Ptn T/A Jonathan Edwards & Son,945.00,Revenue
DIRECT ENVIRONMENT AND HOUSING,DIRECT ENVIRONMENT AND HOUSING,07-Aug-2018,333013,Jonathan Edwards & Ptn T/A Jonathan Edwards & Son,645.00,Revenue
DIRECT ENVIRONMENT AND HOUSING,DIRECT ENVIRONMENT AND HOUSING,07-Aug-2018,333530,Jonathan Edwards & Ptn T/A Jonathan Edwards & Son,"1,250.00",Revenue
DIRECT ENVIRONMENT AND HOUSING,DIRECT ENVIRONMENT AND HOUSING,07-Aug-2018,365803,Andrew Maker,"1,610.00",Revenue
DIRECT ENVIRONMENT AND HOUSING,DIRECT ENVIRONMENT AND HOUSING,07-Aug-2018,405100,Lyndon Mustoe,519.25,Revenue
DIRECT ENVIRONMENT AND HOUSING,DIRECT ENVIRONMENT AND HOUSING,07-Aug-2018,403135,Disclosure and Barring Service,924.00,Revenue
DIRECT ENVIRONMENT AND HOUSING,DIRECT ENVIRONMENT AND HOUSING,07-Aug-2018,407106,James Andrews Recruitment Solutions Limited,793.80,Revenue
DIRECT ENVIRONMENT AND HOUSING,DIRECT ENVIRONMENT AND HOUSING,07-Aug-2018,407106,James Andrews Recruitment Solutions Limited,783.50,Revenue
DIRECT SOCIAL SERVICES,DIRECT SOCIAL SERVICES,07-Aug-2018,215486,Broadway Care Centre Limited T/A Hazelhurst Nursing Home,"1,261.50",Revenue
DIRECT SOCIAL SERVICES,DIRECT SOCIAL SERVICES,07-Aug-2018,215489,Avan Limited T/A Brightside Manor,600.00,Revenue
DIRECT SOCIAL SERVICES,DIRECT SOCIAL SERVICES,07-Aug-2018,215489,Baltimore Care Limited,516.38,Revenue
DIRECT SOCIAL SERVICES,DIRECT SOCIAL SERVICES,07-Aug-2018,215489,Baltimore Care Limited,516.38,Revenue
DIRECT SOCIAL SERVICES,DIRECT SOCIAL SERVICES,07-Aug-2018,215489,Baltimore Care Limited,526.38,Revenue
DIRECT SOCIAL SERVICES,DIRECT SOCIAL SERVICES,07-Aug-2018,215489,Bellavista Care (Cardiff) Limited T/A Bellavista Nursing Home Cardiff,506.04,Revenue
DIRECT SOCIAL SERVICES,DIRECT SOCIAL SERVICES,07-Aug-2018,215489,Bellavista Nursing Homes (Wales) Limited t/a Bellavista Care Home,645.84,Revenue
DIRECT SOCIAL SERVICES,DIRECT SOCIAL SERVICES,07-Aug-2018,215489,Broadway Care Centre Limited T/A Hazelhurst Nursing Home,"3,825.31",Revenue
DIRECT SOCIAL SERVICES,DIRECT SOCIAL SERVICES,07-Aug-2018,215489,Broadway Care Centre Limited T/A Hazelhurst Nursing Home,516.38,Revenue
DIRECT SOCIAL SERVICES,DIRECT SOCIAL SERVICES,07-Aug-2018,215489,Brondesbury Lodge Limited t/a Brondesbury Lodge,"1,823.99",Revenue
DIRECT SOCIAL SERVICES,DIRECT SOCIAL SERVICES,07-Aug-2018,215489,Duffryn Ffrwd Manor Limited,549.49,Revenue
DIRECT SOCIAL SERVICES,DIRECT SOCIAL SERVICES,07-Aug-2018,215489,Forge Care Homes Limited t/a The Forge Care Centre,925.00,Revenue
DIRECT SOCIAL SERVICES,DIRECT SOCIAL SERVICES,07-Aug-2018,215489,Forge Care Homes Limited t/a The Forge Care Centre,671.32,Revenue
DIRECT SOCIAL SERVICES,DIRECT SOCIAL SERVICES,07-Aug-2018,215489,Glamorgan Care Limited t/a Danygraig House,666.00,Revenue
DIRECT SOCIAL SERVICES,DIRECT SOCIAL SERVICES,07-Aug-2018,215489,Hafod Housing Association Limited T/A Brocastle Manor (Care Home),"5,170.55",Revenue
DIRECT SOCIAL SERVICES,DIRECT SOCIAL SERVICES,07-Aug-2018,215489,Hafod Housing Association Limited T/A Brocastle Manor (Care Home),"4,269.62",Revenue
DIRECT SOCIAL SERVICES,DIRECT SOCIAL SERVICES,07-Aug-2018,215489,Hafod Housing Association Limited T/A Brocastle Manor (Care Home),561.85,Revenue
DIRECT SOCIAL SERVICES,DIRECT SOCIAL SERVICES,07-Aug-2018,215489,Hafod Housing Association Limited T/A Brocastle Manor (Care Home),653.01,Revenue
DIRECT SOCIAL SERVICES,DIRECT SOCIAL SERVICES,07-Aug-2018,215489,Harrison Care Enterprises Barry Limited t/a Island View,516.38,Revenue
DIRECT SOCIAL SERVICES,DIRECT SOCIAL SERVICES,07-Aug-2018,215489,June Zehetmayr t/a Tower Hill Residential Home,538.12,Revenue
DIRECT SOCIAL SERVICES,DIRECT SOCIAL SERVICES,07-Aug-2018,215489,Llangoedmor Properties Limited T/A Parkside Residential Home,516.38,Revenue
DIRECT SOCIAL SERVICES,DIRECT SOCIAL SERVICES,07-Aug-2018,215489,Llangoedmor Properties Limited T/A Parkside Residential Home,545.22,Revenue
DIRECT SOCIAL SERVICES,DIRECT SOCIAL SERVICES,07-Aug-2018,215489,Llangoedmor Properties Limited T/A Parkside Residential Home,512.49,Revenue
DIRECT SOCIAL SERVICES,DIRECT SOCIAL SERVICES,07-Aug-2018,215489,Llangoedmor Properties Limited T/A Parkside Residential Home,533.50,Revenue
DIRECT SOCIAL SERVICES,DIRECT SOCIAL SERVICES,07-Aug-2018,215489,MHA Care Group t/a Morel Court,569.88,Revenue
DIRECT SOCIAL SERVICES,DIRECT SOCIAL SERVICES,07-Aug-2018,215489,MHA Care Group t/a Morel Court,531.09,Revenue
DIRECT SOCIAL SERVICES,DIRECT SOCIAL SERVICES,07-Aug-2018,215489,MHA Care Group t/a Ty Gwyn Private Nursing Home,581.24,Revenue
DIRECT SOCIAL SERVICES,DIRECT SOCIAL SERVICES,07-Aug-2018,215489,Middlepatch Limited T/A College Fields Nursing Home,592.17,Revenue
DIRECT SOCIAL SERVICES,DIRECT SOCIAL SERVICES,07-Aug-2018,215489,Middlepatch Limited T/A College Fields Nursing Home,621.36,Revenue
DIRECT SOCIAL SERVICES,DIRECT SOCIAL SERVICES,07-Aug-2018,215489,Middlepatch Limited T/A College Fields Nursing Home,617.27,Revenue
DIRECT SOCIAL SERVICES,DIRECT SOCIAL SERVICES,07-Aug-2018,215489,Middlepatch Limited T/A College Fields Nursing Home,602.96,Revenue
DIRECT SOCIAL SERVICES,DIRECT SOCIAL SERVICES,07-Aug-2018,215489,Middlepatch Limited T/A College Fields Nursing Home,605.25,Revenue
DIRECT SOCIAL SERVICES,DIRECT SOCIAL SERVICES,07-Aug-2018,215489,Middlepatch Limited T/A College Fields Nursing Home,544.72,Revenue
DIRECT SOCIAL SERVICES,DIRECT SOCIAL SERVICES,07-Aug-2018,215489,Middlepatch Limited T/A College Fields Nursing Home,617.27,Revenue
DIRECT SOCIAL SERVICES,DIRECT SOCIAL SERVICES,07-Aug-2018,215489,Middlepatch Limited T/A College Fields Nursing Home,605.25,Revenue
DIRECT SOCIAL SERVICES,DIRECT SOCIAL SERVICES,07-Aug-2018,215489,Middlepatch Limited T/A College Fields Nursing Home,630.07,Revenue
DIRECT SOCIAL SERVICES,DIRECT SOCIAL SERVICES,07-Aug-2018,215489,Middlepatch Limited T/A College Fields Nursing Home,609.89,Revenue
DIRECT SOCIAL SERVICES,DIRECT SOCIAL SERVICES,07-Aug-2018,215489,Middlepatch Limited T/A College Fields Nursing Home,550.28,Revenue
DIRECT SOCIAL SERVICES,DIRECT SOCIAL SERVICES,07-Aug-2018,215489,Middlepatch Limited T/A College Fields Nursing Home,502.26,Revenue
DIRECT SOCIAL SERVICES,DIRECT SOCIAL SERVICES,07-Aug-2018,215489,Middlepatch Limited T/A College Fields Nursing Home,597.36,Revenue
DIRECT SOCIAL SERVICES,DIRECT SOCIAL SERVICES,07-Aug-2018,215489,Middlepatch Limited T/A College Fields Nursing Home,605.25,Revenue
DIRECT SOCIAL SERVICES,DIRECT SOCIAL SERVICES,07-Aug-2018,215489,Middlepatch Limited T/A College Fields Nursing Home,605.25,Revenue
DIRECT SOCIAL SERVICES,DIRECT SOCIAL SERVICES,07-Aug-2018,215489,Northcote Developments Limited,518.88,Revenue
DIRECT SOCIAL SERVICES,DIRECT SOCIAL SERVICES,07-Aug-2018,215489,Northcote Developments Limited,505.50,Revenue
DIRECT SOCIAL SERVICES,DIRECT SOCIAL SERVICES,07-Aug-2018,215489,Northcote Developments Limited,524.03,Revenue
DIRECT SOCIAL SERVICES,DIRECT SOCIAL SERVICES,07-Aug-2018,215489,Northcote Developments Limited,515.73,Revenue
DIRECT SOCIAL SERVICES,DIRECT SOCIAL SERVICES,07-Aug-2018,215489,Oakville Care Limited t/a Romilly Nursing Home,900.00,Revenue
DIRECT SOCIAL SERVICES,DIRECT SOCIAL SERVICES,07-Aug-2018,215489,Springbank Care Home Limited T/A Springbank Nursing Home,567.44,Revenue
DIRECT SOCIAL SERVICES,DIRECT SOCIAL SERVICES,07-Aug-2018,215489,Springbank Care Home Limited T/A Springbank Nursing Home,603.33,Revenue
DIRECT SOCIAL SERVICES,DIRECT SOCIAL SERVICES,07-Aug-2018,215489,Springbank Care Home Limited T/A Springbank Nursing Home,615.00,Revenue
DIRECT SOCIAL SERVICES,DIRECT SOCIAL SERVICES,07-Aug-2018,215489,Springbank Care Home Limited T/A Springbank Nursing Home,556.38,Revenue
DIRECT SOCIAL SERVICES,DIRECT SOCIAL SERVICES,07-Aug-2018,215489,Springbank Care Home Limited T/A Springbank Nursing Home,666.50,Revenue
DIRECT SOCIAL SERVICES,DIRECT SOCIAL SERVICES,07-Aug-2018,215489,The Manor House St Hilary Limited T/A Milsom House,530.84,Revenue
DIRECT SOCIAL SERVICES,DIRECT SOCIAL SERVICES,07-Aug-2018,215489,Waverley Care Centre Limited,519.12,Revenue
DIRECT SOCIAL SERVICES,DIRECT SOCIAL SERVICES,07-Aug-2018,215489,Waverley Care Centre Limited,540.83,Revenue
DIRECT SOCIAL SERVICES,DIRECT SOCIAL SERVICES,07-Aug-2018,215489,Waverley Care Centre Limited,605.03,Revenue
DIRECT SOCIAL SERVICES,DIRECT SOCIAL SERVICES,07-Aug-2018,215489,Waverley Care Centre Limited,675.33,Revenue
DIRECT SOCIAL SERVICES,DIRECT SOCIAL SERVICES,07-Aug-2018,215489,Waverley Care Centre Limited,512.53,Revenue
DIRECT SOCIAL SERVICES,DIRECT SOCIAL SERVICES,07-Aug-2018,215489,Waverley Care Centre Limited,519.40,Revenue
DIRECT SOCIAL SERVICES,DIRECT SOCIAL SERVICES,07-Aug-2018,215489,Waverley Care Centre Limited,614.77,Revenue
DIRECT SOCIAL SERVICES,DIRECT SOCIAL SERVICES,07-Aug-2018,216179,Accomplish Group Limited t/a Cedar House,"1,380.73",Revenue
DIRECT SOCIAL SERVICES,DIRECT SOCIAL SERVICES,07-Aug-2018,216179,Amethyst Healthcare Limited t/a Hillstone House,"1,770.23",Revenue
DIRECT SOCIAL SERVICES,DIRECT SOCIAL SERVICES,07-Aug-2018,216179,Bellavista Nursing Homes (Wales) Limited t/a Bellavista Care Home,552.23,Revenue
DIRECT SOCIAL SERVICES,DIRECT SOCIAL SERVICES,07-Aug-2018,216179,Care 4 U (Neath) Limited,"1,754.28",Revenue
DIRECT SOCIAL SERVICES,DIRECT SOCIAL SERVICES,07-Aug-2018,216179,Crusader Medical Care Limited T/A St Saviours Nursing Home,551.35,Revenue
DIRECT SOCIAL SERVICES,DIRECT SOCIAL SERVICES,07-Aug-2018,216179,Leonard Cheshire Disability,"1,209.78",Revenue
DIRECT SOCIAL SERVICES,DIRECT SOCIAL SERVICES,07-Aug-2018,216179,Middlepatch Limited T/A College Fields Nursing Home,639.85,Revenue
DIRECT SOCIAL SERVICES,DIRECT SOCIAL SERVICES,07-Aug-2018,216179,Middlepatch Limited T/A College Fields Nursing Home,655.45,Revenue
DIRECT SOCIAL SERVICES,DIRECT SOCIAL SERVICES,07-Aug-2018,216179,Springbank Care Home Limited T/A Springbank Nursing Home,770.00,Revenue
DIRECT SOCIAL SERVICES,DIRECT SOCIAL SERVICES,07-Aug-2018,216179,Valebrook Care Homes Limited,"1,851.35",Revenue
DIRECT SOCIAL SERVICES,DIRECT SOCIAL SERVICES,07-Aug-2018,216179,Voyage 1 Limited t/a Brook Lodge,"2,528.80",Revenue
DIRECT SOCIAL SERVICES,DIRECT SOCIAL SERVICES,07-Aug-2018,216179,Voyage 1 Limited t/a Falcons Rest & Poachers Cottage,"1,729.64",Revenue
DIRECT SOCIAL SERVICES,DIRECT SOCIAL SERVICES,07-Aug-2018,217909,Accomplish Group Limited,"1,821.48",Revenue
DIRECT SOCIAL SERVICES,DIRECT SOCIAL SERVICES,07-Aug-2018,217909,Accomplish Group Limited,"2,146.47",Revenue
DIRECT SOCIAL SERVICES,DIRECT SOCIAL SERVICES,07-Aug-2018,217909,Accomplish Group Limited t/a Cedar House,"1,582.70",Revenue
DIRECT SOCIAL SERVICES,DIRECT SOCIAL SERVICES,07-Aug-2018,217909,Amethyst Healthcare Limited t/a Hillstone House,"1,680.86",Revenue
DIRECT SOCIAL SERVICES,DIRECT SOCIAL SERVICES,07-Aug-2018,217909,Amethyst Healthcare Limited t/a Hillstone House,"1,462.13",Revenue
DIRECT SOCIAL SERVICES,DIRECT SOCIAL SERVICES,07-Aug-2018,217909,Broadway Care Centre Limited T/A Hazelhurst Nursing Home,500.05,Revenue
DIRECT SOCIAL SERVICES,DIRECT SOCIAL SERVICES,07-Aug-2018,217909,Broadway Care Centre Limited T/A Hazelhurst Nursing Home,507.15,Revenue
DIRECT SOCIAL SERVICES,DIRECT SOCIAL SERVICES,07-Aug-2018,217909,Glasallt Fawr Camphill Centre,995.72,Revenue
DIRECT SOCIAL SERVICES,DIRECT SOCIAL SERVICES,07-Aug-2018,217909,Glasallt Fawr Camphill Centre,"1,544.90",Revenue
DIRECT SOCIAL SERVICES,DIRECT SOCIAL SERVICES,07-Aug-2018,217909,Heatherleigh Care Limited t/a 106 Splott Road,"1,563.71",Revenue
DIRECT SOCIAL SERVICES,DIRECT SOCIAL SERVICES,07-Aug-2018,217909,Heatherleigh Care Limited t/a 106 Splott Road,"1,223.14",Revenue
DIRECT SOCIAL SERVICES,DIRECT SOCIAL SERVICES,07-Aug-2018,217909,Llysywaun Limited t/a Bayview Lodge Nursing Home,"1,724.90",Revenue
DIRECT SOCIAL SERVICES,DIRECT SOCIAL SERVICES,07-Aug-2018,217909,Ocean Community Services Limited t/a Westminster Court Care Home,"1,116.27",Revenue
DIRECT SOCIAL SERVICES,DIRECT SOCIAL SERVICES,07-Aug-2018,217909,The Cedars Care Services Limited T/A Ashgrove Care Home,"2,112.35",Revenue
DIRECT SOCIAL SERVICES,DIRECT SOCIAL SERVICES,07-Aug-2018,217909,The Cedars Care Services Limited T/A Ashgrove Care Home,995.35,Revenue
DIRECT SOCIAL SERVICES,DIRECT SOCIAL SERVICES,07-Aug-2018,217909,The Cedars Care Services Limited T/A Oaklands,"1,030.35",Revenue
DIRECT SOCIAL SERVICES,DIRECT SOCIAL SERVICES,07-Aug-2018,217909,The Cedars Care Services Limited t/a Sycamore House,"2,026.35",Revenue
DIRECT SOCIAL SERVICES,DIRECT SOCIAL SERVICES,07-Aug-2018,217909,The Cedars Care Services Limited t/a Sycamore House,"1,809.35",Revenue
DIRECT SOCIAL SERVICES,DIRECT SOCIAL SERVICES,07-Aug-2018,217909,The Cedars Care Services Limited t/a The Cedars,"1,576.06",Revenue
DIRECT SOCIAL SERVICES,DIRECT SOCIAL SERVICES,07-Aug-2018,217909,The Cedars Care Services Limited t/a The Cedars,"1,365.05",Revenue
DIRECT SOCIAL SERVICES,DIRECT SOCIAL SERVICES,07-Aug-2018,217909,The Cedars Care Services Limited t/a The Hollies,"1,864.35",Revenue
DIRECT SOCIAL SERVICES,DIRECT SOCIAL SERVICES,07-Aug-2018,217909,Vale Phoenix Limited,"1,079.73",Revenue
DIRECT SOCIAL SERVICES,DIRECT SOCIAL SERVICES,07-Aug-2018,217909,Vale Phoenix Limited,"1,116.94",Revenue
DIRECT SOCIAL SERVICES,DIRECT SOCIAL SERVICES,07-Aug-2018,217909,Valebrook Care Homes Limited,"1,654.39",Revenue
DIRECT SOCIAL SERVICES,DIRECT SOCIAL SERVICES,07-Aug-2018,217909,Valebrook Care Homes Limited,"1,999.50",Revenue
DIRECT SOCIAL SERVICES,DIRECT SOCIAL SERVICES,07-Aug-2018,217909,Valebrook Care Homes Limited,"1,420.24",Revenue
DIRECT SOCIAL SERVICES,DIRECT SOCIAL SERVICES,07-Aug-2018,217909,Valebrook Care Homes Limited,"1,767.35",Revenue
DIRECT SOCIAL SERVICES,DIRECT SOCIAL SERVICES,07-Aug-2018,217909,Valebrook Care Homes Limited,"1,861.95",Revenue
DIRECT SOCIAL SERVICES,DIRECT SOCIAL SERVICES,07-Aug-2018,217909,Valebrook Care Homes Limited,"1,390.24",Revenue
DIRECT SOCIAL SERVICES,DIRECT SOCIAL SERVICES,07-Aug-2018,218321,Adriana Limited T/A The Priory Nursing Home,536.00,Revenue
DIRECT SOCIAL SERVICES,DIRECT SOCIAL SERVICES,07-Aug-2018,218321,Hafod Care Association Limited,635.50,Revenue
DIRECT SOCIAL SERVICES,DIRECT SOCIAL SERVICES,07-Aug-2018,218321,Harrison Care Enterprises Barry Limited t/a Island View,520.91,Revenue
DIRECT SOCIAL SERVICES,DIRECT SOCIAL SERVICES,07-Aug-2018,218321,Isman & Kinze Nessa T/A Haven House,516.38,Revenue
DIRECT SOCIAL SERVICES,DIRECT SOCIAL SERVICES,07-Aug-2018,218321,J and P Residential Homes Limited T/A Monkstone House,600.00,Revenue
DIRECT SOCIAL SERVICES,DIRECT SOCIAL SERVICES,07-Aug-2018,218321,Liam George t/a Claremont Care Home,516.45,Revenue
DIRECT SOCIAL SERVICES,DIRECT SOCIAL SERVICES,07-Aug-2018,218321,Sanda Mitchel & Ptn t/a Canola House Residential Home,600.00,Revenue
DIRECT SOCIAL SERVICES,DIRECT SOCIAL SERVICES,07-Aug-2018,218321,Sanda Mitchel & Ptn t/a Canola House Residential Home,501.35,Revenue
DIRECT SOCIAL SERVICES,DIRECT SOCIAL SERVICES,07-Aug-2018,218321,Waverley Care Centre Limited,909.98,Revenue
DIRECT SOCIAL SERVICES,DIRECT SOCIAL SERVICES,07-Aug-2018,218419,Anwen Care Limited t/a Anwen Care Home,690.56,Revenue
DIRECT SOCIAL SERVICES,DIRECT SOCIAL SERVICES,07-Aug-2018,218419,Baltimore Care Limited,508.51,Revenue
DIRECT SOCIAL SERVICES,DIRECT SOCIAL SERVICES,07-Aug-2018,218419,Baltimore Care Limited,"3,558.86",Revenue
DIRECT SOCIAL SERVICES,DIRECT SOCIAL SERVICES,07-Aug-2018,218419,Baltimore Care Limited,527.38,Revenue
DIRECT SOCIAL SERVICES,DIRECT SOCIAL SERVICES,07-Aug-2018,218419,Bellavista Care (Cardiff) Limited T/A Bellavista Nursing Home Cardiff,546.71,Revenue
DIRECT SOCIAL SERVICES,DIRECT SOCIAL SERVICES,07-Aug-2018,218419,Bellavista Care (Cardiff) Limited T/A Bellavista Nursing Home Cardiff,516.38,Revenue
DIRECT SOCIAL SERVICES,DIRECT SOCIAL SERVICES,07-Aug-2018,218419,Broadway Care Centre Limited T/A Hazelhurst Nursing Home,516.38,Revenue
DIRECT SOCIAL SERVICES,DIRECT SOCIAL SERVICES,07-Aug-2018,218419,David Austin t/a Silverdale,663.68,Revenue
DIRECT SOCIAL SERVICES,DIRECT SOCIAL SERVICES,07-Aug-2018,218419,E & E Homes Limited T/A Cliffhaven Residential Home,501.05,Revenue
DIRECT SOCIAL SERVICES,DIRECT SOCIAL SERVICES,07-Aug-2018,218419,E & E Homes Limited T/A Cliffhaven Residential Home,516.38,Revenue
DIRECT SOCIAL SERVICES,DIRECT SOCIAL SERVICES,07-Aug-2018,218419,E & E Homes Limited T/A Cliffhaven Residential Home,516.38,Revenue
DIRECT SOCIAL SERVICES,DIRECT SOCIAL SERVICES,07-Aug-2018,218419,E & E Homes Limited T/A Cliffhaven Residential Home,505.20,Revenue
DIRECT SOCIAL SERVICES,DIRECT SOCIAL SERVICES,07-Aug-2018,218419,Forge Care Homes Limited t/a The Forge Care Centre,549.58,Revenue
DIRECT SOCIAL SERVICES,DIRECT SOCIAL SERVICES,07-Aug-2018,218419,Hallmark Care Homes (Bute Town) Limited t/a Shire Hall Care Home,784.67,Revenue
DIRECT SOCIAL SERVICES,DIRECT SOCIAL SERVICES,07-Aug-2018,218419,Hallmark Care Homes (Bute Town) Limited t/a Shire Hall Care Home,"1,215.50",Revenue
DIRECT SOCIAL SERVICES,DIRECT SOCIAL SERVICES,07-Aug-2018,218419,Harrison Care Enterprises Barry Limited t/a Island View,516.38,Revenue
DIRECT SOCIAL SERVICES,DIRECT SOCIAL SERVICES,07-Aug-2018,218419,Harrison Care Enterprises Barry Limited t/a Island View,501.96,Revenue
DIRECT SOCIAL SERVICES,DIRECT SOCIAL SERVICES,07-Aug-2018,218419,Harrison Care Enterprises Barry Limited t/a Island View,650.88,Revenue
DIRECT SOCIAL SERVICES,DIRECT SOCIAL SERVICES,07-Aug-2018,218419,Harrison Care Enterprises Barry Limited t/a Island View,514.75,Revenue
DIRECT SOCIAL SERVICES,DIRECT SOCIAL SERVICES,07-Aug-2018,218419,Harrison Care Enterprises Barry Limited t/a Island View,544.81,Revenue
DIRECT SOCIAL SERVICES,DIRECT SOCIAL SERVICES,07-Aug-2018,218419,Harrison Care Enterprises Barry Limited t/a Island View,516.38,Revenue
DIRECT SOCIAL SERVICES,DIRECT SOCIAL SERVICES,07-Aug-2018,218419,Harrison Care Enterprises Barry Limited t/a Island View,516.38,Revenue
DIRECT SOCIAL SERVICES,DIRECT SOCIAL SERVICES,07-Aug-2018,218419,Harrison Care Enterprises Barry Limited t/a Island View,516.38,Revenue
DIRECT SOCIAL SERVICES,DIRECT SOCIAL SERVICES,07-Aug-2018,218419,Harrison Care Enterprises Barry Limited t/a Island View,503.11,Revenue
DIRECT SOCIAL SERVICES,DIRECT SOCIAL SERVICES,07-Aug-2018,218419,Harrison Care Enterprises Barry Limited t/a Island View,516.38,Revenue
DIRECT SOCIAL SERVICES,DIRECT SOCIAL SERVICES,07-Aug-2018,218419,June Zehetmayr t/a Tower Hill Residential Home,650.88,Revenue
DIRECT SOCIAL SERVICES,DIRECT SOCIAL SERVICES,07-Aug-2018,218419,June Zehetmayr t/a Tower Hill Residential Home,518.38,Revenue
DIRECT SOCIAL SERVICES,DIRECT SOCIAL SERVICES,07-Aug-2018,218419,June Zehetmayr t/a Tower Hill Residential Home,650.88,Revenue
DIRECT SOCIAL SERVICES,DIRECT SOCIAL SERVICES,07-Aug-2018,218419,June Zehetmayr t/a Tower Hill Residential Home,"1,301.76",Revenue
DIRECT SOCIAL SERVICES,DIRECT SOCIAL SERVICES,07-Aug-2018,218419,June Zehetmayr t/a Tower Hill Residential Home,516.56,Revenue
DIRECT SOCIAL SERVICES,DIRECT SOCIAL SERVICES,07-Aug-2018,218419,Llangoedmor Properties Limited T/A Parkside Residential Home,513.83,Revenue
DIRECT SOCIAL SERVICES,DIRECT SOCIAL SERVICES,07-Aug-2018,218419,Llangoedmor Properties Limited T/A Parkside Residential Home,650.88,Revenue
DIRECT SOCIAL SERVICES,DIRECT SOCIAL SERVICES,07-Aug-2018,218419,Middlepatch Limited T/A College Fields Nursing Home,516.12,Revenue
DIRECT SOCIAL SERVICES,DIRECT SOCIAL SERVICES,07-Aug-2018,218419,Northcote Developments Limited,524.12,Revenue
DIRECT SOCIAL SERVICES,DIRECT SOCIAL SERVICES,07-Aug-2018,218419,Shirwan Al-Mufti & Ptn t/a Pontcanna House,600.00,Revenue
DIRECT SOCIAL SERVICES,DIRECT SOCIAL SERVICES,07-Aug-2018,218419,The Manor House St Hilary Limited T/A Milsom House,700.33,Revenue
DIRECT SOCIAL SERVICES,DIRECT SOCIAL SERVICES,07-Aug-2018,218419,Waverley Care Centre Limited,508.92,Revenue
DIRECT SOCIAL SERVICES,DIRECT SOCIAL SERVICES,07-Aug-2018,218419,Waverley Care Centre Limited,516.38,Revenue
DIRECT SOCIAL SERVICES,DIRECT SOCIAL SERVICES,07-Aug-2018,218419,Waverley Care Centre Limited,650.88,Revenue
DIRECT SOCIAL SERVICES,DIRECT SOCIAL SERVICES,07-Aug-2018,218419,Waverley Care Centre Limited,574.00,Revenue
DIRECT SOCIAL SERVICES,DIRECT SOCIAL SERVICES,07-Aug-2018,218419,Waverley Care Centre Limited,688.89,Revenue
DIRECT ENVIRONMENT AND HOUSING,DIRECT ENVIRONMENT AND HOUSING,07-Aug-2018,407108,Adrian Lewis T/A CEG Graphics,940.50,Revenue
DIRECT LEARNING AND SKILLS,DIRECT LEARNING AND SKILLS,07-Aug-2018,102652,New College Worcester,"14,068.00",Revenue
DIRECT LEARNING AND SKILLS,DIRECT LEARNING AND SKILLS,07-Aug-2018,190052,Clybiau Plant Cymru Kids Club,640.00,Revenue
DIRECT LEARNING AND SKILLS,DIRECT LEARNING AND SKILLS,07-Aug-2018,190056,Gibbonsdown & Treharne Community Association,682.50,Revenue
DIRECT LEARNING AND SKILLS,DIRECT LEARNING AND SKILLS,07-Aug-2018,190056,Palmerston Out of School Club,"2,125.00",Revenue
DIRECT LEARNING AND SKILLS,DIRECT LEARNING AND SKILLS,07-Aug-2018,190056,Victoria Out of School Club,"3,000.00",Revenue
DIRECT ENVIRONMENT AND HOUSING,DIRECT ENVIRONMENT AND HOUSING,07-Aug-2018,403370,Hope Rescue Centre Limited,"1,731.48",Revenue
DIRECT SOCIAL SERVICES,DIRECT SOCIAL SERVICES,08-Aug-2018,215489,All Care (South Wales) Limited,614.02,Revenue
DIRECT SOCIAL SERVICES,DIRECT SOCIAL SERVICES,08-Aug-2018,215489,All Care (South Wales) Limited,614.08,Revenue
DIRECT SOCIAL SERVICES,DIRECT SOCIAL SERVICES,08-Aug-2018,215489,All Care (South Wales) Limited,618.94,Revenue
DIRECT SOCIAL SERVICES,DIRECT SOCIAL SERVICES,08-Aug-2018,215489,All Care (South Wales) Limited,534.76,Revenue
DIRECT SOCIAL SERVICES,DIRECT SOCIAL SERVICES,08-Aug-2018,215489,All Care (South Wales) Limited,534.87,Revenue
DIRECT SOCIAL SERVICES,DIRECT SOCIAL SERVICES,08-Aug-2018,215489,All Saints DC Limited,694.10,Revenue
DIRECT SOCIAL SERVICES,DIRECT SOCIAL SERVICES,08-Aug-2018,215489,All Saints DC Limited,662.28,Revenue
DIRECT SOCIAL SERVICES,DIRECT SOCIAL SERVICES,08-Aug-2018,215489,All Saints DC Limited,627.96,Revenue
DIRECT SOCIAL SERVICES,DIRECT SOCIAL SERVICES,08-Aug-2018,215489,All Saints DC Limited,588.94,Revenue
DIRECT SOCIAL SERVICES,DIRECT SOCIAL SERVICES,08-Aug-2018,215489,All Saints DC Limited,669.86,Revenue
DIRECT SOCIAL SERVICES,DIRECT SOCIAL SERVICES,08-Aug-2018,215489,Annwyl Limited t/a Bluebird Care,655.25,Revenue
DIRECT SOCIAL SERVICES,DIRECT SOCIAL SERVICES,08-Aug-2018,215489,Annwyl Limited t/a Bluebird Care,666.68,Revenue
DIRECT SOCIAL SERVICES,DIRECT SOCIAL SERVICES,08-Aug-2018,215489,Annwyl Limited t/a Bluebird Care,732.21,Revenue
DIRECT SOCIAL SERVICES,DIRECT SOCIAL SERVICES,08-Aug-2018,215489,Annwyl Limited t/a Bluebird Care,608.80,Revenue
DIRECT SOCIAL SERVICES,DIRECT SOCIAL SERVICES,08-Aug-2018,215489,Bespoke Senior Care Limited T/A Home Instead Senior Care,595.97,Revenue
DIRECT SOCIAL SERVICES,DIRECT SOCIAL SERVICES,08-Aug-2018,215489,Bespoke Senior Care Limited T/A Home Instead Senior Care,595.97,Revenue
DIRECT SOCIAL SERVICES,DIRECT SOCIAL SERVICES,08-Aug-2018,215489,Bespoke Senior Care Limited T/A Home Instead Senior Care,595.97,Revenue
DIRECT SOCIAL SERVICES,DIRECT SOCIAL SERVICES,08-Aug-2018,215489,Bespoke Senior Care Limited T/A Home Instead Senior Care,595.97,Revenue
DIRECT SOCIAL SERVICES,DIRECT SOCIAL SERVICES,08-Aug-2018,215489,Care In Wales Limited T/A Care in the Vale,730.93,Revenue
DIRECT SOCIAL SERVICES,DIRECT SOCIAL SERVICES,08-Aug-2018,215489,Care In Wales Limited T/A Care in the Vale,715.42,Revenue
DIRECT SOCIAL SERVICES,DIRECT SOCIAL SERVICES,08-Aug-2018,215489,Care In Wales Limited T/A Care in the Vale,724.65,Revenue
DIRECT SOCIAL SERVICES,DIRECT SOCIAL SERVICES,08-Aug-2018,215489,Care In Wales Limited T/A Care in the Vale,708.87,Revenue
DIRECT SOCIAL SERVICES,DIRECT SOCIAL SERVICES,08-Aug-2018,215489,Care In Wales Limited T/A Care in the Vale,620.83,Revenue
DIRECT SOCIAL SERVICES,DIRECT SOCIAL SERVICES,08-Aug-2018,215489,Care In Wales Limited T/A Care in the Vale,637.71,Revenue
DIRECT SOCIAL SERVICES,DIRECT SOCIAL SERVICES,08-Aug-2018,215489,Care In Wales Limited T/A Care in the Vale,538.31,Revenue
DIRECT SOCIAL SERVICES,DIRECT SOCIAL SERVICES,08-Aug-2018,215489,Care In Wales Limited T/A Care in the Vale,696.19,Revenue
DIRECT SOCIAL SERVICES,DIRECT SOCIAL SERVICES,08-Aug-2018,215489,Care In Wales Limited T/A Care in the Vale,595.62,Revenue
DIRECT SOCIAL SERVICES,DIRECT SOCIAL SERVICES,08-Aug-2018,215489,Care In Wales Limited T/A Care in the Vale,622.72,Revenue
DIRECT SOCIAL SERVICES,DIRECT SOCIAL SERVICES,08-Aug-2018,215489,Care In Wales Limited T/A Care in the Vale,781.05,Revenue
DIRECT SOCIAL SERVICES,DIRECT SOCIAL SERVICES,08-Aug-2018,215489,Care In Wales Limited T/A Care in the Vale,670.84,Revenue
DIRECT SOCIAL SERVICES,DIRECT SOCIAL SERVICES,08-Aug-2018,215489,Caring Companions Limited,750.68,Revenue
DIRECT SOCIAL SERVICES,DIRECT SOCIAL SERVICES,08-Aug-2018,215489,Caring Companions Limited,571.55,Revenue
DIRECT SOCIAL SERVICES,DIRECT SOCIAL SERVICES,08-Aug-2018,215489,Caring Companions Limited,544.18,Revenue
DIRECT SOCIAL SERVICES,DIRECT SOCIAL SERVICES,08-Aug-2018,215489,Caring Companions Limited,660.94,Revenue
DIRECT SOCIAL SERVICES,DIRECT SOCIAL SERVICES,08-Aug-2018,215489,Caring Companions Limited,523.60,Revenue
DIRECT SOCIAL SERVICES,DIRECT SOCIAL SERVICES,08-Aug-2018,215489,Caring Companions Limited,599.20,Revenue
DIRECT SOCIAL SERVICES,DIRECT SOCIAL SERVICES,08-Aug-2018,215489,Cherish Cymru Limited,617.90,Revenue
DIRECT SOCIAL SERVICES,DIRECT SOCIAL SERVICES,08-Aug-2018,215489,Cherish Cymru Limited,"1,028.59",Revenue
DIRECT SOCIAL SERVICES,DIRECT SOCIAL SERVICES,08-Aug-2018,215489,Cherish Cymru Limited,637.01,Revenue
DIRECT SOCIAL SERVICES,DIRECT SOCIAL SERVICES,08-Aug-2018,215489,Cherish Cymru Limited,538.54,Revenue
DIRECT SOCIAL SERVICES,DIRECT SOCIAL SERVICES,08-Aug-2018,215489,Cherish Cymru Limited,533.74,Revenue
DIRECT SOCIAL SERVICES,DIRECT SOCIAL SERVICES,08-Aug-2018,215489,Parkrow Care Limited,568.78,Revenue
DIRECT SOCIAL SERVICES,DIRECT SOCIAL SERVICES,08-Aug-2018,215489,Parkrow Care Limited,600.48,Revenue
DIRECT SOCIAL SERVICES,DIRECT SOCIAL SERVICES,08-Aug-2018,216179,All Care (South Wales) Limited,730.06,Revenue
DIRECT SOCIAL SERVICES,DIRECT SOCIAL SERVICES,08-Aug-2018,216179,All Care (South Wales) Limited,553.13,Revenue
DIRECT SOCIAL SERVICES,DIRECT SOCIAL SERVICES,08-Aug-2018,216179,Care In Wales Limited T/A Care in the Vale,709.41,Revenue
DIRECT SOCIAL SERVICES,DIRECT SOCIAL SERVICES,08-Aug-2018,216179,Heidi Christoforato t/a Churchfields Home Care,534.21,Revenue
DIRECT SOCIAL SERVICES,DIRECT SOCIAL SERVICES,08-Aug-2018,218419,All Care (South Wales) Limited,680.68,Revenue
DIRECT SOCIAL SERVICES,DIRECT SOCIAL SERVICES,08-Aug-2018,218419,Annwyl Limited t/a Bluebird Care,625.01,Revenue
DIRECT SOCIAL SERVICES,DIRECT SOCIAL SERVICES,08-Aug-2018,218419,Care In Wales Limited T/A Care in the Vale,672.26,Revenue
DIRECT SOCIAL SERVICES,DIRECT SOCIAL SERVICES,08-Aug-2018,218419,Care In Wales Limited T/A Care in the Vale,666.69,Revenue
DIRECT SOCIAL SERVICES,DIRECT SOCIAL SERVICES,08-Aug-2018,218419,Care In Wales Limited T/A Care in the Vale,677.98,Revenue
DIRECT SOCIAL SERVICES,DIRECT SOCIAL SERVICES,08-Aug-2018,218419,Parkrow Care Limited,625.72,Revenue
DIRECT LEARNING AND SKILLS,DIRECT LEARNING AND SKILLS,08-Aug-2018,101300,Draintech Surveys Limited,"1,250.00",Revenue
DIRECT LEARNING AND SKILLS,DIRECT LEARNING AND SKILLS,08-Aug-2018,130041,Adapt Business Services Limited,859.85,Revenue
DIRECT LEARNING AND SKILLS,DIRECT LEARNING AND SKILLS,08-Aug-2018,154401,DairyLink UK Limited,"8,736.24",Revenue
DIRECT SOCIAL SERVICES,DIRECT SOCIAL SERVICES,08-Aug-2018,217909,Valeplus (Cymru) & Valeplus Extra,877.28,Revenue
DIRECT SOCIAL SERVICES,DIRECT SOCIAL SERVICES,08-Aug-2018,260050,E4Law Limited t/a Lextox,938.91,Revenue
DIRECT SOCIAL SERVICES,DIRECT SOCIAL SERVICES,08-Aug-2018,260050,E4Law Limited t/a Lextox,"1,304.00",Revenue
DIRECT SOCIAL SERVICES,DIRECT SOCIAL SERVICES,08-Aug-2018,260050,Luan Limited,523.03,Revenue
DIRECT SOCIAL SERVICES,DIRECT SOCIAL SERVICES,08-Aug-2018,260060,BetterCare Keys Limited,"10,656.87",Revenue
DIRECT SOCIAL SERVICES,DIRECT SOCIAL SERVICES,08-Aug-2018,260060,BetterCare Keys Limited,"10,656.96",Revenue
DIRECT SOCIAL SERVICES,DIRECT SOCIAL SERVICES,08-Aug-2018,260060,Compass Fostering Wales Limited,"2,978.48",Revenue
DIRECT SOCIAL SERVICES,DIRECT SOCIAL SERVICES,08-Aug-2018,260060,Foster Care Associates Limited,"3,615.00",Revenue
DIRECT SOCIAL SERVICES,DIRECT SOCIAL SERVICES,08-Aug-2018,260060,Foster Care Associates Limited,"8,100.00",Revenue
DIRECT SOCIAL SERVICES,DIRECT SOCIAL SERVICES,08-Aug-2018,260060,Foster Care Associates Limited,"3,105.00",Revenue
DIRECT SOCIAL SERVICES,DIRECT SOCIAL SERVICES,08-Aug-2018,260060,Foster Care Associates Limited,"3,645.00",Revenue
DIRECT SOCIAL SERVICES,DIRECT SOCIAL SERVICES,08-Aug-2018,260060,Foster Care Group Wales Cyf,"5,828.00",Revenue
DIRECT SOCIAL SERVICES,DIRECT SOCIAL SERVICES,08-Aug-2018,260060,Horizon Care & Education Group Limited,"14,835.67",Revenue
DIRECT SOCIAL SERVICES,DIRECT SOCIAL SERVICES,08-Aug-2018,260060,Horizon Care & Education Group Limited,"1,200.00",Revenue
DIRECT SOCIAL SERVICES,DIRECT SOCIAL SERVICES,08-Aug-2018,260060,Independent Foster Care Services Limited,"3,618.01",Revenue
DIRECT SOCIAL SERVICES,DIRECT SOCIAL SERVICES,08-Aug-2018,260060,Independent Foster Care Services Limited,"2,652.00",Revenue
DIRECT SOCIAL SERVICES,DIRECT SOCIAL SERVICES,08-Aug-2018,260060,Independent Foster Care Services Limited,"3,351.10",Revenue
DIRECT SOCIAL SERVICES,DIRECT SOCIAL SERVICES,08-Aug-2018,260060,Independent Foster Care Services Limited,510.00,Revenue
DIRECT SOCIAL SERVICES,DIRECT SOCIAL SERVICES,08-Aug-2018,260060,Landsker Child Care Limited,"18,086.29",Revenue
DIRECT SOCIAL SERVICES,DIRECT SOCIAL SERVICES,08-Aug-2018,260060,Landsker Child Care Limited,"18,033.39",Revenue
DIRECT SOCIAL SERVICES,DIRECT SOCIAL SERVICES,08-Aug-2018,260060,Landsker Child Care Limited,"18,033.39",Revenue
DIRECT SOCIAL SERVICES,DIRECT SOCIAL SERVICES,08-Aug-2018,260060,Orbis Education and Care Limited,"23,504.72",Revenue
DIRECT SOCIAL SERVICES,DIRECT SOCIAL SERVICES,08-Aug-2018,260060,Pathway Care Limited T/A Calon Cymru Fostering,"1,835.66",Revenue
DIRECT SOCIAL SERVICES,DIRECT SOCIAL SERVICES,08-Aug-2018,260060,Regional Foster Placements Limited,"3,255.00",Revenue
DIRECT SOCIAL SERVICES,DIRECT SOCIAL SERVICES,08-Aug-2018,260060,Shared Services Connected Limited,"18,300.00",Revenue
DIRECT SOCIAL SERVICES,DIRECT SOCIAL SERVICES,08-Aug-2018,260060,Shared Services Connected Limited,"9,150.00",Revenue
DIRECT SOCIAL SERVICES,DIRECT SOCIAL SERVICES,08-Aug-2018,260116,PayPoint Payment Services Limited t/a CSGA Glamorgan,756.19,Revenue
DIRECT SOCIAL SERVICES,DIRECT SOCIAL SERVICES,08-Aug-2018,260130,PayPoint Payment Services Limited t/a CSGA Glamorgan,597.27,Revenue
DIRECT ENVIRONMENT AND HOUSING,DIRECT ENVIRONMENT AND HOUSING,08-Aug-2018,325501,Wolseley UK Limited,"4,400.00",Revenue
DIRECT ENVIRONMENT AND HOUSING,DIRECT ENVIRONMENT AND HOUSING,08-Aug-2018,341182,FCC Recycling (UK) Limited,"104,999.08",Revenue
DIRECT ENVIRONMENT AND HOUSING,DIRECT ENVIRONMENT AND HOUSING,08-Aug-2018,341500,Cromwell Polythene Limited,"16,872.96",Revenue
DIRECT ENVIRONMENT AND HOUSING,DIRECT ENVIRONMENT AND HOUSING,08-Aug-2018,356000,The Outdoors Company UK Limited,"1,057.43",Revenue
DIRECT ENVIRONMENT AND HOUSING,DIRECT ENVIRONMENT AND HOUSING,08-Aug-2018,400050,Glamorgan Gem Limited,"1,080.00",Revenue
DIRECT ENVIRONMENT AND HOUSING,DIRECT ENVIRONMENT AND HOUSING,08-Aug-2018,400050,Glamorgan Gem Limited,546.00,Revenue
DIRECT ENVIRONMENT AND HOUSING,DIRECT ENVIRONMENT AND HOUSING,08-Aug-2018,400050,Glamorgan Gem Limited,663.00,Revenue
DIRECT ENVIRONMENT AND HOUSING,DIRECT ENVIRONMENT AND HOUSING,08-Aug-2018,407108,Boulders Limited,500.00,Revenue
DIRECT MANAGING DIRECTOR AND RESOURCES,DIRECT MANAGING DIRECTOR AND RESOURCES,08-Aug-2018,420223,Computacenter (UK) Limited,"1,089.06",Revenue
DIRECT MANAGING DIRECTOR AND RESOURCES,DIRECT MANAGING DIRECTOR AND RESOURCES,08-Aug-2018,422201,Chubb Fire & Security Limited,"1,049.18",Revenue
DIRECT MANAGING DIRECTOR AND RESOURCES,DIRECT MANAGING DIRECTOR AND RESOURCES,08-Aug-2018,467403,Bruton Knowles LLP,"3,500.00",Revenue
DIRECT CAPITAL LEARN AND SKILLS,DIRECT CAPITAL LEARN AND SKILLS,08-Aug-2018,812251,BECT Building Contractors Limited,"202,840.16",Capital
DIRECT CAPITAL DEVELOPMENT,DIRECT CAPITAL DEVELOPMENT,08-Aug-2018,834241,Sunshine Playgrounds Limited,671.15,Capital
DIRECT CAPITAL DEVELOPMENT,DIRECT CAPITAL DEVELOPMENT,08-Aug-2018,837115,Jones Brothers (Henllan) Limited,"99,141.08",Capital
DIRECT CAPITAL VISIBLE AND HOUSING SERVICES,DIRECT CAPITAL VISIBLE AND HOUSING SERVICES,08-Aug-2018,842128,Ian Williams Limited,"104,249.67",Capital
DIRECT CAPITAL DEVELOPMENT,DIRECT CAPITAL DEVELOPMENT,08-Aug-2018,845003,Handicare Accessibility Limited,"1,725.00",Capital
DIRECT SOCIAL SERVICES,DIRECT SOCIAL SERVICES,08-Aug-2018,260060,Durham County Council,"38,850.00",Revenue
DIRECT ENVIRONMENT AND HOUSING,DIRECT ENVIRONMENT AND HOUSING,08-Aug-2018,333201,Barry Town Council,"5,156.00",Revenue
DIRECT SOCIAL SERVICES,DIRECT SOCIAL SERVICES,08-Aug-2018,260150,Sanctuary Personnel Limited,"1,531.80",Revenue
DIRECT SOCIAL SERVICES,DIRECT SOCIAL SERVICES,08-Aug-2018,260150,Sanctuary Personnel Limited,"1,531.80",Revenue
DIRECT ENVIRONMENT AND HOUSING,DIRECT ENVIRONMENT AND HOUSING,08-Aug-2018,407119,Building Recruitment Company Limited,"1,138.86",Revenue
DIRECT ENVIRONMENT AND HOUSING,DIRECT ENVIRONMENT AND HOUSING,08-Aug-2018,407119,Building Recruitment Company Limited,"1,008.05",Revenue
DIRECT ENVIRONMENT AND HOUSING,DIRECT ENVIRONMENT AND HOUSING,08-Aug-2018,407119,Hays Specialist Recruitment Limited,"1,270.97",Revenue
DIRECT ENVIRONMENT AND HOUSING,DIRECT ENVIRONMENT AND HOUSING,08-Aug-2018,407119,Hays Specialist Recruitment Limited,"1,499.82",Revenue
DIRECT ENVIRONMENT AND HOUSING,DIRECT ENVIRONMENT AND HOUSING,08-Aug-2018,407119,Hays Specialist Recruitment Limited,"1,270.97",Revenue
DIRECT ENVIRONMENT AND HOUSING,DIRECT ENVIRONMENT AND HOUSING,08-Aug-2018,407119,Hays Specialist Recruitment Limited,"1,509.31",Revenue
DIRECT ENVIRONMENT AND HOUSING,DIRECT ENVIRONMENT AND HOUSING,08-Aug-2018,407119,Hays Specialist Recruitment Limited,"1,281.77",Revenue
DIRECT SOCIAL SERVICES,DIRECT SOCIAL SERVICES,08-Aug-2018,215489,Willowmere Home Care Agency Limited,619.08,Revenue
DIRECT SOCIAL SERVICES,DIRECT SOCIAL SERVICES,08-Aug-2018,215489,Willowmere Home Care Agency Limited,756.96,Revenue
DIRECT SOCIAL SERVICES,DIRECT SOCIAL SERVICES,08-Aug-2018,215489,Willowmere Home Care Agency Limited,619.08,Revenue
DIRECT SOCIAL SERVICES,DIRECT SOCIAL SERVICES,08-Aug-2018,215489,Willowmere Home Care Agency Limited,808.37,Revenue
DIRECT SOCIAL SERVICES,DIRECT SOCIAL SERVICES,08-Aug-2018,215489,Willowmere Home Care Agency Limited,540.75,Revenue
DIRECT SOCIAL SERVICES,DIRECT SOCIAL SERVICES,08-Aug-2018,215489,Willowmere Home Care Agency Limited,652.54,Revenue
DIRECT SOCIAL SERVICES,DIRECT SOCIAL SERVICES,08-Aug-2018,215489,Willowmere Home Care Agency Limited,816.14,Revenue
DIRECT SOCIAL SERVICES,DIRECT SOCIAL SERVICES,08-Aug-2018,215489,Willowmere Home Care Agency Limited,695.68,Revenue
DIRECT SOCIAL SERVICES,DIRECT SOCIAL SERVICES,08-Aug-2018,215489,Willowmere Home Care Agency Limited,619.08,Revenue
DIRECT SOCIAL SERVICES,DIRECT SOCIAL SERVICES,08-Aug-2018,215489,Willowmere Home Care Agency Limited,584.08,Revenue
DIRECT SOCIAL SERVICES,DIRECT SOCIAL SERVICES,08-Aug-2018,215489,Willowmere Home Care Agency Limited,667.86,Revenue
DIRECT SOCIAL SERVICES,DIRECT SOCIAL SERVICES,08-Aug-2018,215489,Willowmere Home Care Agency Limited,695.68,Revenue
DIRECT SOCIAL SERVICES,DIRECT SOCIAL SERVICES,08-Aug-2018,260170,Gordon Hadfield t/a The Seashore Grill & Cafe Bar,597.50,Revenue
DIRECT SOCIAL SERVICES,DIRECT SOCIAL SERVICES,08-Aug-2018,260235,Walter Standen T/A Standens Contract Hire,"1,344.00",Revenue
DIRECT SOCIAL SERVICES,DIRECT SOCIAL SERVICES,08-Aug-2018,260235,Walter Standen T/A Standens Contract Hire,713.00,Revenue
DIRECT SOCIAL SERVICES,DIRECT SOCIAL SERVICES,08-Aug-2018,260060,Action for Children,"1,328.70",Revenue
DIRECT SOCIAL SERVICES,DIRECT SOCIAL SERVICES,08-Aug-2018,260060,Action for Children,"2,348.40",Revenue
DIRECT SOCIAL SERVICES,DIRECT SOCIAL SERVICES,08-Aug-2018,260060,Barnardos Cymru,"3,077.86",Revenue
DIRECT SOCIAL SERVICES,DIRECT SOCIAL SERVICES,08-Aug-2018,260060,Barnardos Cymru,"3,715.57",Revenue
DIRECT SOCIAL SERVICES,DIRECT SOCIAL SERVICES,08-Aug-2018,260060,Supported Fostering Services Charitable Trust,549.25,Revenue
DIRECT SOCIAL SERVICES,DIRECT SOCIAL SERVICES,08-Aug-2018,260060,Supported Fostering Services Charitable Trust,506.40,Revenue
DIRECT SOCIAL SERVICES,DIRECT SOCIAL SERVICES,08-Aug-2018,260060,Supported Fostering Services Charitable Trust,"3,272.67",Revenue
DIRECT SOCIAL SERVICES,DIRECT SOCIAL SERVICES,08-Aug-2018,260060,Supported Fostering Services Charitable Trust,"3,405.35",Revenue
DIRECT SOCIAL SERVICES,DIRECT SOCIAL SERVICES,08-Aug-2018,260060,Supported Fostering Services Charitable Trust,"3,139.68",Revenue
DIRECT SOCIAL SERVICES,DIRECT SOCIAL SERVICES,08-Aug-2018,260060,Supported Fostering Services Charitable Trust,"1,697.04",Revenue
DIRECT LEARNING AND SKILLS,DIRECT LEARNING AND SKILLS,08-Aug-2018,440614,Cardiff Young Men's Christian Association,"12,500.00",Revenue
DIRECT MANAGING DIRECTOR AND RESOURCES,DIRECT MANAGING DIRECTOR AND RESOURCES,08-Aug-2018,465200,Glamorgan Voluntary Services,"47,765.00",Revenue
DIRECT MANAGING DIRECTOR AND RESOURCES,DIRECT MANAGING DIRECTOR AND RESOURCES,08-Aug-2018,465201,Murchfield Community Association,"17,500.00",Revenue
DIRECT MANAGING DIRECTOR AND RESOURCES,DIRECT MANAGING DIRECTOR AND RESOURCES,08-Aug-2018,465201,Rhoose & District Community Association,"2,625.00",Revenue
DIRECT SOCIAL SERVICES,DIRECT SOCIAL SERVICES,09-Aug-2018,215489,1st Grade Care Limited,532.70,Revenue
DIRECT SOCIAL SERVICES,DIRECT SOCIAL SERVICES,09-Aug-2018,215489,1st Grade Care Limited,582.40,Revenue
DIRECT SOCIAL SERVICES,DIRECT SOCIAL SERVICES,09-Aug-2018,215489,1st Grade Care Limited,582.40,Revenue
DIRECT SOCIAL SERVICES,DIRECT SOCIAL SERVICES,09-Aug-2018,215489,1st Grade Care Limited,621.60,Revenue
DIRECT SOCIAL SERVICES,DIRECT SOCIAL SERVICES,09-Aug-2018,215489,1st Grade Care Limited,597.15,Revenue
DIRECT SOCIAL SERVICES,DIRECT SOCIAL SERVICES,09-Aug-2018,215489,1st Grade Care Limited,532.70,Revenue
DIRECT SOCIAL SERVICES,DIRECT SOCIAL SERVICES,09-Aug-2018,215489,Care In Wales Limited T/A Care in the Vale,730.93,Revenue
DIRECT SOCIAL SERVICES,DIRECT SOCIAL SERVICES,09-Aug-2018,215489,Care In Wales Limited T/A Care in the Vale,715.42,Revenue
DIRECT SOCIAL SERVICES,DIRECT SOCIAL SERVICES,09-Aug-2018,215489,Care In Wales Limited T/A Care in the Vale,724.65,Revenue
DIRECT SOCIAL SERVICES,DIRECT SOCIAL SERVICES,09-Aug-2018,215489,Care In Wales Limited T/A Care in the Vale,724.65,Revenue
DIRECT SOCIAL SERVICES,DIRECT SOCIAL SERVICES,09-Aug-2018,215489,Care In Wales Limited T/A Care in the Vale,708.87,Revenue
DIRECT SOCIAL SERVICES,DIRECT SOCIAL SERVICES,09-Aug-2018,215489,Care In Wales Limited T/A Care in the Vale,620.83,Revenue
DIRECT SOCIAL SERVICES,DIRECT SOCIAL SERVICES,09-Aug-2018,215489,Care In Wales Limited T/A Care in the Vale,637.71,Revenue
DIRECT SOCIAL SERVICES,DIRECT SOCIAL SERVICES,09-Aug-2018,215489,Care In Wales Limited T/A Care in the Vale,538.31,Revenue
DIRECT SOCIAL SERVICES,DIRECT SOCIAL SERVICES,09-Aug-2018,215489,Care In Wales Limited T/A Care in the Vale,696.19,Revenue
DIRECT SOCIAL SERVICES,DIRECT SOCIAL SERVICES,09-Aug-2018,215489,Care In Wales Limited T/A Care in the Vale,595.62,Revenue
DIRECT SOCIAL SERVICES,DIRECT SOCIAL SERVICES,09-Aug-2018,215489,Care In Wales Limited T/A Care in the Vale,622.72,Revenue
DIRECT SOCIAL SERVICES,DIRECT SOCIAL SERVICES,09-Aug-2018,215489,Care In Wales Limited T/A Care in the Vale,781.05,Revenue
DIRECT SOCIAL SERVICES,DIRECT SOCIAL SERVICES,09-Aug-2018,215489,Care In Wales Limited T/A Care in the Vale,670.84,Revenue
DIRECT SOCIAL SERVICES,DIRECT SOCIAL SERVICES,09-Aug-2018,215489,GJ Care & Training Limited,559.02,Revenue
DIRECT SOCIAL SERVICES,DIRECT SOCIAL SERVICES,09-Aug-2018,215489,GJ Care & Training Limited,618.26,Revenue
DIRECT SOCIAL SERVICES,DIRECT SOCIAL SERVICES,09-Aug-2018,215489,Hallows Care Limited T/A Hallows Care,690.95,Revenue
DIRECT SOCIAL SERVICES,DIRECT SOCIAL SERVICES,09-Aug-2018,215489,Hallows Care Limited T/A Hallows Care,635.32,Revenue
DIRECT SOCIAL SERVICES,DIRECT SOCIAL SERVICES,09-Aug-2018,215489,Hallows Care Limited T/A Hallows Care,618.29,Revenue
DIRECT SOCIAL SERVICES,DIRECT SOCIAL SERVICES,09-Aug-2018,215489,Hallows Care Limited T/A Hallows Care,608.35,Revenue
DIRECT SOCIAL SERVICES,DIRECT SOCIAL SERVICES,09-Aug-2018,216179,Care In Wales Limited T/A Care in the Vale,565.67,Revenue
DIRECT SOCIAL SERVICES,DIRECT SOCIAL SERVICES,09-Aug-2018,216179,Hallows Care Limited T/A Hallows Care,597.79,Revenue
DIRECT SOCIAL SERVICES,DIRECT SOCIAL SERVICES,09-Aug-2018,217909,1st Grade Care Limited,676.70,Revenue
DIRECT SOCIAL SERVICES,DIRECT SOCIAL SERVICES,09-Aug-2018,217909,GJ Care & Training Limited,699.54,Revenue
DIRECT SOCIAL SERVICES,DIRECT SOCIAL SERVICES,09-Aug-2018,218321,GJ Care & Training Limited,571.20,Revenue
DIRECT SOCIAL SERVICES,DIRECT SOCIAL SERVICES,09-Aug-2018,218419,Care In Wales Limited T/A Care in the Vale,672.26,Revenue
DIRECT SOCIAL SERVICES,DIRECT SOCIAL SERVICES,09-Aug-2018,218419,Care In Wales Limited T/A Care in the Vale,666.69,Revenue
DIRECT SOCIAL SERVICES,DIRECT SOCIAL SERVICES,09-Aug-2018,218419,Care In Wales Limited T/A Care in the Vale,677.98,Revenue
DIRECT LEARNING AND SKILLS,DIRECT LEARNING AND SKILLS,09-Aug-2018,101047,CHG-MERIDIAN Computer Leasing UK Limited,"2,280.00",Revenue
DIRECT LEARNING AND SKILLS,DIRECT LEARNING AND SKILLS,09-Aug-2018,101047,CHG-MERIDIAN Computer Leasing UK Limited,"1,104.60",Revenue
DIRECT SOCIAL SERVICES,DIRECT SOCIAL SERVICES,09-Aug-2018,209157,Yogi Communications Limited,595.00,Revenue
DIRECT SOCIAL SERVICES,DIRECT SOCIAL SERVICES,09-Aug-2018,215489,Cardiff Homecare Limited,708.18,Revenue
DIRECT SOCIAL SERVICES,DIRECT SOCIAL SERVICES,09-Aug-2018,215489,Cardiff Homecare Limited,766.92,Revenue
DIRECT SOCIAL SERVICES,DIRECT SOCIAL SERVICES,09-Aug-2018,217909,Everycare (Cardiff) Limited,822.12,Revenue
DIRECT ENVIRONMENT AND HOUSING,DIRECT ENVIRONMENT AND HOUSING,09-Aug-2018,303931,Taylor Decorating Limited,650.00,Revenue
DIRECT ENVIRONMENT AND HOUSING,DIRECT ENVIRONMENT AND HOUSING,09-Aug-2018,303950,ADC Fire Systems Limited,756.00,Revenue
DIRECT ENVIRONMENT AND HOUSING,DIRECT ENVIRONMENT AND HOUSING,09-Aug-2018,304103,AFT Group (Wales) Limited T/A Advanced Fire Technologies Limited,726.97,Revenue
DIRECT ENVIRONMENT AND HOUSING,DIRECT ENVIRONMENT AND HOUSING,09-Aug-2018,325344,Aber Wrought Iron Limited,"1,850.00",Revenue
DIRECT ENVIRONMENT AND HOUSING,DIRECT ENVIRONMENT AND HOUSING,09-Aug-2018,333013,Ace Site Services (UK) Limited,720.00,Revenue
DIRECT ENVIRONMENT AND HOUSING,DIRECT ENVIRONMENT AND HOUSING,09-Aug-2018,333154,The Firewood Company (UK) Limited T/A Esa Tree Care,"2,100.00",Revenue
DIRECT ENVIRONMENT AND HOUSING,DIRECT ENVIRONMENT AND HOUSING,09-Aug-2018,354037,Jam Creative Studios Limited,"2,646.00",Revenue
DIRECT ENVIRONMENT AND HOUSING,DIRECT ENVIRONMENT AND HOUSING,09-Aug-2018,356021,Chepstow Construction Equipment Limited,"12,600.00",Revenue
DIRECT MANAGING DIRECTOR AND RESOURCES,DIRECT MANAGING DIRECTOR AND RESOURCES,09-Aug-2018,422130,Circuit Electrical Testing Limited,"1,482.00",Revenue
DIRECT CAPITAL VISIBLE AND HOUSING SERVICES,DIRECT CAPITAL VISIBLE AND HOUSING SERVICES,09-Aug-2018,832257,Waveley Fire & Security Limited,"4,564.00",Capital
DIRECT CAPITAL VISIBLE AND HOUSING SERVICES,DIRECT CAPITAL VISIBLE AND HOUSING SERVICES,09-Aug-2018,842067,Fusion Electrical & Building Services Engineering Limited,"1,386.00",Capital
DIRECT CAPITAL VISIBLE AND HOUSING SERVICES,DIRECT CAPITAL VISIBLE AND HOUSING SERVICES,09-Aug-2018,842067,Fusion Electrical & Building Services Engineering Limited,"1,851.30",Capital
DIRECT CAPITAL VISIBLE AND HOUSING SERVICES,DIRECT CAPITAL VISIBLE AND HOUSING SERVICES,09-Aug-2018,842182,Warrior Doors Limited,"9,553.69",Capital
DIRECT CAPITAL VISIBLE AND HOUSING SERVICES,DIRECT CAPITAL VISIBLE AND HOUSING SERVICES,09-Aug-2018,842182,Warrior Doors Limited,"9,553.69",Capital
DIRECT SOCIAL SERVICES,DIRECT SOCIAL SERVICES,09-Aug-2018,215489,Rhondda Cynon Taff County Borough Council,"1,400.29",Revenue
DIRECT ENVIRONMENT AND HOUSING,DIRECT ENVIRONMENT AND HOUSING,09-Aug-2018,303931,Michael Bryl & Ptn T/A CW Facilities Management,"1,461.00",Revenue
DIRECT SOCIAL SERVICES,DIRECT SOCIAL SERVICES,09-Aug-2018,260050,Bacs only - HM Court & Tribunals Service,"55,700.00",Revenue
DIRECT SOCIAL SERVICES,DIRECT SOCIAL SERVICES,09-Aug-2018,260500,Cardiff Met Company Limited,"1,042.80",Revenue
DIRECT ENVIRONMENT AND HOUSING,DIRECT ENVIRONMENT AND HOUSING,09-Aug-2018,365763,Valuation Office Agency,"1,450.00",Revenue
DIRECT MANAGING DIRECTOR AND RESOURCES,DIRECT MANAGING DIRECTOR AND RESOURCES,09-Aug-2018,140131,Randstad Solutions Limited,"125,330.87",Revenue
DIRECT MANAGING DIRECTOR AND RESOURCES,DIRECT MANAGING DIRECTOR AND RESOURCES,09-Aug-2018,140131,Randstad Solutions Limited,"118,371.81",Revenue
DIRECT MANAGING DIRECTOR AND RESOURCES,DIRECT MANAGING DIRECTOR AND RESOURCES,09-Aug-2018,140131,Randstad Solutions Limited,"118,875.82",Revenue
DIRECT ENVIRONMENT AND HOUSING,DIRECT ENVIRONMENT AND HOUSING,09-Aug-2018,405305,James Andrews Recruitment Solutions Limited,790.13,Revenue
DIRECT SOCIAL SERVICES,DIRECT SOCIAL SERVICES,09-Aug-2018,216179,Voyage 1 Limited t/a Falcons Rest & Poachers Cottage,"1,438.67",Revenue
DIRECT SOCIAL SERVICES,DIRECT SOCIAL SERVICES,09-Aug-2018,216179,Voyage 1 Limited t/a Falcons Rest & Poachers Cottage,"1,438.67",Revenue
DIRECT LEARNING AND SKILLS,DIRECT LEARNING AND SKILLS,09-Aug-2018,101047,Julian Heinam t/a JV Tree Services,525.00,Revenue
DIRECT SOCIAL SERVICES,DIRECT SOCIAL SERVICES,09-Aug-2018,260500,Mary Jones t/a Assessment Consultancy Training,"1,941.60",Revenue
DIRECT ENVIRONMENT AND HOUSING,DIRECT ENVIRONMENT AND HOUSING,09-Aug-2018,405100,Susan Shepherd t/a KKG Properties,"1,008.83",Revenue
DIRECT SOCIAL SERVICES,DIRECT SOCIAL SERVICES,09-Aug-2018,215011,Care & Repair Cardiff and the Vale,"3,508.25",Revenue
DIRECT ENVIRONMENT AND HOUSING,DIRECT ENVIRONMENT AND HOUSING,09-Aug-2018,341066,Royal National Lifeboat Institution,"12,184.38",Revenue
DIRECT LEARNING AND SKILLS,DIRECT LEARNING AND SKILLS,10-Aug-2018,102703,Hogrefe Limited,"1,573.00",Revenue
DIRECT ENVIRONMENT AND HOUSING,DIRECT ENVIRONMENT AND HOUSING,10-Aug-2018,130511,KS Barry (Plumbing & Heating) Limited,"1,248.79",Revenue
DIRECT LEARNING AND SKILLS,DIRECT LEARNING AND SKILLS,10-Aug-2018,154400,ABM Catering for Leisure Limited,"30,312.50",Revenue
DIRECT LEARNING AND SKILLS,DIRECT LEARNING AND SKILLS,10-Aug-2018,154401,ABM Catering for Leisure Limited,"2,687.50",Revenue
DIRECT SOCIAL SERVICES,DIRECT SOCIAL SERVICES,10-Aug-2018,216731,CJ Contract Travel Services Limited,570.00,Revenue
DIRECT ENVIRONMENT AND HOUSING,DIRECT ENVIRONMENT AND HOUSING,10-Aug-2018,308431,Unilink Finance Limited,"6,713.75",Revenue
DIRECT ENVIRONMENT AND HOUSING,DIRECT ENVIRONMENT AND HOUSING,10-Aug-2018,325750,Standard Signs & Traffic Systems Limited,"7,096.00",Revenue
DIRECT ENVIRONMENT AND HOUSING,DIRECT ENVIRONMENT AND HOUSING,10-Aug-2018,333154,The Firewood Company (UK) Limited T/A Esa Tree Care,"2,100.00",Revenue
DIRECT ENVIRONMENT AND HOUSING,DIRECT ENVIRONMENT AND HOUSING,10-Aug-2018,365786,Easyway Minicoach Hire Limited,"7,580.08",Revenue
DIRECT ENVIRONMENT AND HOUSING,DIRECT ENVIRONMENT AND HOUSING,10-Aug-2018,365791,Easyway Minicoach Hire Limited,"9,958.00",Revenue
DIRECT ENVIRONMENT AND HOUSING,DIRECT ENVIRONMENT AND HOUSING,10-Aug-2018,400052,Royal Mail Group Limited,"1,318.80",Revenue
DIRECT ENVIRONMENT AND HOUSING,DIRECT ENVIRONMENT AND HOUSING,10-Aug-2018,405100,L Mustoe Limited,762.24,Revenue
DIRECT ENVIRONMENT AND HOUSING,DIRECT ENVIRONMENT AND HOUSING,10-Aug-2018,405301,Gofal A Chymorth Gwalia Cyf,"7,801.36",Revenue
DIRECT ENVIRONMENT AND HOUSING,DIRECT ENVIRONMENT AND HOUSING,10-Aug-2018,405301,Gofal A Chymorth Gwalia Cyf,"2,799.54",Revenue
DIRECT ENVIRONMENT AND HOUSING,DIRECT ENVIRONMENT AND HOUSING,10-Aug-2018,405301,Gofal A Chymorth Gwalia Cyf,"1,566.51",Revenue
DIRECT ENVIRONMENT AND HOUSING,DIRECT ENVIRONMENT AND HOUSING,10-Aug-2018,405301,Gofal A Chymorth Gwalia Cyf,"1,566.51",Revenue
DIRECT ENVIRONMENT AND HOUSING,DIRECT ENVIRONMENT AND HOUSING,10-Aug-2018,405301,Gofal A Chymorth Gwalia Cyf,"22,739.74",Revenue
DIRECT ENVIRONMENT AND HOUSING,DIRECT ENVIRONMENT AND HOUSING,10-Aug-2018,405301,Gofal A Chymorth Gwalia Cyf,"10,731.20",Revenue
DIRECT ENVIRONMENT AND HOUSING,DIRECT ENVIRONMENT AND HOUSING,10-Aug-2018,405301,Llamau Limited,"9,903.72",Revenue
DIRECT ENVIRONMENT AND HOUSING,DIRECT ENVIRONMENT AND HOUSING,10-Aug-2018,405301,Llamau Limited,"4,248.24",Revenue
DIRECT ENVIRONMENT AND HOUSING,DIRECT ENVIRONMENT AND HOUSING,10-Aug-2018,405301,Llamau Limited,"9,781.98",Revenue
DIRECT ENVIRONMENT AND HOUSING,DIRECT ENVIRONMENT AND HOUSING,10-Aug-2018,405301,Llamau Limited,"6,844.80",Revenue
DIRECT ENVIRONMENT AND HOUSING,DIRECT ENVIRONMENT AND HOUSING,10-Aug-2018,405301,Llamau Limited,"6,844.80",Revenue
DIRECT ENVIRONMENT AND HOUSING,DIRECT ENVIRONMENT AND HOUSING,10-Aug-2018,405301,Llamau Limited,"10,761.42",Revenue
DIRECT ENVIRONMENT AND HOUSING,DIRECT ENVIRONMENT AND HOUSING,10-Aug-2018,405301,Pobl Group Limited T/A Reach Supported Living,"17,764.24",Revenue
DIRECT MANAGING DIRECTOR AND RESOURCES,DIRECT MANAGING DIRECTOR AND RESOURCES,10-Aug-2018,420212,Bottomline Technologies Limited,750.00,Revenue
DIRECT MANAGING DIRECTOR AND RESOURCES,DIRECT MANAGING DIRECTOR AND RESOURCES,10-Aug-2018,421230,Capita Business Services Limited,600.00,Revenue
DIRECT MANAGING DIRECTOR AND RESOURCES,DIRECT MANAGING DIRECTOR AND RESOURCES,10-Aug-2018,421230,Computacenter (UK) Limited,"1,100.21",Revenue
DIRECT MANAGING DIRECTOR AND RESOURCES,DIRECT MANAGING DIRECTOR AND RESOURCES,10-Aug-2018,440530,Northgate Public Services (UK) Limited,"1,154.30",Revenue
DIRECT CAPITAL VISIBLE AND HOUSING SERVICES,DIRECT CAPITAL VISIBLE AND HOUSING SERVICES,10-Aug-2018,831216,Peter Brett Associates LLP,"10,380.84",Capital
DIRECT CAPITAL VISIBLE AND HOUSING SERVICES,DIRECT CAPITAL VISIBLE AND HOUSING SERVICES,10-Aug-2018,842068,SMK Building & Maintenance Limited,"132,037.35",Capital
DIRECT CAPITAL VISIBLE AND HOUSING SERVICES,DIRECT CAPITAL VISIBLE AND HOUSING SERVICES,10-Aug-2018,842077,SMK Building & Maintenance Limited,"70,031.85",Capital
DIRECT CAPITAL VISIBLE AND HOUSING SERVICES,DIRECT CAPITAL VISIBLE AND HOUSING SERVICES,10-Aug-2018,842145,SMK Building & Maintenance Limited,"106,929.11",Capital
DIRECT ENVIRONMENT AND HOUSING,DIRECT ENVIRONMENT AND HOUSING,10-Aug-2018,405301,Cardiff County Council,"5,580.00",Revenue
DIRECT MANAGING DIRECTOR AND RESOURCES,DIRECT MANAGING DIRECTOR AND RESOURCES,10-Aug-2018,471909,Cardiff County Council,"39,618.48",Revenue
DIRECT SOCIAL SERVICES,DIRECT SOCIAL SERVICES,10-Aug-2018,217691,Samantha Wrightson,"1,452.00",Revenue
DIRECT ENVIRONMENT AND HOUSING,DIRECT ENVIRONMENT AND HOUSING,10-Aug-2018,323686,Hays Specialist Recruitment Limited,"1,505.25",Revenue
DIRECT ENVIRONMENT AND HOUSING,DIRECT ENVIRONMENT AND HOUSING,10-Aug-2018,407106,Building Recruitment Company Limited,761.17,Revenue
DIRECT ENVIRONMENT AND HOUSING,DIRECT ENVIRONMENT AND HOUSING,10-Aug-2018,407106,Building Recruitment Company Limited,755.42,Revenue
DIRECT ENVIRONMENT AND HOUSING,DIRECT ENVIRONMENT AND HOUSING,10-Aug-2018,407106,James Andrews Recruitment Solutions Limited,777.00,Revenue
DIRECT ENVIRONMENT AND HOUSING,DIRECT ENVIRONMENT AND HOUSING,10-Aug-2018,407106,James Andrews Recruitment Solutions Limited,775.40,Revenue
DIRECT MANAGING DIRECTOR AND RESOURCES,DIRECT MANAGING DIRECTOR AND RESOURCES,10-Aug-2018,422160,Hays Specialist Recruitment Limited,654.08,Revenue
DIRECT ENVIRONMENT AND HOUSING,DIRECT ENVIRONMENT AND HOUSING,10-Aug-2018,405301,Hafod Care Association Limited,"3,024.88",Revenue
DIRECT ENVIRONMENT AND HOUSING,DIRECT ENVIRONMENT AND HOUSING,10-Aug-2018,405301,Hafod Care Association Limited,"5,028.00",Revenue
DIRECT ENVIRONMENT AND HOUSING,DIRECT ENVIRONMENT AND HOUSING,10-Aug-2018,405301,Hafod Care Association Limited,"10,543.80",Revenue
DIRECT ENVIRONMENT AND HOUSING,DIRECT ENVIRONMENT AND HOUSING,10-Aug-2018,319010,Paul R Curtis t/a PRC Plant Cleaning,670.00,Revenue
DIRECT ENVIRONMENT AND HOUSING,DIRECT ENVIRONMENT AND HOUSING,10-Aug-2018,319010,Paul R Curtis t/a PRC Plant Cleaning,705.00,Revenue
DIRECT ENVIRONMENT AND HOUSING,DIRECT ENVIRONMENT AND HOUSING,10-Aug-2018,405301,Atal Y Fro,"7,032.60",Revenue
DIRECT ENVIRONMENT AND HOUSING,DIRECT ENVIRONMENT AND HOUSING,10-Aug-2018,405301,Atal Y Fro,"7,292.75",Revenue
DIRECT ENVIRONMENT AND HOUSING,DIRECT ENVIRONMENT AND HOUSING,10-Aug-2018,405301,Atal Y Fro,"3,101.70",Revenue
DIRECT ENVIRONMENT AND HOUSING,DIRECT ENVIRONMENT AND HOUSING,10-Aug-2018,405301,Gofal Cymru,"3,946.72",Revenue
DIRECT ENVIRONMENT AND HOUSING,DIRECT ENVIRONMENT AND HOUSING,10-Aug-2018,405301,Gofal Cymru,"3,052.85",Revenue
DIRECT ENVIRONMENT AND HOUSING,DIRECT ENVIRONMENT AND HOUSING,10-Aug-2018,405301,Gofal Cymru,"2,808.60",Revenue
DIRECT ENVIRONMENT AND HOUSING,DIRECT ENVIRONMENT AND HOUSING,10-Aug-2018,405301,Gofal Cymru,"4,381.60",Revenue
DIRECT ENVIRONMENT AND HOUSING,DIRECT ENVIRONMENT AND HOUSING,10-Aug-2018,405301,Gofal Cymru,"4,871.25",Revenue
DIRECT ENVIRONMENT AND HOUSING,DIRECT ENVIRONMENT AND HOUSING,10-Aug-2018,405301,Taff Housing Association,"4,933.65",Revenue
DIRECT ENVIRONMENT AND HOUSING,DIRECT ENVIRONMENT AND HOUSING,10-Aug-2018,405301,Taff Housing Association,"11,580.10",Revenue
DIRECT ENVIRONMENT AND HOUSING,DIRECT ENVIRONMENT AND HOUSING,10-Aug-2018,405301,Taff Housing Association,"2,938.48",Revenue
DIRECT SOCIAL SERVICES,DIRECT SOCIAL SERVICES,13-Aug-2018,215489,Cardiff & Vale Caring 4 U Limited T/A Caremark Cardiff & The Vale of Glamorgan,735.53,Revenue
DIRECT SOCIAL SERVICES,DIRECT SOCIAL SERVICES,13-Aug-2018,215489,Cardiff & Vale Caring 4 U Limited T/A Caremark Cardiff & The Vale of Glamorgan,542.50,Revenue
DIRECT SOCIAL SERVICES,DIRECT SOCIAL SERVICES,13-Aug-2018,215489,Cardiff & Vale Caring 4 U Limited T/A Caremark Cardiff & The Vale of Glamorgan,794.74,Revenue
DIRECT SOCIAL SERVICES,DIRECT SOCIAL SERVICES,13-Aug-2018,215489,Cardiff & Vale Caring 4 U Limited T/A Caremark Cardiff & The Vale of Glamorgan,742.62,Revenue
DIRECT SOCIAL SERVICES,DIRECT SOCIAL SERVICES,13-Aug-2018,215489,Cardiff & Vale Caring 4 U Limited T/A Caremark Cardiff & The Vale of Glamorgan,"1,736.00",Revenue
DIRECT SOCIAL SERVICES,DIRECT SOCIAL SERVICES,13-Aug-2018,215489,Cardiff & Vale Caring 4 U Limited T/A Caremark Cardiff & The Vale of Glamorgan,592.27,Revenue
DIRECT SOCIAL SERVICES,DIRECT SOCIAL SERVICES,13-Aug-2018,215489,Cardiff & Vale Caring 4 U Limited T/A Caremark Cardiff & The Vale of Glamorgan,703.86,Revenue
DIRECT SOCIAL SERVICES,DIRECT SOCIAL SERVICES,13-Aug-2018,215489,Cardiff & Vale Caring 4 U Limited T/A Caremark Cardiff & The Vale of Glamorgan,500.38,Revenue
DIRECT SOCIAL SERVICES,DIRECT SOCIAL SERVICES,13-Aug-2018,215489,Cardiff & Vale Caring 4 U Limited T/A Caremark Cardiff & The Vale of Glamorgan,735.53,Revenue
DIRECT SOCIAL SERVICES,DIRECT SOCIAL SERVICES,13-Aug-2018,215489,Cardiff & Vale Caring 4 U Limited T/A Caremark Cardiff & The Vale of Glamorgan,542.50,Revenue
DIRECT SOCIAL SERVICES,DIRECT SOCIAL SERVICES,13-Aug-2018,215489,Cardiff & Vale Caring 4 U Limited T/A Caremark Cardiff & The Vale of Glamorgan,794.74,Revenue
DIRECT SOCIAL SERVICES,DIRECT SOCIAL SERVICES,13-Aug-2018,215489,Cardiff & Vale Caring 4 U Limited T/A Caremark Cardiff & The Vale of Glamorgan,742.62,Revenue
DIRECT SOCIAL SERVICES,DIRECT SOCIAL SERVICES,13-Aug-2018,215489,Cardiff & Vale Caring 4 U Limited T/A Caremark Cardiff & The Vale of Glamorgan,703.86,Revenue
DIRECT SOCIAL SERVICES,DIRECT SOCIAL SERVICES,13-Aug-2018,215489,Cardiff & Vale Caring 4 U Limited T/A Caremark Cardiff & The Vale of Glamorgan,500.38,Revenue
DIRECT SOCIAL SERVICES,DIRECT SOCIAL SERVICES,13-Aug-2018,215489,Nestor Primecare Services Limited t/a Allied Healthcare,575.20,Revenue
DIRECT SOCIAL SERVICES,DIRECT SOCIAL SERVICES,13-Aug-2018,215489,Nestor Primecare Services Limited t/a Allied Healthcare,532.07,Revenue
DIRECT SOCIAL SERVICES,DIRECT SOCIAL SERVICES,13-Aug-2018,216179,Nestor Primecare Services Limited t/a Allied Healthcare,723.89,Revenue
DIRECT LEARNING AND SKILLS,DIRECT LEARNING AND SKILLS,13-Aug-2018,101007,Consolidated Billing EDI - EDF,524.56,Revenue
DIRECT LEARNING AND SKILLS,DIRECT LEARNING AND SKILLS,13-Aug-2018,101025,Howden Joinery Limited,819.69,Revenue
DIRECT LEARNING AND SKILLS,DIRECT LEARNING AND SKILLS,13-Aug-2018,101025,Ikea Limited T/A Ikea Business,"1,552.92",Revenue
DIRECT LEARNING AND SKILLS,DIRECT LEARNING AND SKILLS,13-Aug-2018,101031,Consolidated Billing EDI - EDF,575.61,Revenue
DIRECT LEARNING AND SKILLS,DIRECT LEARNING AND SKILLS,13-Aug-2018,101032,Consolidated Billing EDI - EDF,715.12,Revenue
DIRECT LEARNING AND SKILLS,DIRECT LEARNING AND SKILLS,13-Aug-2018,101075,Consolidated Billing EDI - EDF,578.76,Revenue
DIRECT LEARNING AND SKILLS,DIRECT LEARNING AND SKILLS,13-Aug-2018,101094,Consolidated Billing EDI - EDF,728.88,Revenue
DIRECT LEARNING AND SKILLS,DIRECT LEARNING AND SKILLS,13-Aug-2018,101095,Consolidated Billing EDI - EDF,523.57,Revenue
DIRECT LEARNING AND SKILLS,DIRECT LEARNING AND SKILLS,13-Aug-2018,101145,Consolidated Billing EDI - EDF,527.15,Revenue
DIRECT LEARNING AND SKILLS,DIRECT LEARNING AND SKILLS,13-Aug-2018,101171,Consolidated Billing EDI - EDF,793.18,Revenue
DIRECT LEARNING AND SKILLS,DIRECT LEARNING AND SKILLS,13-Aug-2018,101173,Consolidated Billing EDI - EDF,503.69,Revenue
DIRECT LEARNING AND SKILLS,DIRECT LEARNING AND SKILLS,13-Aug-2018,101195,Consolidated Billing EDI - EDF,842.20,Revenue
DIRECT LEARNING AND SKILLS,DIRECT LEARNING AND SKILLS,13-Aug-2018,101202,Consolidated Billing EDI - EDF,589.40,Revenue
DIRECT LEARNING AND SKILLS,DIRECT LEARNING AND SKILLS,13-Aug-2018,101213,Consolidated Billing EDI - EDF,501.55,Revenue
DIRECT LEARNING AND SKILLS,DIRECT LEARNING AND SKILLS,13-Aug-2018,101221,Consolidated Billing EDI - EDF,815.64,Revenue
DIRECT LEARNING AND SKILLS,DIRECT LEARNING AND SKILLS,13-Aug-2018,101221,Consolidated Billing EDI - EDF,756.39,Revenue
DIRECT LEARNING AND SKILLS,DIRECT LEARNING AND SKILLS,13-Aug-2018,101261,Consolidated Billing EDI - EDF,610.19,Revenue
DIRECT LEARNING AND SKILLS,DIRECT LEARNING AND SKILLS,13-Aug-2018,101304,Consolidated Billing EDI - EDF,792.36,Revenue
DIRECT LEARNING AND SKILLS,DIRECT LEARNING AND SKILLS,13-Aug-2018,101308,Consolidated Billing EDI - EDF,940.18,Revenue
DIRECT LEARNING AND SKILLS,DIRECT LEARNING AND SKILLS,13-Aug-2018,101315,Consolidated Billing EDI - EDF,780.59,Revenue
DIRECT LEARNING AND SKILLS,DIRECT LEARNING AND SKILLS,13-Aug-2018,104381,Consolidated Billing EDI - EDF,"1,090.12",Revenue
DIRECT LEARNING AND SKILLS,DIRECT LEARNING AND SKILLS,13-Aug-2018,104381,Consolidated Billing EDI - EDF,"1,403.97",Revenue
DIRECT LEARNING AND SKILLS,DIRECT LEARNING AND SKILLS,13-Aug-2018,104381,Consolidated Billing EDI - EDF,"1,264.23",Revenue
DIRECT LEARNING AND SKILLS,DIRECT LEARNING AND SKILLS,13-Aug-2018,120059,Insight Direct (UK) Limited,609.60,Revenue
DIRECT LEARNING AND SKILLS,DIRECT LEARNING AND SKILLS,13-Aug-2018,120059,Insight Direct (UK) Limited,"1,343.44",Revenue
DIRECT LEARNING AND SKILLS,DIRECT LEARNING AND SKILLS,13-Aug-2018,120080,Askews & Holts Library Services Limited,525.12,Revenue
DIRECT SOCIAL SERVICES,DIRECT SOCIAL SERVICES,13-Aug-2018,212731,Consolidated Billing EDI - EDF,901.88,Revenue
DIRECT SOCIAL SERVICES,DIRECT SOCIAL SERVICES,13-Aug-2018,212741,Consolidated Billing EDI - EDF,877.94,Revenue
DIRECT SOCIAL SERVICES,DIRECT SOCIAL SERVICES,13-Aug-2018,212791,Consolidated Billing EDI - EDF,"1,003.79",Revenue
DIRECT SOCIAL SERVICES,DIRECT SOCIAL SERVICES,13-Aug-2018,215401,Consolidated Billing EDI - EDF,555.99,Revenue
DIRECT SOCIAL SERVICES,DIRECT SOCIAL SERVICES,13-Aug-2018,215803,Consolidated Billing EDI - EDF,707.67,Revenue
DIRECT SOCIAL SERVICES,DIRECT SOCIAL SERVICES,13-Aug-2018,216731,CJ Contract Travel Services Limited,570.00,Revenue
DIRECT SOCIAL SERVICES,DIRECT SOCIAL SERVICES,13-Aug-2018,216731,CJ Contract Travel Services Limited,570.00,Revenue
DIRECT SOCIAL SERVICES,DIRECT SOCIAL SERVICES,13-Aug-2018,217909,Everycare (Cardiff) Limited,673.32,Revenue
DIRECT SOCIAL SERVICES,DIRECT SOCIAL SERVICES,13-Aug-2018,260130,Llamau Limited,677.96,Revenue
DIRECT ENVIRONMENT AND HOUSING,DIRECT ENVIRONMENT AND HOUSING,13-Aug-2018,300645,Consolidated Billing EDI - EDF,"39,781.42",Revenue
DIRECT ENVIRONMENT AND HOUSING,DIRECT ENVIRONMENT AND HOUSING,13-Aug-2018,301062,G.P.H.I.T (Integrated Services) Limited,540.00,Revenue
DIRECT ENVIRONMENT AND HOUSING,DIRECT ENVIRONMENT AND HOUSING,13-Aug-2018,319010,Car Hire (Days of Swansea) Limited T/A Days Rental,595.00,Revenue
DIRECT ENVIRONMENT AND HOUSING,DIRECT ENVIRONMENT AND HOUSING,13-Aug-2018,325202,Consortio Security Limited,"3,170.50",Revenue
DIRECT ENVIRONMENT AND HOUSING,DIRECT ENVIRONMENT AND HOUSING,13-Aug-2018,325207,Consolidated Billing EDI - EDF,594.63,Revenue
DIRECT ENVIRONMENT AND HOUSING,DIRECT ENVIRONMENT AND HOUSING,13-Aug-2018,325312,Glamorgan White Lining Limited,"4,317.00",Revenue
DIRECT ENVIRONMENT AND HOUSING,DIRECT ENVIRONMENT AND HOUSING,13-Aug-2018,325342,Glamorgan White Lining Limited,612.70,Revenue
DIRECT ENVIRONMENT AND HOUSING,DIRECT ENVIRONMENT AND HOUSING,13-Aug-2018,325345,Wolseley UK Limited,503.10,Revenue
DIRECT ENVIRONMENT AND HOUSING,DIRECT ENVIRONMENT AND HOUSING,13-Aug-2018,325852,Glamorgan White Lining Limited,"2,006.64",Revenue
DIRECT ENVIRONMENT AND HOUSING,DIRECT ENVIRONMENT AND HOUSING,13-Aug-2018,325852,Glamorgan White Lining Limited,786.21,Revenue
DIRECT ENVIRONMENT AND HOUSING,DIRECT ENVIRONMENT AND HOUSING,13-Aug-2018,325892,Centregreat Limited,"1,705.88",Revenue
DIRECT ENVIRONMENT AND HOUSING,DIRECT ENVIRONMENT AND HOUSING,13-Aug-2018,325894,Glamorgan White Lining Limited,"3,248.00",Revenue
DIRECT ENVIRONMENT AND HOUSING,DIRECT ENVIRONMENT AND HOUSING,13-Aug-2018,325897,Glasdon UK Limited,"1,500.00",Revenue
DIRECT ENVIRONMENT AND HOUSING,DIRECT ENVIRONMENT AND HOUSING,13-Aug-2018,333218,Consolidated Billing EDI - EDF,755.61,Revenue
DIRECT ENVIRONMENT AND HOUSING,DIRECT ENVIRONMENT AND HOUSING,13-Aug-2018,333500,Consolidated Billing EDI - EDF,951.41,Revenue
DIRECT ENVIRONMENT AND HOUSING,DIRECT ENVIRONMENT AND HOUSING,13-Aug-2018,333500,Ustigate Limited,"1,958.00",Revenue
DIRECT ENVIRONMENT AND HOUSING,DIRECT ENVIRONMENT AND HOUSING,13-Aug-2018,333510,Ace Site Services (UK) Limited,"1,430.00",Revenue
DIRECT ENVIRONMENT AND HOUSING,DIRECT ENVIRONMENT AND HOUSING,13-Aug-2018,341061,Consolidated Billing EDI - EDF,690.37,Revenue
DIRECT ENVIRONMENT AND HOUSING,DIRECT ENVIRONMENT AND HOUSING,13-Aug-2018,341260,Consolidated Billing EDI - EDF,"3,766.17",Revenue
DIRECT ENVIRONMENT AND HOUSING,DIRECT ENVIRONMENT AND HOUSING,13-Aug-2018,350740,Top Table Catering Hire Limited,622.20,Revenue
DIRECT ENVIRONMENT AND HOUSING,DIRECT ENVIRONMENT AND HOUSING,13-Aug-2018,352718,Consolidated Billing EDI - EDF,843.17,Revenue
DIRECT ENVIRONMENT AND HOUSING,DIRECT ENVIRONMENT AND HOUSING,13-Aug-2018,356020,Consolidated Billing EDI - EDF,"1,145.57",Revenue
DIRECT ENVIRONMENT AND HOUSING,DIRECT ENVIRONMENT AND HOUSING,13-Aug-2018,365786,ESP Systex Limited,815.00,Revenue
DIRECT ENVIRONMENT AND HOUSING,DIRECT ENVIRONMENT AND HOUSING,13-Aug-2018,365787,First Cymru Buses Limited,"3,597.20",Revenue
DIRECT ENVIRONMENT AND HOUSING,DIRECT ENVIRONMENT AND HOUSING,13-Aug-2018,407108,Food Lovers Delight Limited,"1,850.00",Revenue
DIRECT ENVIRONMENT AND HOUSING,DIRECT ENVIRONMENT AND HOUSING,13-Aug-2018,407150,Consolidated Billing EDI - EDF,618.34,Revenue
DIRECT ENVIRONMENT AND HOUSING,DIRECT ENVIRONMENT AND HOUSING,13-Aug-2018,407152,Barry Training Services Limited,675.00,Revenue
DIRECT MANAGING DIRECTOR AND RESOURCES,DIRECT MANAGING DIRECTOR AND RESOURCES,13-Aug-2018,422100,Consolidated Billing EDI - EDF,"7,250.06",Revenue
DIRECT MANAGING DIRECTOR AND RESOURCES,DIRECT MANAGING DIRECTOR AND RESOURCES,13-Aug-2018,422120,Consolidated Billing EDI - EDF,"2,455.67",Revenue
DIRECT MANAGING DIRECTOR AND RESOURCES,DIRECT MANAGING DIRECTOR AND RESOURCES,13-Aug-2018,422130,Consolidated Billing EDI - EDF,"3,651.84",Revenue
DIRECT MANAGING DIRECTOR AND RESOURCES,DIRECT MANAGING DIRECTOR AND RESOURCES,13-Aug-2018,422201,Consolidated Billing EDI - EDF,"2,497.06",Revenue
DIRECT MANAGING DIRECTOR AND RESOURCES,DIRECT MANAGING DIRECTOR AND RESOURCES,13-Aug-2018,422500,Consolidated Billing EDI - EDF,582.81,Revenue
DIRECT CAPITAL LEARN AND SKILLS,DIRECT CAPITAL LEARN AND SKILLS,13-Aug-2018,812288,D & M Mechanical Engineers Limited,"1,450.00",Capital
DIRECT ENVIRONMENT AND HOUSING,DIRECT ENVIRONMENT AND HOUSING,13-Aug-2018,359453,Peter Simon Hopkins & Ptn t/a Magician4U Entertainments,"3,450.00",Revenue
DIRECT ENVIRONMENT AND HOUSING,DIRECT ENVIRONMENT AND HOUSING,13-Aug-2018,407152,Raymond Dop & Ptn t/a Dops Paint Merchants,739.94,Revenue
DIRECT ENVIRONMENT AND HOUSING,DIRECT ENVIRONMENT AND HOUSING,13-Aug-2018,365802,Bridgend College,"11,459.05",Revenue
DIRECT ENVIRONMENT AND HOUSING,DIRECT ENVIRONMENT AND HOUSING,13-Aug-2018,407118,James Andrews Recruitment Solutions Limited,"1,175.00",Revenue
DIRECT SOCIAL SERVICES,DIRECT SOCIAL SERVICES,13-Aug-2018,215489,Glamorgan Home Care Limited t/a Home Instead Senior Care,633.92,Revenue
DIRECT SOCIAL SERVICES,DIRECT SOCIAL SERVICES,13-Aug-2018,215489,Glamorgan Home Care Limited t/a Home Instead Senior Care,633.92,Revenue
DIRECT SOCIAL SERVICES,DIRECT SOCIAL SERVICES,13-Aug-2018,215489,Glamorgan Home Care Limited t/a Home Instead Senior Care,633.92,Revenue
DIRECT SOCIAL SERVICES,DIRECT SOCIAL SERVICES,13-Aug-2018,215489,Glamorgan Home Care Limited t/a Home Instead Senior Care,633.92,Revenue
DIRECT SOCIAL SERVICES,DIRECT SOCIAL SERVICES,13-Aug-2018,215489,Glamorgan Home Care Limited t/a Home Instead Senior Care,633.92,Revenue
DIRECT SOCIAL SERVICES,DIRECT SOCIAL SERVICES,14-Aug-2018,215489,All Saints DC Limited,694.10,Revenue
DIRECT SOCIAL SERVICES,DIRECT SOCIAL SERVICES,14-Aug-2018,215489,All Saints DC Limited,662.28,Revenue
DIRECT SOCIAL SERVICES,DIRECT SOCIAL SERVICES,14-Aug-2018,215489,All Saints DC Limited,627.96,Revenue
DIRECT SOCIAL SERVICES,DIRECT SOCIAL SERVICES,14-Aug-2018,215489,All Saints DC Limited,588.94,Revenue
DIRECT SOCIAL SERVICES,DIRECT SOCIAL SERVICES,14-Aug-2018,215489,All Saints DC Limited,669.86,Revenue
DIRECT SOCIAL SERVICES,DIRECT SOCIAL SERVICES,14-Aug-2018,215489,GJ Care & Training Limited,559.02,Revenue
DIRECT SOCIAL SERVICES,DIRECT SOCIAL SERVICES,14-Aug-2018,215489,GJ Care & Training Limited,618.26,Revenue
DIRECT SOCIAL SERVICES,DIRECT SOCIAL SERVICES,14-Aug-2018,215489,Parkrow Care Limited,568.78,Revenue
DIRECT SOCIAL SERVICES,DIRECT SOCIAL SERVICES,14-Aug-2018,215489,Parkrow Care Limited,600.48,Revenue
DIRECT SOCIAL SERVICES,DIRECT SOCIAL SERVICES,14-Aug-2018,216179,Heidi Christoforato t/a Churchfields Home Care,534.21,Revenue
DIRECT SOCIAL SERVICES,DIRECT SOCIAL SERVICES,14-Aug-2018,217909,GJ Care & Training Limited,699.54,Revenue
DIRECT SOCIAL SERVICES,DIRECT SOCIAL SERVICES,14-Aug-2018,218321,GJ Care & Training Limited,571.20,Revenue
DIRECT SOCIAL SERVICES,DIRECT SOCIAL SERVICES,14-Aug-2018,218419,Parkrow Care Limited,625.72,Revenue
DIRECT LEARNING AND SKILLS,DIRECT LEARNING AND SKILLS,14-Aug-2018,102652,Kings Monkton Independent School Limited,"10,093.00",Revenue
DIRECT LEARNING AND SKILLS,DIRECT LEARNING AND SKILLS,14-Aug-2018,102652,Kings Monkton Independent School Limited,"5,215.40",Revenue
DIRECT LEARNING AND SKILLS,DIRECT LEARNING AND SKILLS,14-Aug-2018,102652,Kings Monkton Independent School Limited,"3,863.00",Revenue
DIRECT LEARNING AND SKILLS,DIRECT LEARNING AND SKILLS,14-Aug-2018,102652,Kings Monkton Independent School Limited,"5,082.40",Revenue
DIRECT LEARNING AND SKILLS,DIRECT LEARNING AND SKILLS,14-Aug-2018,102652,Orbis Education and Care Limited,"5,552.08",Revenue
DIRECT LEARNING AND SKILLS,DIRECT LEARNING AND SKILLS,14-Aug-2018,102652,Orbis Education and Care Limited,"5,714.58",Revenue
DIRECT SOCIAL SERVICES,DIRECT SOCIAL SERVICES,14-Aug-2018,215025,Vale People First Limited,"3,792.98",Revenue
DIRECT SOCIAL SERVICES,DIRECT SOCIAL SERVICES,14-Aug-2018,215489,Funeral Services Limited,"2,899.00",Revenue
DIRECT SOCIAL SERVICES,DIRECT SOCIAL SERVICES,14-Aug-2018,215489,Grangelodge Residential Home Limited t/a Grangelodge,513.66,Revenue
DIRECT SOCIAL SERVICES,DIRECT SOCIAL SERVICES,14-Aug-2018,217541,Care Management Group Limited,"94,290.70",Revenue
DIRECT SOCIAL SERVICES,DIRECT SOCIAL SERVICES,14-Aug-2018,217909,Consensus Support Services Limited t/a Ty Machen,"2,163.85",Revenue
DIRECT SOCIAL SERVICES,DIRECT SOCIAL SERVICES,14-Aug-2018,217909,Everycare (Cardiff) Limited,822.12,Revenue
DIRECT SOCIAL SERVICES,DIRECT SOCIAL SERVICES,14-Aug-2018,217909,Everycare (Cardiff) Limited,660.00,Revenue
DIRECT SOCIAL SERVICES,DIRECT SOCIAL SERVICES,14-Aug-2018,217909,Valeplus (Cymru) & Valeplus Extra,"1,760.21",Revenue
DIRECT SOCIAL SERVICES,DIRECT SOCIAL SERVICES,14-Aug-2018,217909,Valeplus (Cymru) & Valeplus Extra,"1,855.38",Revenue
DIRECT SOCIAL SERVICES,DIRECT SOCIAL SERVICES,14-Aug-2018,217909,Valeplus (Cymru) & Valeplus Extra,"1,707.99",Revenue
DIRECT SOCIAL SERVICES,DIRECT SOCIAL SERVICES,14-Aug-2018,217909,Valeplus (Cymru) & Valeplus Extra,"37,041.87",Revenue
DIRECT SOCIAL SERVICES,DIRECT SOCIAL SERVICES,14-Aug-2018,260130,PayPoint Payment Services Limited,961.80,Revenue
DIRECT ENVIRONMENT AND HOUSING,DIRECT ENVIRONMENT AND HOUSING,14-Aug-2018,301062,Biffa Waste Services Limited,"2,270.90",Revenue
DIRECT ENVIRONMENT AND HOUSING,DIRECT ENVIRONMENT AND HOUSING,14-Aug-2018,303000,Anglian Windows Limited,504.38,Revenue
DIRECT ENVIRONMENT AND HOUSING,DIRECT ENVIRONMENT AND HOUSING,14-Aug-2018,303900,G.P.H.I.T (Integrated Services) Limited,634.00,Revenue
DIRECT ENVIRONMENT AND HOUSING,DIRECT ENVIRONMENT AND HOUSING,14-Aug-2018,303900,Restruct Limited,965.00,Revenue
DIRECT ENVIRONMENT AND HOUSING,DIRECT ENVIRONMENT AND HOUSING,14-Aug-2018,303900,Vellacine Limited,822.00,Revenue
DIRECT ENVIRONMENT AND HOUSING,DIRECT ENVIRONMENT AND HOUSING,14-Aug-2018,303931,Hi Tech Industrial Roofing Limited,595.00,Revenue
DIRECT ENVIRONMENT AND HOUSING,DIRECT ENVIRONMENT AND HOUSING,14-Aug-2018,305763,Unique Flooring (Wales) Limited,650.00,Revenue
DIRECT ENVIRONMENT AND HOUSING,DIRECT ENVIRONMENT AND HOUSING,14-Aug-2018,319010,Watts Truck & Van (Cardiff) Limited,"3,775.63",Revenue
DIRECT ENVIRONMENT AND HOUSING,DIRECT ENVIRONMENT AND HOUSING,14-Aug-2018,403170,Cardiff City Transport Services Limited,"1,744.40",Revenue
DIRECT LEARNING AND SKILLS,DIRECT LEARNING AND SKILLS,14-Aug-2018,102652,University of South Wales,712.50,Revenue
DIRECT SOCIAL SERVICES,DIRECT SOCIAL SERVICES,14-Aug-2018,260050,Matthew Barry,"2,640.00",Revenue
DIRECT SOCIAL SERVICES,DIRECT SOCIAL SERVICES,14-Aug-2018,260050,Michael Hammett,"4,200.00",Revenue
DIRECT SOCIAL SERVICES,DIRECT SOCIAL SERVICES,14-Aug-2018,260050,Owen Thomas,"7,800.00",Revenue
DIRECT SOCIAL SERVICES,DIRECT SOCIAL SERVICES,14-Aug-2018,215486,Middlepatch Limited T/A College Fields Nursing Home,"1,881.57",Revenue
DIRECT SOCIAL SERVICES,DIRECT SOCIAL SERVICES,14-Aug-2018,215486,The Manor House St Hilary Limited T/A Milsom House,748.35,Revenue
DIRECT SOCIAL SERVICES,DIRECT SOCIAL SERVICES,14-Aug-2018,215486,Waverley Care Centre Limited,"1,197.36",Revenue
DIRECT SOCIAL SERVICES,DIRECT SOCIAL SERVICES,14-Aug-2018,215486,Waverley Care Centre Limited,641.44,Revenue
DIRECT SOCIAL SERVICES,DIRECT SOCIAL SERVICES,14-Aug-2018,215489,Avan Limited T/A Brightside Manor,600.00,Revenue
DIRECT SOCIAL SERVICES,DIRECT SOCIAL SERVICES,14-Aug-2018,215489,Baltimore Care Limited,516.38,Revenue
DIRECT SOCIAL SERVICES,DIRECT SOCIAL SERVICES,14-Aug-2018,215489,Baltimore Care Limited,516.38,Revenue
DIRECT SOCIAL SERVICES,DIRECT SOCIAL SERVICES,14-Aug-2018,215489,Baltimore Care Limited,526.38,Revenue
DIRECT SOCIAL SERVICES,DIRECT SOCIAL SERVICES,14-Aug-2018,215489,Bellavista Care (Cardiff) Limited T/A Bellavista Nursing Home Cardiff,506.04,Revenue
DIRECT SOCIAL SERVICES,DIRECT SOCIAL SERVICES,14-Aug-2018,215489,Broadway Care Centre Limited T/A Hazelhurst Nursing Home,516.38,Revenue
DIRECT SOCIAL SERVICES,DIRECT SOCIAL SERVICES,14-Aug-2018,215489,Duffryn Ffrwd Manor Limited,549.49,Revenue
DIRECT SOCIAL SERVICES,DIRECT SOCIAL SERVICES,14-Aug-2018,215489,Forge Care Homes Limited t/a The Forge Care Centre,925.00,Revenue
DIRECT SOCIAL SERVICES,DIRECT SOCIAL SERVICES,14-Aug-2018,215489,Forge Care Homes Limited t/a The Forge Care Centre,671.32,Revenue
DIRECT SOCIAL SERVICES,DIRECT SOCIAL SERVICES,14-Aug-2018,215489,Glamorgan Care Limited t/a Danygraig House,666.00,Revenue
DIRECT SOCIAL SERVICES,DIRECT SOCIAL SERVICES,14-Aug-2018,215489,Hafod Housing Association Limited T/A Brocastle Manor (Care Home),561.85,Revenue
DIRECT SOCIAL SERVICES,DIRECT SOCIAL SERVICES,14-Aug-2018,215489,Hafod Housing Association Limited T/A Brocastle Manor (Care Home),653.01,Revenue
DIRECT SOCIAL SERVICES,DIRECT SOCIAL SERVICES,14-Aug-2018,215489,Harrison Care Enterprises Barry Limited t/a Island View,516.38,Revenue
DIRECT SOCIAL SERVICES,DIRECT SOCIAL SERVICES,14-Aug-2018,215489,June Zehetmayr t/a Tower Hill Residential Home,538.12,Revenue
DIRECT SOCIAL SERVICES,DIRECT SOCIAL SERVICES,14-Aug-2018,215489,Llangoedmor Properties Limited T/A Parkside Residential Home,516.38,Revenue
DIRECT SOCIAL SERVICES,DIRECT SOCIAL SERVICES,14-Aug-2018,215489,Llangoedmor Properties Limited T/A Parkside Residential Home,545.22,Revenue
DIRECT SOCIAL SERVICES,DIRECT SOCIAL SERVICES,14-Aug-2018,215489,Llangoedmor Properties Limited T/A Parkside Residential Home,512.49,Revenue
DIRECT SOCIAL SERVICES,DIRECT SOCIAL SERVICES,14-Aug-2018,215489,Llangoedmor Properties Limited T/A Parkside Residential Home,516.38,Revenue
DIRECT SOCIAL SERVICES,DIRECT SOCIAL SERVICES,14-Aug-2018,215489,MHA Care Group t/a Morel Court,569.88,Revenue
DIRECT SOCIAL SERVICES,DIRECT SOCIAL SERVICES,14-Aug-2018,215489,MHA Care Group t/a Morel Court,531.09,Revenue
DIRECT SOCIAL SERVICES,DIRECT SOCIAL SERVICES,14-Aug-2018,215489,MHA Care Group t/a Ty Gwyn Private Nursing Home,581.24,Revenue
DIRECT SOCIAL SERVICES,DIRECT SOCIAL SERVICES,14-Aug-2018,215489,Middlepatch Limited T/A College Fields Nursing Home,592.17,Revenue
DIRECT SOCIAL SERVICES,DIRECT SOCIAL SERVICES,14-Aug-2018,215489,Middlepatch Limited T/A College Fields Nursing Home,621.36,Revenue
DIRECT SOCIAL SERVICES,DIRECT SOCIAL SERVICES,14-Aug-2018,215489,Middlepatch Limited T/A College Fields Nursing Home,617.27,Revenue
DIRECT SOCIAL SERVICES,DIRECT SOCIAL SERVICES,14-Aug-2018,215489,Middlepatch Limited T/A College Fields Nursing Home,602.96,Revenue
DIRECT SOCIAL SERVICES,DIRECT SOCIAL SERVICES,14-Aug-2018,215489,Middlepatch Limited T/A College Fields Nursing Home,605.25,Revenue
DIRECT SOCIAL SERVICES,DIRECT SOCIAL SERVICES,14-Aug-2018,215489,Middlepatch Limited T/A College Fields Nursing Home,544.72,Revenue
DIRECT SOCIAL SERVICES,DIRECT SOCIAL SERVICES,14-Aug-2018,215489,Middlepatch Limited T/A College Fields Nursing Home,617.27,Revenue
DIRECT SOCIAL SERVICES,DIRECT SOCIAL SERVICES,14-Aug-2018,215489,Middlepatch Limited T/A College Fields Nursing Home,605.25,Revenue
DIRECT SOCIAL SERVICES,DIRECT SOCIAL SERVICES,14-Aug-2018,215489,Middlepatch Limited T/A College Fields Nursing Home,"6,245.86",Revenue
DIRECT SOCIAL SERVICES,DIRECT SOCIAL SERVICES,14-Aug-2018,215489,Middlepatch Limited T/A College Fields Nursing Home,630.07,Revenue
DIRECT SOCIAL SERVICES,DIRECT SOCIAL SERVICES,14-Aug-2018,215489,Middlepatch Limited T/A College Fields Nursing Home,609.89,Revenue
DIRECT SOCIAL SERVICES,DIRECT SOCIAL SERVICES,14-Aug-2018,215489,Middlepatch Limited T/A College Fields Nursing Home,550.28,Revenue
DIRECT SOCIAL SERVICES,DIRECT SOCIAL SERVICES,14-Aug-2018,215489,Middlepatch Limited T/A College Fields Nursing Home,502.26,Revenue
DIRECT SOCIAL SERVICES,DIRECT SOCIAL SERVICES,14-Aug-2018,215489,Middlepatch Limited T/A College Fields Nursing Home,597.36,Revenue
DIRECT SOCIAL SERVICES,DIRECT SOCIAL SERVICES,14-Aug-2018,215489,Middlepatch Limited T/A College Fields Nursing Home,605.25,Revenue
DIRECT SOCIAL SERVICES,DIRECT SOCIAL SERVICES,14-Aug-2018,215489,Middlepatch Limited T/A College Fields Nursing Home,605.25,Revenue
DIRECT SOCIAL SERVICES,DIRECT SOCIAL SERVICES,14-Aug-2018,215489,Northcote Developments Limited,518.88,Revenue
DIRECT SOCIAL SERVICES,DIRECT SOCIAL SERVICES,14-Aug-2018,215489,Northcote Developments Limited,505.50,Revenue
DIRECT SOCIAL SERVICES,DIRECT SOCIAL SERVICES,14-Aug-2018,215489,Northcote Developments Limited,524.03,Revenue
DIRECT SOCIAL SERVICES,DIRECT SOCIAL SERVICES,14-Aug-2018,215489,Northcote Developments Limited,515.73,Revenue
DIRECT SOCIAL SERVICES,DIRECT SOCIAL SERVICES,14-Aug-2018,215489,Oakville Care Limited t/a Romilly Nursing Home,900.00,Revenue
DIRECT SOCIAL SERVICES,DIRECT SOCIAL SERVICES,14-Aug-2018,215489,Springbank Care Home Limited T/A Springbank Nursing Home,603.33,Revenue
DIRECT SOCIAL SERVICES,DIRECT SOCIAL SERVICES,14-Aug-2018,215489,Springbank Care Home Limited T/A Springbank Nursing Home,615.00,Revenue
DIRECT SOCIAL SERVICES,DIRECT SOCIAL SERVICES,14-Aug-2018,215489,Springbank Care Home Limited T/A Springbank Nursing Home,556.38,Revenue
DIRECT SOCIAL SERVICES,DIRECT SOCIAL SERVICES,14-Aug-2018,215489,Springbank Care Home Limited T/A Springbank Nursing Home,666.50,Revenue
DIRECT SOCIAL SERVICES,DIRECT SOCIAL SERVICES,14-Aug-2018,215489,The Manor House St Hilary Limited T/A Milsom House,530.84,Revenue
DIRECT SOCIAL SERVICES,DIRECT SOCIAL SERVICES,14-Aug-2018,215489,The Manor House St Hilary Limited T/A Milsom House,"3,501.65",Revenue
DIRECT SOCIAL SERVICES,DIRECT SOCIAL SERVICES,14-Aug-2018,215489,Waverley Care Centre Limited,"5,722.64",Revenue
DIRECT SOCIAL SERVICES,DIRECT SOCIAL SERVICES,14-Aug-2018,215489,Waverley Care Centre Limited,519.12,Revenue
DIRECT SOCIAL SERVICES,DIRECT SOCIAL SERVICES,14-Aug-2018,215489,Waverley Care Centre Limited,540.83,Revenue
DIRECT SOCIAL SERVICES,DIRECT SOCIAL SERVICES,14-Aug-2018,215489,Waverley Care Centre Limited,"1,881.09",Revenue
DIRECT SOCIAL SERVICES,DIRECT SOCIAL SERVICES,14-Aug-2018,215489,Waverley Care Centre Limited,605.03,Revenue
DIRECT SOCIAL SERVICES,DIRECT SOCIAL SERVICES,14-Aug-2018,215489,Waverley Care Centre Limited,675.33,Revenue
DIRECT SOCIAL SERVICES,DIRECT SOCIAL SERVICES,14-Aug-2018,215489,Waverley Care Centre Limited,512.53,Revenue
DIRECT SOCIAL SERVICES,DIRECT SOCIAL SERVICES,14-Aug-2018,215489,Waverley Care Centre Limited,519.40,Revenue
DIRECT SOCIAL SERVICES,DIRECT SOCIAL SERVICES,14-Aug-2018,215489,Waverley Care Centre Limited,614.77,Revenue
DIRECT SOCIAL SERVICES,DIRECT SOCIAL SERVICES,14-Aug-2018,215489,Willowmere Home Care Agency Limited,619.08,Revenue
DIRECT SOCIAL SERVICES,DIRECT SOCIAL SERVICES,14-Aug-2018,215489,Willowmere Home Care Agency Limited,756.96,Revenue
DIRECT SOCIAL SERVICES,DIRECT SOCIAL SERVICES,14-Aug-2018,215489,Willowmere Home Care Agency Limited,619.08,Revenue
DIRECT SOCIAL SERVICES,DIRECT SOCIAL SERVICES,14-Aug-2018,215489,Willowmere Home Care Agency Limited,808.37,Revenue
DIRECT SOCIAL SERVICES,DIRECT SOCIAL SERVICES,14-Aug-2018,215489,Willowmere Home Care Agency Limited,540.75,Revenue
DIRECT SOCIAL SERVICES,DIRECT SOCIAL SERVICES,14-Aug-2018,215489,Willowmere Home Care Agency Limited,"2,481.84",Revenue
DIRECT SOCIAL SERVICES,DIRECT SOCIAL SERVICES,14-Aug-2018,215489,Willowmere Home Care Agency Limited,652.54,Revenue
DIRECT SOCIAL SERVICES,DIRECT SOCIAL SERVICES,14-Aug-2018,215489,Willowmere Home Care Agency Limited,816.14,Revenue
DIRECT SOCIAL SERVICES,DIRECT SOCIAL SERVICES,14-Aug-2018,215489,Willowmere Home Care Agency Limited,695.68,Revenue
DIRECT SOCIAL SERVICES,DIRECT SOCIAL SERVICES,14-Aug-2018,215489,Willowmere Home Care Agency Limited,619.08,Revenue
DIRECT SOCIAL SERVICES,DIRECT SOCIAL SERVICES,14-Aug-2018,215489,Willowmere Home Care Agency Limited,584.08,Revenue
DIRECT SOCIAL SERVICES,DIRECT SOCIAL SERVICES,14-Aug-2018,215489,Willowmere Home Care Agency Limited,667.86,Revenue
DIRECT SOCIAL SERVICES,DIRECT SOCIAL SERVICES,14-Aug-2018,215489,Willowmere Home Care Agency Limited,695.68,Revenue
DIRECT SOCIAL SERVICES,DIRECT SOCIAL SERVICES,14-Aug-2018,216179,Accomplish Group Limited t/a Cedar House,"1,380.73",Revenue
DIRECT SOCIAL SERVICES,DIRECT SOCIAL SERVICES,14-Aug-2018,216179,Amethyst Healthcare Limited t/a Hillstone House,"1,770.23",Revenue
DIRECT SOCIAL SERVICES,DIRECT SOCIAL SERVICES,14-Aug-2018,216179,Bellavista Nursing Homes (Wales) Limited t/a Bellavista Care Home,552.23,Revenue
DIRECT SOCIAL SERVICES,DIRECT SOCIAL SERVICES,14-Aug-2018,216179,Care 4 U (Neath) Limited,"1,754.28",Revenue
DIRECT SOCIAL SERVICES,DIRECT SOCIAL SERVICES,14-Aug-2018,216179,Crusader Medical Care Limited T/A St Saviours Nursing Home,551.35,Revenue
DIRECT SOCIAL SERVICES,DIRECT SOCIAL SERVICES,14-Aug-2018,216179,Leonard Cheshire Disability,"1,209.78",Revenue
DIRECT SOCIAL SERVICES,DIRECT SOCIAL SERVICES,14-Aug-2018,216179,Middlepatch Limited T/A College Fields Nursing Home,639.85,Revenue
DIRECT SOCIAL SERVICES,DIRECT SOCIAL SERVICES,14-Aug-2018,216179,Middlepatch Limited T/A College Fields Nursing Home,655.45,Revenue
DIRECT SOCIAL SERVICES,DIRECT SOCIAL SERVICES,14-Aug-2018,216179,Springbank Care Home Limited T/A Springbank Nursing Home,770.00,Revenue
DIRECT SOCIAL SERVICES,DIRECT SOCIAL SERVICES,14-Aug-2018,216179,Valebrook Care Homes Limited,"1,851.35",Revenue
DIRECT SOCIAL SERVICES,DIRECT SOCIAL SERVICES,14-Aug-2018,216179,Voyage 1 Limited t/a Brook Lodge,"2,528.80",Revenue
DIRECT SOCIAL SERVICES,DIRECT SOCIAL SERVICES,14-Aug-2018,216179,Voyage 1 Limited t/a Falcons Rest & Poachers Cottage,"1,729.64",Revenue
DIRECT SOCIAL SERVICES,DIRECT SOCIAL SERVICES,14-Aug-2018,217909,Accomplish Group Limited,"1,821.48",Revenue
DIRECT SOCIAL SERVICES,DIRECT SOCIAL SERVICES,14-Aug-2018,217909,Accomplish Group Limited,"2,146.47",Revenue
DIRECT SOCIAL SERVICES,DIRECT SOCIAL SERVICES,14-Aug-2018,217909,Accomplish Group Limited t/a Cedar House,"1,582.70",Revenue
DIRECT SOCIAL SERVICES,DIRECT SOCIAL SERVICES,14-Aug-2018,217909,Amethyst Healthcare Limited t/a Hillstone House,"1,680.86",Revenue
DIRECT SOCIAL SERVICES,DIRECT SOCIAL SERVICES,14-Aug-2018,217909,Amethyst Healthcare Limited t/a Hillstone House,"1,462.13",Revenue
DIRECT SOCIAL SERVICES,DIRECT SOCIAL SERVICES,14-Aug-2018,217909,Broadway Care Centre Limited T/A Hazelhurst Nursing Home,500.05,Revenue
DIRECT SOCIAL SERVICES,DIRECT SOCIAL SERVICES,14-Aug-2018,217909,Broadway Care Centre Limited T/A Hazelhurst Nursing Home,507.15,Revenue
DIRECT SOCIAL SERVICES,DIRECT SOCIAL SERVICES,14-Aug-2018,217909,Glasallt Fawr Camphill Centre,995.72,Revenue
DIRECT SOCIAL SERVICES,DIRECT SOCIAL SERVICES,14-Aug-2018,217909,Glasallt Fawr Camphill Centre,"1,544.90",Revenue
DIRECT SOCIAL SERVICES,DIRECT SOCIAL SERVICES,14-Aug-2018,217909,Heatherleigh Care Limited t/a 106 Splott Road,"1,563.71",Revenue
DIRECT SOCIAL SERVICES,DIRECT SOCIAL SERVICES,14-Aug-2018,217909,Heatherleigh Care Limited t/a 106 Splott Road,"1,223.14",Revenue
DIRECT SOCIAL SERVICES,DIRECT SOCIAL SERVICES,14-Aug-2018,217909,Llysywaun Limited t/a Bayview Lodge Nursing Home,"1,724.90",Revenue
DIRECT SOCIAL SERVICES,DIRECT SOCIAL SERVICES,14-Aug-2018,217909,Ocean Community Services Limited t/a Westminster Court Care Home,"1,116.27",Revenue
DIRECT SOCIAL SERVICES,DIRECT SOCIAL SERVICES,14-Aug-2018,217909,The Cedars Care Services Limited T/A Ashgrove Care Home,"2,112.35",Revenue
DIRECT SOCIAL SERVICES,DIRECT SOCIAL SERVICES,14-Aug-2018,217909,The Cedars Care Services Limited T/A Ashgrove Care Home,995.35,Revenue
DIRECT SOCIAL SERVICES,DIRECT SOCIAL SERVICES,14-Aug-2018,217909,The Cedars Care Services Limited T/A Oaklands,"1,030.35",Revenue
DIRECT SOCIAL SERVICES,DIRECT SOCIAL SERVICES,14-Aug-2018,217909,The Cedars Care Services Limited t/a Sycamore House,"2,026.35",Revenue
DIRECT SOCIAL SERVICES,DIRECT SOCIAL SERVICES,14-Aug-2018,217909,The Cedars Care Services Limited t/a Sycamore House,"1,809.35",Revenue
DIRECT SOCIAL SERVICES,DIRECT SOCIAL SERVICES,14-Aug-2018,217909,The Cedars Care Services Limited t/a The Cedars,"1,576.06",Revenue
DIRECT SOCIAL SERVICES,DIRECT SOCIAL SERVICES,14-Aug-2018,217909,The Cedars Care Services Limited t/a The Cedars,"1,365.05",Revenue
DIRECT SOCIAL SERVICES,DIRECT SOCIAL SERVICES,14-Aug-2018,217909,The Cedars Care Services Limited t/a The Hollies,"1,864.35",Revenue
DIRECT SOCIAL SERVICES,DIRECT SOCIAL SERVICES,14-Aug-2018,217909,Vale Phoenix Limited,"1,079.73",Revenue
DIRECT SOCIAL SERVICES,DIRECT SOCIAL SERVICES,14-Aug-2018,217909,Vale Phoenix Limited,"1,116.94",Revenue
DIRECT SOCIAL SERVICES,DIRECT SOCIAL SERVICES,14-Aug-2018,217909,Valebrook Care Homes Limited,"1,654.39",Revenue
DIRECT SOCIAL SERVICES,DIRECT SOCIAL SERVICES,14-Aug-2018,217909,Valebrook Care Homes Limited,"1,999.50",Revenue
DIRECT SOCIAL SERVICES,DIRECT SOCIAL SERVICES,14-Aug-2018,217909,Valebrook Care Homes Limited,"1,420.24",Revenue
DIRECT SOCIAL SERVICES,DIRECT SOCIAL SERVICES,14-Aug-2018,217909,Valebrook Care Homes Limited,"1,767.35",Revenue
DIRECT SOCIAL SERVICES,DIRECT SOCIAL SERVICES,14-Aug-2018,217909,Valebrook Care Homes Limited,"1,861.95",Revenue
DIRECT SOCIAL SERVICES,DIRECT SOCIAL SERVICES,14-Aug-2018,217909,Valebrook Care Homes Limited,"1,390.24",Revenue
DIRECT SOCIAL SERVICES,DIRECT SOCIAL SERVICES,14-Aug-2018,218321,Adriana Limited T/A The Priory Nursing Home,536.00,Revenue
DIRECT SOCIAL SERVICES,DIRECT SOCIAL SERVICES,14-Aug-2018,218321,Hafod Care Association Limited,635.50,Revenue
DIRECT SOCIAL SERVICES,DIRECT SOCIAL SERVICES,14-Aug-2018,218321,Harrison Care Enterprises Barry Limited t/a Island View,520.91,Revenue
DIRECT SOCIAL SERVICES,DIRECT SOCIAL SERVICES,14-Aug-2018,218321,Isman & Kinze Nessa T/A Haven House,516.38,Revenue
DIRECT SOCIAL SERVICES,DIRECT SOCIAL SERVICES,14-Aug-2018,218321,J and P Residential Homes Limited T/A Monkstone House,600.00,Revenue
DIRECT SOCIAL SERVICES,DIRECT SOCIAL SERVICES,14-Aug-2018,218321,Liam George t/a Claremont Care Home,516.45,Revenue
DIRECT SOCIAL SERVICES,DIRECT SOCIAL SERVICES,14-Aug-2018,218321,Sanda Mitchel & Ptn t/a Canola House Residential Home,600.00,Revenue
DIRECT SOCIAL SERVICES,DIRECT SOCIAL SERVICES,14-Aug-2018,218321,Sanda Mitchel & Ptn t/a Canola House Residential Home,501.35,Revenue
DIRECT SOCIAL SERVICES,DIRECT SOCIAL SERVICES,14-Aug-2018,218321,Waverley Care Centre Limited,909.98,Revenue
DIRECT SOCIAL SERVICES,DIRECT SOCIAL SERVICES,14-Aug-2018,218419,Anwen Care Limited t/a Anwen Care Home,690.56,Revenue
DIRECT SOCIAL SERVICES,DIRECT SOCIAL SERVICES,14-Aug-2018,218419,Baltimore Care Limited,508.51,Revenue
DIRECT SOCIAL SERVICES,DIRECT SOCIAL SERVICES,14-Aug-2018,218419,Baltimore Care Limited,527.38,Revenue
DIRECT SOCIAL SERVICES,DIRECT SOCIAL SERVICES,14-Aug-2018,218419,Bellavista Care (Cardiff) Limited T/A Bellavista Nursing Home Cardiff,546.71,Revenue
DIRECT SOCIAL SERVICES,DIRECT SOCIAL SERVICES,14-Aug-2018,218419,Bellavista Care (Cardiff) Limited T/A Bellavista Nursing Home Cardiff,516.38,Revenue
DIRECT SOCIAL SERVICES,DIRECT SOCIAL SERVICES,14-Aug-2018,218419,Broadway Care Centre Limited T/A Hazelhurst Nursing Home,516.38,Revenue
DIRECT SOCIAL SERVICES,DIRECT SOCIAL SERVICES,14-Aug-2018,218419,David Austin t/a Silverdale,663.68,Revenue
DIRECT SOCIAL SERVICES,DIRECT SOCIAL SERVICES,14-Aug-2018,218419,E & E Homes Limited T/A Cliffhaven Residential Home,501.05,Revenue
DIRECT SOCIAL SERVICES,DIRECT SOCIAL SERVICES,14-Aug-2018,218419,E & E Homes Limited T/A Cliffhaven Residential Home,"1,874.56",Revenue
DIRECT SOCIAL SERVICES,DIRECT SOCIAL SERVICES,14-Aug-2018,218419,E & E Homes Limited T/A Cliffhaven Residential Home,516.38,Revenue
DIRECT SOCIAL SERVICES,DIRECT SOCIAL SERVICES,14-Aug-2018,218419,E & E Homes Limited T/A Cliffhaven Residential Home,516.38,Revenue
DIRECT SOCIAL SERVICES,DIRECT SOCIAL SERVICES,14-Aug-2018,218419,E & E Homes Limited T/A Cliffhaven Residential Home,505.20,Revenue
DIRECT SOCIAL SERVICES,DIRECT SOCIAL SERVICES,14-Aug-2018,218419,Forge Care Homes Limited t/a The Forge Care Centre,549.58,Revenue
DIRECT SOCIAL SERVICES,DIRECT SOCIAL SERVICES,14-Aug-2018,218419,Hallmark Care Homes (Bute Town) Limited t/a Shire Hall Care Home,784.67,Revenue
DIRECT SOCIAL SERVICES,DIRECT SOCIAL SERVICES,14-Aug-2018,218419,Hallmark Care Homes (Bute Town) Limited t/a Shire Hall Care Home,"1,215.50",Revenue
DIRECT SOCIAL SERVICES,DIRECT SOCIAL SERVICES,14-Aug-2018,218419,Harrison Care Enterprises Barry Limited t/a Island View,516.38,Revenue
DIRECT SOCIAL SERVICES,DIRECT SOCIAL SERVICES,14-Aug-2018,218419,Harrison Care Enterprises Barry Limited t/a Island View,501.96,Revenue
DIRECT SOCIAL SERVICES,DIRECT SOCIAL SERVICES,14-Aug-2018,218419,Harrison Care Enterprises Barry Limited t/a Island View,650.88,Revenue
DIRECT SOCIAL SERVICES,DIRECT SOCIAL SERVICES,14-Aug-2018,218419,Harrison Care Enterprises Barry Limited t/a Island View,514.75,Revenue
DIRECT SOCIAL SERVICES,DIRECT SOCIAL SERVICES,14-Aug-2018,218419,Harrison Care Enterprises Barry Limited t/a Island View,544.81,Revenue
DIRECT SOCIAL SERVICES,DIRECT SOCIAL SERVICES,14-Aug-2018,218419,Harrison Care Enterprises Barry Limited t/a Island View,516.38,Revenue
DIRECT SOCIAL SERVICES,DIRECT SOCIAL SERVICES,14-Aug-2018,218419,Harrison Care Enterprises Barry Limited t/a Island View,516.38,Revenue
DIRECT SOCIAL SERVICES,DIRECT SOCIAL SERVICES,14-Aug-2018,218419,Harrison Care Enterprises Barry Limited t/a Island View,516.38,Revenue
DIRECT SOCIAL SERVICES,DIRECT SOCIAL SERVICES,14-Aug-2018,218419,Harrison Care Enterprises Barry Limited t/a Island View,503.11,Revenue
DIRECT SOCIAL SERVICES,DIRECT SOCIAL SERVICES,14-Aug-2018,218419,Harrison Care Enterprises Barry Limited t/a Island View,516.38,Revenue
DIRECT SOCIAL SERVICES,DIRECT SOCIAL SERVICES,14-Aug-2018,218419,June Zehetmayr t/a Tower Hill Residential Home,650.88,Revenue
DIRECT SOCIAL SERVICES,DIRECT SOCIAL SERVICES,14-Aug-2018,218419,June Zehetmayr t/a Tower Hill Residential Home,"1,244.91",Revenue
DIRECT SOCIAL SERVICES,DIRECT SOCIAL SERVICES,14-Aug-2018,218419,June Zehetmayr t/a Tower Hill Residential Home,518.38,Revenue
DIRECT SOCIAL SERVICES,DIRECT SOCIAL SERVICES,14-Aug-2018,218419,June Zehetmayr t/a Tower Hill Residential Home,516.38,Revenue
DIRECT SOCIAL SERVICES,DIRECT SOCIAL SERVICES,14-Aug-2018,218419,June Zehetmayr t/a Tower Hill Residential Home,516.56,Revenue
DIRECT SOCIAL SERVICES,DIRECT SOCIAL SERVICES,14-Aug-2018,218419,Llangoedmor Properties Limited T/A Parkside Residential Home,513.83,Revenue
DIRECT SOCIAL SERVICES,DIRECT SOCIAL SERVICES,14-Aug-2018,218419,Llangoedmor Properties Limited T/A Parkside Residential Home,650.88,Revenue
DIRECT SOCIAL SERVICES,DIRECT SOCIAL SERVICES,14-Aug-2018,218419,Middlepatch Limited T/A College Fields Nursing Home,516.12,Revenue
DIRECT SOCIAL SERVICES,DIRECT SOCIAL SERVICES,14-Aug-2018,218419,Northcote Developments Limited,"1,024.91",Revenue
DIRECT SOCIAL SERVICES,DIRECT SOCIAL SERVICES,14-Aug-2018,218419,Northcote Developments Limited,"1,114.29",Revenue
DIRECT SOCIAL SERVICES,DIRECT SOCIAL SERVICES,14-Aug-2018,218419,Shirwan Al-Mufti & Ptn t/a Pontcanna House,600.00,Revenue
DIRECT SOCIAL SERVICES,DIRECT SOCIAL SERVICES,14-Aug-2018,218419,The Manor House St Hilary Limited T/A Milsom House,700.33,Revenue
DIRECT SOCIAL SERVICES,DIRECT SOCIAL SERVICES,14-Aug-2018,218419,Waverley Care Centre Limited,508.92,Revenue
DIRECT SOCIAL SERVICES,DIRECT SOCIAL SERVICES,14-Aug-2018,218419,Waverley Care Centre Limited,516.38,Revenue
DIRECT SOCIAL SERVICES,DIRECT SOCIAL SERVICES,14-Aug-2018,218419,Waverley Care Centre Limited,650.88,Revenue
DIRECT SOCIAL SERVICES,DIRECT SOCIAL SERVICES,14-Aug-2018,218419,Waverley Care Centre Limited,574.00,Revenue
DIRECT SOCIAL SERVICES,DIRECT SOCIAL SERVICES,14-Aug-2018,218419,Waverley Care Centre Limited,688.89,Revenue
DIRECT ENVIRONMENT AND HOUSING,DIRECT ENVIRONMENT AND HOUSING,14-Aug-2018,319010,Ceri Williams t/a Mobile Tyre Services,"4,162.89",Revenue
DIRECT ENVIRONMENT AND HOUSING,DIRECT ENVIRONMENT AND HOUSING,14-Aug-2018,319010,Nigel Evans t/a NE Auto Spares,"1,239.52",Revenue
DIRECT SOCIAL SERVICES,DIRECT SOCIAL SERVICES,15-Aug-2018,215489,Annwyl Limited t/a Bluebird Care,640.50,Revenue
DIRECT SOCIAL SERVICES,DIRECT SOCIAL SERVICES,15-Aug-2018,215489,Annwyl Limited t/a Bluebird Care,666.68,Revenue
DIRECT SOCIAL SERVICES,DIRECT SOCIAL SERVICES,15-Aug-2018,215489,Annwyl Limited t/a Bluebird Care,732.21,Revenue
DIRECT SOCIAL SERVICES,DIRECT SOCIAL SERVICES,15-Aug-2018,215489,Annwyl Limited t/a Bluebird Care,608.80,Revenue
DIRECT SOCIAL SERVICES,DIRECT SOCIAL SERVICES,15-Aug-2018,215489,Cardiff & Vale Caring 4 U Limited T/A Caremark Cardiff & The Vale of Glamorgan,735.53,Revenue
DIRECT SOCIAL SERVICES,DIRECT SOCIAL SERVICES,15-Aug-2018,215489,Cardiff & Vale Caring 4 U Limited T/A Caremark Cardiff & The Vale of Glamorgan,542.50,Revenue
DIRECT SOCIAL SERVICES,DIRECT SOCIAL SERVICES,15-Aug-2018,215489,Cardiff & Vale Caring 4 U Limited T/A Caremark Cardiff & The Vale of Glamorgan,794.74,Revenue
DIRECT SOCIAL SERVICES,DIRECT SOCIAL SERVICES,15-Aug-2018,215489,Cardiff & Vale Caring 4 U Limited T/A Caremark Cardiff & The Vale of Glamorgan,742.62,Revenue
DIRECT SOCIAL SERVICES,DIRECT SOCIAL SERVICES,15-Aug-2018,215489,Cardiff & Vale Caring 4 U Limited T/A Caremark Cardiff & The Vale of Glamorgan,703.86,Revenue
DIRECT SOCIAL SERVICES,DIRECT SOCIAL SERVICES,15-Aug-2018,215489,Cardiff & Vale Caring 4 U Limited T/A Caremark Cardiff & The Vale of Glamorgan,500.38,Revenue
DIRECT LEARNING AND SKILLS,DIRECT LEARNING AND SKILLS,15-Aug-2018,101213,Teachers2Parents Limited,769.00,Revenue
DIRECT LEARNING AND SKILLS,DIRECT LEARNING AND SKILLS,15-Aug-2018,102593,Academia Limited,"1,412.28",Revenue
DIRECT LEARNING AND SKILLS,DIRECT LEARNING AND SKILLS,15-Aug-2018,102593,Dream Climbing Walls Limited,850.00,Revenue
DIRECT LEARNING AND SKILLS,DIRECT LEARNING AND SKILLS,15-Aug-2018,102593,Nustream Limited,"2,465.69",Revenue
DIRECT LEARNING AND SKILLS,DIRECT LEARNING AND SKILLS,15-Aug-2018,102593,Plinth Medical Limited,"1,170.00",Revenue
DIRECT LEARNING AND SKILLS,DIRECT LEARNING AND SKILLS,15-Aug-2018,102593,Veolia ES (UK) Limited,622.72,Revenue
DIRECT LEARNING AND SKILLS,DIRECT LEARNING AND SKILLS,15-Aug-2018,102593,Worldline IT Services UK Limited t/a FuelGenie,680.09,Revenue
DIRECT LEARNING AND SKILLS,DIRECT LEARNING AND SKILLS,15-Aug-2018,102652,Kings Monkton Independent School Limited,"-1,219.40",Revenue
DIRECT SOCIAL SERVICES,DIRECT SOCIAL SERVICES,15-Aug-2018,216179,National Autistic Society,538.38,Revenue
DIRECT SOCIAL SERVICES,DIRECT SOCIAL SERVICES,15-Aug-2018,217909,Valeplus (Cymru) & Valeplus Extra,"1,673.31",Revenue
DIRECT SOCIAL SERVICES,DIRECT SOCIAL SERVICES,15-Aug-2018,217909,Valeplus (Cymru) & Valeplus Extra,"25,605.60",Revenue
DIRECT ENVIRONMENT AND HOUSING,DIRECT ENVIRONMENT AND HOUSING,15-Aug-2018,323672,Fugro GB Marine Limited,"4,404.60",Revenue
DIRECT ENVIRONMENT AND HOUSING,DIRECT ENVIRONMENT AND HOUSING,15-Aug-2018,325345,Calibre Contracting Limited,"2,026.08",Revenue
DIRECT ENVIRONMENT AND HOUSING,DIRECT ENVIRONMENT AND HOUSING,15-Aug-2018,325345,Cemex UK Materials Limited,590.07,Revenue
DIRECT ENVIRONMENT AND HOUSING,DIRECT ENVIRONMENT AND HOUSING,15-Aug-2018,325345,Garth Plant Hire Limited,"1,106.25",Revenue
DIRECT ENVIRONMENT AND HOUSING,DIRECT ENVIRONMENT AND HOUSING,15-Aug-2018,325600,Calibre Contracting Limited,"1,524.60",Revenue
DIRECT ENVIRONMENT AND HOUSING,DIRECT ENVIRONMENT AND HOUSING,15-Aug-2018,325790,Calibre Contracting Limited,941.50,Revenue
DIRECT ENVIRONMENT AND HOUSING,DIRECT ENVIRONMENT AND HOUSING,15-Aug-2018,333013,Ace Site Services (UK) Limited,980.00,Revenue
DIRECT ENVIRONMENT AND HOUSING,DIRECT ENVIRONMENT AND HOUSING,15-Aug-2018,333037,GB Sport & Leisure UK Limited,780.38,Revenue
DIRECT ENVIRONMENT AND HOUSING,DIRECT ENVIRONMENT AND HOUSING,15-Aug-2018,333500,Chubb Fire & Security Limited,923.98,Revenue
DIRECT ENVIRONMENT AND HOUSING,DIRECT ENVIRONMENT AND HOUSING,15-Aug-2018,359457,Festival Hookups Limited t/a Impression One,825.20,Revenue
DIRECT ENVIRONMENT AND HOUSING,DIRECT ENVIRONMENT AND HOUSING,15-Aug-2018,400050,RELX Groupl Plc t/a LexisNexis,"9,943.07",Revenue
DIRECT ENVIRONMENT AND HOUSING,DIRECT ENVIRONMENT AND HOUSING,15-Aug-2018,405113,Knights Lettings Limited T/A Knights Estate Agents,675.00,Revenue
DIRECT ENVIRONMENT AND HOUSING,DIRECT ENVIRONMENT AND HOUSING,15-Aug-2018,405113,Knights Lettings Limited T/A Knights Estate Agents,750.00,Revenue
DIRECT ENVIRONMENT AND HOUSING,DIRECT ENVIRONMENT AND HOUSING,15-Aug-2018,407400,Glamorgan Gem Limited,500.00,Revenue
DIRECT MANAGING DIRECTOR AND RESOURCES,DIRECT MANAGING DIRECTOR AND RESOURCES,15-Aug-2018,421230,Computacenter (UK) Limited,"11,515.20",Revenue
DIRECT MANAGING DIRECTOR AND RESOURCES,DIRECT MANAGING DIRECTOR AND RESOURCES,15-Aug-2018,421230,Pervasive Networks Limited,"9,598.29",Revenue
DIRECT MANAGING DIRECTOR AND RESOURCES,DIRECT MANAGING DIRECTOR AND RESOURCES,15-Aug-2018,440530,Abavus Limited,"23,495.00",Revenue
DIRECT CAPITAL LEARN AND SKILLS,DIRECT CAPITAL LEARN AND SKILLS,15-Aug-2018,812314,Kingfisher Developments (Wales) Limited,"58,127.49",Capital
DIRECT CAPITAL VISIBLE AND HOUSING SERVICES,DIRECT CAPITAL VISIBLE AND HOUSING SERVICES,15-Aug-2018,830000,Unilink Finance Limited,"36,285.00",Capital
DIRECT CAPITAL VISIBLE AND HOUSING SERVICES,DIRECT CAPITAL VISIBLE AND HOUSING SERVICES,15-Aug-2018,831503,Tarmac Trading Limited,"87,402.68",Capital
DIRECT CAPITAL VISIBLE AND HOUSING SERVICES,DIRECT CAPITAL VISIBLE AND HOUSING SERVICES,15-Aug-2018,832257,South Wales Sports Grounds Contractors Limited,"13,660.11",Capital
DIRECT CAPITAL DEVELOPMENT,DIRECT CAPITAL DEVELOPMENT,15-Aug-2018,834211,IBEX Technical Access Limited,"3,795.00",Capital
DIRECT CAPITAL DEVELOPMENT,DIRECT CAPITAL DEVELOPMENT,15-Aug-2018,834231,Bruton Knowles LLP,"1,397.50",Capital
DIRECT ENVIRONMENT AND HOUSING,DIRECT ENVIRONMENT AND HOUSING,15-Aug-2018,341180,Cardiff County Council,"113,062.60",Revenue
DIRECT ENVIRONMENT AND HOUSING,DIRECT ENVIRONMENT AND HOUSING,15-Aug-2018,341182,Cardiff County Council,"42,339.50",Revenue
DIRECT SOCIAL SERVICES,DIRECT SOCIAL SERVICES,15-Aug-2018,260210,Helena Jones,540.00,Revenue
DIRECT SOCIAL SERVICES,DIRECT SOCIAL SERVICES,15-Aug-2018,260210,Helena Jones,540.00,Revenue
DIRECT SOCIAL SERVICES,DIRECT SOCIAL SERVICES,15-Aug-2018,260210,Helena Jones,702.00,Revenue
DIRECT ENVIRONMENT AND HOUSING,DIRECT ENVIRONMENT AND HOUSING,15-Aug-2018,405100,Lyndon Mustoe,"3,976.08",Revenue
DIRECT ENVIRONMENT AND HOUSING,DIRECT ENVIRONMENT AND HOUSING,15-Aug-2018,405113,Ian & Jackie Rogers,675.00,Revenue
DIRECT SOCIAL SERVICES,DIRECT SOCIAL SERVICES,15-Aug-2018,215489,April Complete Care Solutions Limited,518.76,Revenue
DIRECT SOCIAL SERVICES,DIRECT SOCIAL SERVICES,15-Aug-2018,216179,April Complete Care Solutions Limited,605.48,Revenue
DIRECT SOCIAL SERVICES,DIRECT SOCIAL SERVICES,15-Aug-2018,239291,Acorn Recruitment Limited,"1,663.33",Revenue
DIRECT ENVIRONMENT AND HOUSING,DIRECT ENVIRONMENT AND HOUSING,15-Aug-2018,323686,Hays Specialist Recruitment Limited,"1,505.25",Revenue
DIRECT ENVIRONMENT AND HOUSING,DIRECT ENVIRONMENT AND HOUSING,15-Aug-2018,323686,Hays Specialist Recruitment Limited,640.64,Revenue
DIRECT ENVIRONMENT AND HOUSING,DIRECT ENVIRONMENT AND HOUSING,15-Aug-2018,323686,Hays Specialist Recruitment Limited,"1,505.25",Revenue
DIRECT ENVIRONMENT AND HOUSING,DIRECT ENVIRONMENT AND HOUSING,15-Aug-2018,323686,Hays Specialist Recruitment Limited,640.64,Revenue
DIRECT ENVIRONMENT AND HOUSING,DIRECT ENVIRONMENT AND HOUSING,15-Aug-2018,407106,Building Recruitment Company Limited,760.35,Revenue
DIRECT ENVIRONMENT AND HOUSING,DIRECT ENVIRONMENT AND HOUSING,15-Aug-2018,407106,Building Recruitment Company Limited,768.91,Revenue
DIRECT ENVIRONMENT AND HOUSING,DIRECT ENVIRONMENT AND HOUSING,15-Aug-2018,407119,Hays Specialist Recruitment Limited,"1,295.27",Revenue
DIRECT ENVIRONMENT AND HOUSING,DIRECT ENVIRONMENT AND HOUSING,15-Aug-2018,407119,Hays Specialist Recruitment Limited,"1,243.52",Revenue
DIRECT ENVIRONMENT AND HOUSING,DIRECT ENVIRONMENT AND HOUSING,15-Aug-2018,350740,Glyn Cornelius t/a iAV Audiovisual,828.00,Revenue
DIRECT SOCIAL SERVICES,DIRECT SOCIAL SERVICES,15-Aug-2018,215025,Dewis Centre For Independant Living,"13,539.48",Revenue
DIRECT SOCIAL SERVICES,DIRECT SOCIAL SERVICES,15-Aug-2018,216179,Sense,"2,185.81",Revenue
DIRECT LEARNING AND SKILLS,DIRECT LEARNING AND SKILLS,16-Aug-2018,102702,Focal Point (Vision) Limited T/A Focal Point UK,948.35,Revenue
DIRECT MANAGING DIRECTOR AND RESOURCES,DIRECT MANAGING DIRECTOR AND RESOURCES,16-Aug-2018,140110,Korn Ferry Hay Group Limited,550.00,Revenue
DIRECT SOCIAL SERVICES,DIRECT SOCIAL SERVICES,16-Aug-2018,212781,Corona Energy Retail 4 Limited,913.25,Revenue
DIRECT SOCIAL SERVICES,DIRECT SOCIAL SERVICES,16-Aug-2018,212791,Corona Energy Retail 4 Limited,530.56,Revenue
DIRECT SOCIAL SERVICES,DIRECT SOCIAL SERVICES,16-Aug-2018,215121,Tunstall Healthcare (UK) Limited,"1,124.10",Revenue
DIRECT SOCIAL SERVICES,DIRECT SOCIAL SERVICES,16-Aug-2018,217909,National Autistic Society,"2,374.86",Revenue
DIRECT SOCIAL SERVICES,DIRECT SOCIAL SERVICES,16-Aug-2018,260235,Neal Social Care Limited,"2,735.60",Revenue
DIRECT ENVIRONMENT AND HOUSING,DIRECT ENVIRONMENT AND HOUSING,16-Aug-2018,323680,Horizon Civil Engineering Limited,"4,001.55",Revenue
DIRECT ENVIRONMENT AND HOUSING,DIRECT ENVIRONMENT AND HOUSING,16-Aug-2018,333013,Ace Site Services (UK) Limited,750.00,Revenue
DIRECT ENVIRONMENT AND HOUSING,DIRECT ENVIRONMENT AND HOUSING,16-Aug-2018,350740,Cobbles Kitchen Limited,900.00,Revenue
DIRECT ENVIRONMENT AND HOUSING,DIRECT ENVIRONMENT AND HOUSING,16-Aug-2018,365780,Royal Institute Of Chartered Surveyors Membership Renewals,657.00,Revenue
DIRECT ENVIRONMENT AND HOUSING,DIRECT ENVIRONMENT AND HOUSING,16-Aug-2018,365780,Royal Institute Of Chartered Surveyors Membership Renewals,754.00,Revenue
DIRECT ENVIRONMENT AND HOUSING,DIRECT ENVIRONMENT AND HOUSING,16-Aug-2018,405001,Cadwyn Housing Association Limited t/a Can Do Lettings,500.00,Revenue
DIRECT ENVIRONMENT AND HOUSING,DIRECT ENVIRONMENT AND HOUSING,16-Aug-2018,405100,Llamau Limited,575.00,Revenue
DIRECT ENVIRONMENT AND HOUSING,DIRECT ENVIRONMENT AND HOUSING,16-Aug-2018,407100,NCC Services Limited,975.00,Revenue
DIRECT ENVIRONMENT AND HOUSING,DIRECT ENVIRONMENT AND HOUSING,16-Aug-2018,407215,Corona Energy Retail 4 Limited,676.01,Revenue
DIRECT MANAGING DIRECTOR AND RESOURCES,DIRECT MANAGING DIRECTOR AND RESOURCES,16-Aug-2018,422100,Corona Energy Retail 4 Limited,695.79,Revenue
DIRECT CAPITAL LEARN AND SKILLS,DIRECT CAPITAL LEARN AND SKILLS,16-Aug-2018,812277,Thornlink Limited T/A Vale Consultancy,"3,412.50",Capital
DIRECT CAPITAL VISIBLE AND HOUSING SERVICES,DIRECT CAPITAL VISIBLE AND HOUSING SERVICES,16-Aug-2018,842116,Warrior Doors Limited,"8,510.22",Capital
DIRECT CAPITAL VISIBLE AND HOUSING SERVICES,DIRECT CAPITAL VISIBLE AND HOUSING SERVICES,16-Aug-2018,842116,Warrior Doors Limited,"8,510.22",Capital
DIRECT CAPITAL DEVELOPMENT,DIRECT CAPITAL DEVELOPMENT,16-Aug-2018,845003,Care and Independence Limited,"1,147.69",Capital
DIRECT CAPITAL DEVELOPMENT,DIRECT CAPITAL DEVELOPMENT,16-Aug-2018,845003,Care and Independence Limited,"1,666.19",Capital
DIRECT MANAGING DIRECTOR AND RESOURCES,DIRECT MANAGING DIRECTOR AND RESOURCES,16-Aug-2018,440531,Cardiff County Council,958.19,Revenue
DIRECT SOCIAL SERVICES,DIRECT SOCIAL SERVICES,16-Aug-2018,260050,Cennydd Richards,"1,100.00",Revenue
DIRECT MANAGING DIRECTOR AND RESOURCES,DIRECT MANAGING DIRECTOR AND RESOURCES,16-Aug-2018,140119,Acorn Recruitment Limited,"1,372.32",Revenue
DIRECT MANAGING DIRECTOR AND RESOURCES,DIRECT MANAGING DIRECTOR AND RESOURCES,16-Aug-2018,140131,Randstad Solutions Limited,-540.04,Revenue
DIRECT MANAGING DIRECTOR AND RESOURCES,DIRECT MANAGING DIRECTOR AND RESOURCES,16-Aug-2018,140131,Randstad Solutions Limited,"137,086.56",Revenue
DIRECT SOCIAL SERVICES,DIRECT SOCIAL SERVICES,16-Aug-2018,215489,April Complete Care Solutions Limited,584.00,Revenue
DIRECT SOCIAL SERVICES,DIRECT SOCIAL SERVICES,16-Aug-2018,216179,April Complete Care Solutions Limited,922.66,Revenue
DIRECT SOCIAL SERVICES,DIRECT SOCIAL SERVICES,16-Aug-2018,217909,April Complete Care Solutions Limited,866.90,Revenue
DIRECT SOCIAL SERVICES,DIRECT SOCIAL SERVICES,16-Aug-2018,216179,Crosshands Care Limited,"4,502.04",Revenue
DIRECT SOCIAL SERVICES,DIRECT SOCIAL SERVICES,16-Aug-2018,217909,Crosshands Care Limited,"6,646.48",Revenue
DIRECT SOCIAL SERVICES,DIRECT SOCIAL SERVICES,16-Aug-2018,217909,Crosshands Care Limited,"6,781.60",Revenue
DIRECT SOCIAL SERVICES,DIRECT SOCIAL SERVICES,16-Aug-2018,217909,Crosshands Care Limited,"4,808.08",Revenue
DIRECT SOCIAL SERVICES,DIRECT SOCIAL SERVICES,16-Aug-2018,217909,Crosshands Care Limited,"3,360.00",Revenue
DIRECT SOCIAL SERVICES,DIRECT SOCIAL SERVICES,16-Aug-2018,217909,Crosshands Care Limited,"4,514.72",Revenue
DIRECT SOCIAL SERVICES,DIRECT SOCIAL SERVICES,16-Aug-2018,260235,Walter Standen T/A Standens Contract Hire,782.00,Revenue
DIRECT SOCIAL SERVICES,DIRECT SOCIAL SERVICES,17-Aug-2018,215489,1st Grade Care Limited,532.70,Revenue
DIRECT SOCIAL SERVICES,DIRECT SOCIAL SERVICES,17-Aug-2018,215489,1st Grade Care Limited,656.15,Revenue
DIRECT SOCIAL SERVICES,DIRECT SOCIAL SERVICES,17-Aug-2018,215489,1st Grade Care Limited,582.40,Revenue
DIRECT SOCIAL SERVICES,DIRECT SOCIAL SERVICES,17-Aug-2018,215489,1st Grade Care Limited,621.60,Revenue
DIRECT SOCIAL SERVICES,DIRECT SOCIAL SERVICES,17-Aug-2018,215489,1st Grade Care Limited,597.15,Revenue
DIRECT SOCIAL SERVICES,DIRECT SOCIAL SERVICES,17-Aug-2018,215489,1st Grade Care Limited,532.70,Revenue
DIRECT SOCIAL SERVICES,DIRECT SOCIAL SERVICES,17-Aug-2018,215489,Care In Wales Limited T/A Care in the Vale,730.93,Revenue
DIRECT SOCIAL SERVICES,DIRECT SOCIAL SERVICES,17-Aug-2018,215489,Care In Wales Limited T/A Care in the Vale,715.42,Revenue
DIRECT SOCIAL SERVICES,DIRECT SOCIAL SERVICES,17-Aug-2018,215489,Care In Wales Limited T/A Care in the Vale,724.65,Revenue
DIRECT SOCIAL SERVICES,DIRECT SOCIAL SERVICES,17-Aug-2018,215489,Care In Wales Limited T/A Care in the Vale,708.87,Revenue
DIRECT SOCIAL SERVICES,DIRECT SOCIAL SERVICES,17-Aug-2018,215489,Care In Wales Limited T/A Care in the Vale,620.83,Revenue
DIRECT SOCIAL SERVICES,DIRECT SOCIAL SERVICES,17-Aug-2018,215489,Care In Wales Limited T/A Care in the Vale,637.71,Revenue
DIRECT SOCIAL SERVICES,DIRECT SOCIAL SERVICES,17-Aug-2018,215489,Care In Wales Limited T/A Care in the Vale,538.31,Revenue
DIRECT SOCIAL SERVICES,DIRECT SOCIAL SERVICES,17-Aug-2018,215489,Care In Wales Limited T/A Care in the Vale,696.19,Revenue
DIRECT SOCIAL SERVICES,DIRECT SOCIAL SERVICES,17-Aug-2018,215489,Care In Wales Limited T/A Care in the Vale,595.62,Revenue
DIRECT SOCIAL SERVICES,DIRECT SOCIAL SERVICES,17-Aug-2018,215489,Care In Wales Limited T/A Care in the Vale,622.72,Revenue
DIRECT SOCIAL SERVICES,DIRECT SOCIAL SERVICES,17-Aug-2018,215489,Care In Wales Limited T/A Care in the Vale,781.05,Revenue
DIRECT SOCIAL SERVICES,DIRECT SOCIAL SERVICES,17-Aug-2018,215489,Care In Wales Limited T/A Care in the Vale,670.84,Revenue
DIRECT SOCIAL SERVICES,DIRECT SOCIAL SERVICES,17-Aug-2018,215489,Hallows Care Limited T/A Hallows Care,690.95,Revenue
DIRECT SOCIAL SERVICES,DIRECT SOCIAL SERVICES,17-Aug-2018,215489,Hallows Care Limited T/A Hallows Care,635.32,Revenue
DIRECT SOCIAL SERVICES,DIRECT SOCIAL SERVICES,17-Aug-2018,215489,Hallows Care Limited T/A Hallows Care,618.29,Revenue
DIRECT SOCIAL SERVICES,DIRECT SOCIAL SERVICES,17-Aug-2018,215489,Hallows Care Limited T/A Hallows Care,608.35,Revenue
DIRECT SOCIAL SERVICES,DIRECT SOCIAL SERVICES,17-Aug-2018,215489,Nestor Primecare Services Limited t/a Allied Healthcare,521.83,Revenue
DIRECT SOCIAL SERVICES,DIRECT SOCIAL SERVICES,17-Aug-2018,216179,Care In Wales Limited T/A Care in the Vale,709.41,Revenue
DIRECT SOCIAL SERVICES,DIRECT SOCIAL SERVICES,17-Aug-2018,216179,Hallows Care Limited T/A Hallows Care,597.79,Revenue
DIRECT SOCIAL SERVICES,DIRECT SOCIAL SERVICES,17-Aug-2018,216179,Nestor Primecare Services Limited t/a Allied Healthcare,723.89,Revenue
DIRECT SOCIAL SERVICES,DIRECT SOCIAL SERVICES,17-Aug-2018,216179,Recovery Care Limited,"2,472.20",Revenue
DIRECT SOCIAL SERVICES,DIRECT SOCIAL SERVICES,17-Aug-2018,217909,1st Grade Care Limited,676.70,Revenue
DIRECT SOCIAL SERVICES,DIRECT SOCIAL SERVICES,17-Aug-2018,218419,Care In Wales Limited T/A Care in the Vale,672.26,Revenue
DIRECT SOCIAL SERVICES,DIRECT SOCIAL SERVICES,17-Aug-2018,218419,Care In Wales Limited T/A Care in the Vale,666.69,Revenue
DIRECT SOCIAL SERVICES,DIRECT SOCIAL SERVICES,17-Aug-2018,218419,Care In Wales Limited T/A Care in the Vale,677.98,Revenue
DIRECT SOCIAL SERVICES,DIRECT SOCIAL SERVICES,17-Aug-2018,209042,Infographics Limited,781.60,Revenue
DIRECT SOCIAL SERVICES,DIRECT SOCIAL SERVICES,17-Aug-2018,212741,SWLR Limited,808.00,Revenue
DIRECT SOCIAL SERVICES,DIRECT SOCIAL SERVICES,17-Aug-2018,215489,Cardiff Homecare Limited,708.18,Revenue
DIRECT SOCIAL SERVICES,DIRECT SOCIAL SERVICES,17-Aug-2018,215489,Cardiff Homecare Limited,766.92,Revenue
DIRECT SOCIAL SERVICES,DIRECT SOCIAL SERVICES,17-Aug-2018,216731,CJ Contract Travel Services Limited,570.00,Revenue
DIRECT SOCIAL SERVICES,DIRECT SOCIAL SERVICES,17-Aug-2018,217541,Care Management Group Limited,"94,681.72",Revenue
DIRECT SOCIAL SERVICES,DIRECT SOCIAL SERVICES,17-Aug-2018,217541,Care Management Group Limited,"1,177.17",Revenue
DIRECT SOCIAL SERVICES,DIRECT SOCIAL SERVICES,17-Aug-2018,217541,Innovate Trust Limited,"268,297.68",Revenue
DIRECT SOCIAL SERVICES,DIRECT SOCIAL SERVICES,17-Aug-2018,217541,Innovate Trust Limited,"268,645.44",Revenue
DIRECT SOCIAL SERVICES,DIRECT SOCIAL SERVICES,17-Aug-2018,217909,Cartrefi Cymru Co-Operative Limited,"1,806.88",Revenue
DIRECT SOCIAL SERVICES,DIRECT SOCIAL SERVICES,17-Aug-2018,217909,Cartrefi Cymru Co-Operative Limited,"5,753.63",Revenue
DIRECT SOCIAL SERVICES,DIRECT SOCIAL SERVICES,17-Aug-2018,217909,National Autistic Society,"2,587.67",Revenue
DIRECT ENVIRONMENT AND HOUSING,DIRECT ENVIRONMENT AND HOUSING,17-Aug-2018,303900,Frontline EPCs LLP,700.00,Revenue
DIRECT ENVIRONMENT AND HOUSING,DIRECT ENVIRONMENT AND HOUSING,17-Aug-2018,303900,WWS 1987 Limited T/A Welsh Window Systems,780.00,Revenue
DIRECT ENVIRONMENT AND HOUSING,DIRECT ENVIRONMENT AND HOUSING,17-Aug-2018,303901,Handicare Accessibility Limited,"2,180.00",Revenue
DIRECT ENVIRONMENT AND HOUSING,DIRECT ENVIRONMENT AND HOUSING,17-Aug-2018,303931,G.P.H.I.T (Integrated Services) Limited,"3,120.00",Revenue
DIRECT ENVIRONMENT AND HOUSING,DIRECT ENVIRONMENT AND HOUSING,17-Aug-2018,303931,G.P.H.I.T (Integrated Services) Limited,600.00,Revenue
DIRECT ENVIRONMENT AND HOUSING,DIRECT ENVIRONMENT AND HOUSING,17-Aug-2018,303931,G.P.H.I.T (Integrated Services) Limited,"1,450.00",Revenue
DIRECT ENVIRONMENT AND HOUSING,DIRECT ENVIRONMENT AND HOUSING,17-Aug-2018,304103,Go Access Limited,"1,992.00",Revenue
DIRECT ENVIRONMENT AND HOUSING,DIRECT ENVIRONMENT AND HOUSING,17-Aug-2018,305724,LNC Floor Coverings Limited,"1,296.14",Revenue
DIRECT ENVIRONMENT AND HOUSING,DIRECT ENVIRONMENT AND HOUSING,17-Aug-2018,305728,G.P.H.I.T (Integrated Services) Limited,"3,840.00",Revenue
DIRECT ENVIRONMENT AND HOUSING,DIRECT ENVIRONMENT AND HOUSING,17-Aug-2018,305749,G.P.H.I.T (Integrated Services) Limited,"4,800.00",Revenue
DIRECT ENVIRONMENT AND HOUSING,DIRECT ENVIRONMENT AND HOUSING,17-Aug-2018,305751,G.P.H.I.T (Integrated Services) Limited,"6,480.00",Revenue
DIRECT ENVIRONMENT AND HOUSING,DIRECT ENVIRONMENT AND HOUSING,17-Aug-2018,312160,Smart Solutions (Recruitment) Limited,921.60,Revenue
DIRECT ENVIRONMENT AND HOUSING,DIRECT ENVIRONMENT AND HOUSING,17-Aug-2018,403135,Institute of Licensing Events Limited,"1,350.00",Revenue
DIRECT ENVIRONMENT AND HOUSING,DIRECT ENVIRONMENT AND HOUSING,17-Aug-2018,403138,Commercial Radio Systems Limited,"1,435.00",Revenue
DIRECT MANAGING DIRECTOR AND RESOURCES,DIRECT MANAGING DIRECTOR AND RESOURCES,17-Aug-2018,421230,Xerox (UK) Limited,"13,810.56",Revenue
DIRECT SOCIAL SERVICES,DIRECT SOCIAL SERVICES,17-Aug-2018,216181,Cardiff & Vale University Local Health Board,"3,861.59",Revenue
DIRECT SOCIAL SERVICES,DIRECT SOCIAL SERVICES,17-Aug-2018,216191,Cardiff County Council,"53,233.50",Revenue
DIRECT ENVIRONMENT AND HOUSING,DIRECT ENVIRONMENT AND HOUSING,17-Aug-2018,305752,Michael Bryl & Ptn T/A CW Facilities Management,"4,214.00",Revenue
DIRECT LEARNING AND SKILLS,DIRECT LEARNING AND SKILLS,17-Aug-2018,440615,Gillian Munro,900.00,Revenue
DIRECT SOCIAL SERVICES,DIRECT SOCIAL SERVICES,17-Aug-2018,260116,Purchase Card Direct Debit Payments,667.50,Revenue
DIRECT SOCIAL SERVICES,DIRECT SOCIAL SERVICES,17-Aug-2018,260235,Purchase Card Direct Debit Payments,"1,250.80",Revenue
DIRECT SOCIAL SERVICES,DIRECT SOCIAL SERVICES,17-Aug-2018,260500,Purchase Card Direct Debit Payments,715.35,Revenue
DIRECT ENVIRONMENT AND HOUSING,DIRECT ENVIRONMENT AND HOUSING,17-Aug-2018,319010,Purchase Card Direct Debit Payments,652.50,Revenue
DIRECT ENVIRONMENT AND HOUSING,DIRECT ENVIRONMENT AND HOUSING,17-Aug-2018,403138,Purchase Card Direct Debit Payments,"1,000.00",Revenue
DIRECT ENVIRONMENT AND HOUSING,DIRECT ENVIRONMENT AND HOUSING,17-Aug-2018,403218,Purchase Card Direct Debit Payments,533.33,Revenue
DIRECT MANAGING DIRECTOR AND RESOURCES,DIRECT MANAGING DIRECTOR AND RESOURCES,17-Aug-2018,421230,Purchase Card Direct Debit Payments,925.65,Revenue
DIRECT MANAGING DIRECTOR AND RESOURCES,DIRECT MANAGING DIRECTOR AND RESOURCES,17-Aug-2018,421230,Purchase Card Direct Debit Payments,778.00,Revenue
DIRECT SOCIAL SERVICES,DIRECT SOCIAL SERVICES,17-Aug-2018,212741,Blue Arrow Limited,782.67,Revenue
DIRECT SOCIAL SERVICES,DIRECT SOCIAL SERVICES,17-Aug-2018,212741,Blue Arrow Limited,752.84,Revenue
DIRECT SOCIAL SERVICES,DIRECT SOCIAL SERVICES,17-Aug-2018,212741,Blue Arrow Limited,542.05,Revenue
DIRECT ENVIRONMENT AND HOUSING,DIRECT ENVIRONMENT AND HOUSING,17-Aug-2018,407119,Building Recruitment Company Limited,"1,346.63",Revenue
DIRECT ENVIRONMENT AND HOUSING,DIRECT ENVIRONMENT AND HOUSING,17-Aug-2018,304103,Ashley Lynch-Wilson t/a ALW Steel Fabricator,840.00,Revenue
DIRECT ENVIRONMENT AND HOUSING,DIRECT ENVIRONMENT AND HOUSING,17-Aug-2018,319010,Ceri Williams t/a Mobile Tyre Services,"4,160.26",Revenue
DIRECT SOCIAL SERVICES,DIRECT SOCIAL SERVICES,17-Aug-2018,216181,Sight Cymru,"4,025.44",Revenue
DIRECT MANAGING DIRECTOR AND RESOURCES,DIRECT MANAGING DIRECTOR AND RESOURCES,17-Aug-2018,465201,East Vale Community Transport,"16,866.00",Revenue
DIRECT SOCIAL SERVICES,DIRECT SOCIAL SERVICES,20-Aug-2018,215489,1st Grade Care Limited,532.70,Revenue
DIRECT SOCIAL SERVICES,DIRECT SOCIAL SERVICES,20-Aug-2018,215489,1st Grade Care Limited,564.50,Revenue
DIRECT SOCIAL SERVICES,DIRECT SOCIAL SERVICES,20-Aug-2018,215489,1st Grade Care Limited,582.40,Revenue
DIRECT SOCIAL SERVICES,DIRECT SOCIAL SERVICES,20-Aug-2018,215489,1st Grade Care Limited,621.60,Revenue
DIRECT SOCIAL SERVICES,DIRECT SOCIAL SERVICES,20-Aug-2018,215489,1st Grade Care Limited,597.15,Revenue
DIRECT SOCIAL SERVICES,DIRECT SOCIAL SERVICES,20-Aug-2018,215489,1st Grade Care Limited,532.70,Revenue
DIRECT SOCIAL SERVICES,DIRECT SOCIAL SERVICES,20-Aug-2018,215489,All Care (South Wales) Limited,563.84,Revenue
DIRECT SOCIAL SERVICES,DIRECT SOCIAL SERVICES,20-Aug-2018,215489,All Care (South Wales) Limited,618.94,Revenue
DIRECT SOCIAL SERVICES,DIRECT SOCIAL SERVICES,20-Aug-2018,215489,All Care (South Wales) Limited,514.08,Revenue
DIRECT SOCIAL SERVICES,DIRECT SOCIAL SERVICES,20-Aug-2018,215489,All Care (South Wales) Limited,534.87,Revenue
DIRECT SOCIAL SERVICES,DIRECT SOCIAL SERVICES,20-Aug-2018,215489,Caring Companions Limited,592.50,Revenue
DIRECT SOCIAL SERVICES,DIRECT SOCIAL SERVICES,20-Aug-2018,215489,Caring Companions Limited,750.68,Revenue
DIRECT SOCIAL SERVICES,DIRECT SOCIAL SERVICES,20-Aug-2018,215489,Caring Companions Limited,571.55,Revenue
DIRECT SOCIAL SERVICES,DIRECT SOCIAL SERVICES,20-Aug-2018,215489,Caring Companions Limited,544.18,Revenue
DIRECT SOCIAL SERVICES,DIRECT SOCIAL SERVICES,20-Aug-2018,215489,Caring Companions Limited,660.94,Revenue
DIRECT SOCIAL SERVICES,DIRECT SOCIAL SERVICES,20-Aug-2018,215489,Caring Companions Limited,523.60,Revenue
DIRECT SOCIAL SERVICES,DIRECT SOCIAL SERVICES,20-Aug-2018,215489,Caring Companions Limited,599.20,Revenue
DIRECT SOCIAL SERVICES,DIRECT SOCIAL SERVICES,20-Aug-2018,215489,Parkrow Care Limited,568.78,Revenue
DIRECT SOCIAL SERVICES,DIRECT SOCIAL SERVICES,20-Aug-2018,215489,Parkrow Care Limited,600.48,Revenue
DIRECT SOCIAL SERVICES,DIRECT SOCIAL SERVICES,20-Aug-2018,216179,1st Grade Care Limited,546.25,Revenue
DIRECT SOCIAL SERVICES,DIRECT SOCIAL SERVICES,20-Aug-2018,216179,All Care (South Wales) Limited,730.06,Revenue
DIRECT SOCIAL SERVICES,DIRECT SOCIAL SERVICES,20-Aug-2018,216179,All Care (South Wales) Limited,553.13,Revenue
DIRECT SOCIAL SERVICES,DIRECT SOCIAL SERVICES,20-Aug-2018,217909,1st Grade Care Limited,676.70,Revenue
DIRECT SOCIAL SERVICES,DIRECT SOCIAL SERVICES,20-Aug-2018,218419,All Care (South Wales) Limited,680.68,Revenue
DIRECT SOCIAL SERVICES,DIRECT SOCIAL SERVICES,20-Aug-2018,218419,Parkrow Care Limited,625.72,Revenue
DIRECT LEARNING AND SKILLS,DIRECT LEARNING AND SKILLS,20-Aug-2018,100121,FFT Education Limited,750.00,Revenue
DIRECT LEARNING AND SKILLS,DIRECT LEARNING AND SKILLS,20-Aug-2018,109020,RT Safety Limited,600.00,Revenue
DIRECT SOCIAL SERVICES,DIRECT SOCIAL SERVICES,20-Aug-2018,212731,TJ Services (Wales) Limited,605.00,Revenue
DIRECT SOCIAL SERVICES,DIRECT SOCIAL SERVICES,20-Aug-2018,215121,Tunstall Healthcare (UK) Limited,749.40,Revenue
DIRECT ENVIRONMENT AND HOUSING,DIRECT ENVIRONMENT AND HOUSING,20-Aug-2018,319010,DS Pumping Stations Limited,633.00,Revenue
DIRECT ENVIRONMENT AND HOUSING,DIRECT ENVIRONMENT AND HOUSING,20-Aug-2018,352730,Moonforge Limited T/A Mister Window,"3,215.00",Revenue
DIRECT ENVIRONMENT AND HOUSING,DIRECT ENVIRONMENT AND HOUSING,20-Aug-2018,356020,Coulson's Bridges Limited,"3,000.00",Revenue
DIRECT ENVIRONMENT AND HOUSING,DIRECT ENVIRONMENT AND HOUSING,20-Aug-2018,365763,Glamorgan Gem Limited,891.00,Revenue
DIRECT ENVIRONMENT AND HOUSING,DIRECT ENVIRONMENT AND HOUSING,20-Aug-2018,400050,Glamorgan Gem Limited,"1,266.00",Revenue
DIRECT ENVIRONMENT AND HOUSING,DIRECT ENVIRONMENT AND HOUSING,20-Aug-2018,400050,Glamorgan Gem Limited,585.00,Revenue
DIRECT ENVIRONMENT AND HOUSING,DIRECT ENVIRONMENT AND HOUSING,20-Aug-2018,400050,Glamorgan Gem Limited,594.00,Revenue
DIRECT ENVIRONMENT AND HOUSING,DIRECT ENVIRONMENT AND HOUSING,20-Aug-2018,403138,GB Group Plc,"6,500.00",Revenue
DIRECT ENVIRONMENT AND HOUSING,DIRECT ENVIRONMENT AND HOUSING,20-Aug-2018,407260,BBM Control Systems Limited,"2,202.00",Revenue
DIRECT MANAGING DIRECTOR AND RESOURCES,DIRECT MANAGING DIRECTOR AND RESOURCES,20-Aug-2018,422160,Bentley Systems International Limited,"1,078.00",Revenue
DIRECT MANAGING DIRECTOR AND RESOURCES,DIRECT MANAGING DIRECTOR AND RESOURCES,20-Aug-2018,440010,Glamorgan Gem Limited,600.00,Revenue
DIRECT CAPITAL LEARN AND SKILLS,DIRECT CAPITAL LEARN AND SKILLS,20-Aug-2018,810114,Bouygues (UK) Limited,540.00,Capital
DIRECT CAPITAL LEARN AND SKILLS,DIRECT CAPITAL LEARN AND SKILLS,20-Aug-2018,812251,Thornlink Limited T/A Vale Consultancy,"1,195.00",Capital
DIRECT CAPITAL VISIBLE AND HOUSING SERVICES,DIRECT CAPITAL VISIBLE AND HOUSING SERVICES,20-Aug-2018,831534,Watkins & Gunn Limited,800.00,Capital
DIRECT ENVIRONMENT AND HOUSING,DIRECT ENVIRONMENT AND HOUSING,20-Aug-2018,403230,Cardiff County Council,559.57,Revenue
DIRECT ENVIRONMENT AND HOUSING,DIRECT ENVIRONMENT AND HOUSING,20-Aug-2018,402330,Lee Reynolds,"1,000.00",Revenue
DIRECT ENVIRONMENT AND HOUSING,DIRECT ENVIRONMENT AND HOUSING,20-Aug-2018,403008,Carl Harrison,"2,685.24",Revenue
DIRECT SOCIAL SERVICES,DIRECT SOCIAL SERVICES,20-Aug-2018,215489,Willowmere Home Care Agency Limited,741.64,Revenue
DIRECT SOCIAL SERVICES,DIRECT SOCIAL SERVICES,20-Aug-2018,215489,Willowmere Home Care Agency Limited,619.08,Revenue
DIRECT SOCIAL SERVICES,DIRECT SOCIAL SERVICES,20-Aug-2018,215489,Willowmere Home Care Agency Limited,756.96,Revenue
DIRECT SOCIAL SERVICES,DIRECT SOCIAL SERVICES,20-Aug-2018,215489,Willowmere Home Care Agency Limited,619.08,Revenue
DIRECT SOCIAL SERVICES,DIRECT SOCIAL SERVICES,20-Aug-2018,215489,Willowmere Home Care Agency Limited,808.37,Revenue
DIRECT SOCIAL SERVICES,DIRECT SOCIAL SERVICES,20-Aug-2018,215489,Willowmere Home Care Agency Limited,540.75,Revenue
DIRECT SOCIAL SERVICES,DIRECT SOCIAL SERVICES,20-Aug-2018,215489,Willowmere Home Care Agency Limited,652.54,Revenue
DIRECT SOCIAL SERVICES,DIRECT SOCIAL SERVICES,20-Aug-2018,215489,Willowmere Home Care Agency Limited,816.14,Revenue
DIRECT SOCIAL SERVICES,DIRECT SOCIAL SERVICES,20-Aug-2018,215489,Willowmere Home Care Agency Limited,695.68,Revenue
DIRECT SOCIAL SERVICES,DIRECT SOCIAL SERVICES,20-Aug-2018,215489,Willowmere Home Care Agency Limited,619.08,Revenue
DIRECT SOCIAL SERVICES,DIRECT SOCIAL SERVICES,20-Aug-2018,215489,Willowmere Home Care Agency Limited,584.08,Revenue
DIRECT SOCIAL SERVICES,DIRECT SOCIAL SERVICES,20-Aug-2018,215489,Willowmere Home Care Agency Limited,667.86,Revenue
DIRECT SOCIAL SERVICES,DIRECT SOCIAL SERVICES,20-Aug-2018,215489,Willowmere Home Care Agency Limited,695.68,Revenue
DIRECT SOCIAL SERVICES,DIRECT SOCIAL SERVICES,20-Aug-2018,216179,Willowmere Home Care Agency Limited,"2,573.76",Revenue
DIRECT ENVIRONMENT AND HOUSING,DIRECT ENVIRONMENT AND HOUSING,20-Aug-2018,359341,Terrance Pearson T/A TP Pearson & Son,986.40,Revenue
DIRECT SOCIAL SERVICES,DIRECT SOCIAL SERVICES,21-Aug-2018,215489,All Saints DC Limited,694.10,Revenue
DIRECT SOCIAL SERVICES,DIRECT SOCIAL SERVICES,21-Aug-2018,215489,All Saints DC Limited,662.28,Revenue
DIRECT SOCIAL SERVICES,DIRECT SOCIAL SERVICES,21-Aug-2018,215489,All Saints DC Limited,627.96,Revenue
DIRECT SOCIAL SERVICES,DIRECT SOCIAL SERVICES,21-Aug-2018,215489,All Saints DC Limited,588.94,Revenue
DIRECT SOCIAL SERVICES,DIRECT SOCIAL SERVICES,21-Aug-2018,215489,All Saints DC Limited,669.86,Revenue
DIRECT SOCIAL SERVICES,DIRECT SOCIAL SERVICES,21-Aug-2018,215489,Annwyl Limited t/a Bluebird Care,655.25,Revenue
DIRECT SOCIAL SERVICES,DIRECT SOCIAL SERVICES,21-Aug-2018,215489,Annwyl Limited t/a Bluebird Care,666.68,Revenue
DIRECT SOCIAL SERVICES,DIRECT SOCIAL SERVICES,21-Aug-2018,215489,Annwyl Limited t/a Bluebird Care,732.21,Revenue
DIRECT SOCIAL SERVICES,DIRECT SOCIAL SERVICES,21-Aug-2018,215489,Annwyl Limited t/a Bluebird Care,608.80,Revenue
DIRECT SOCIAL SERVICES,DIRECT SOCIAL SERVICES,21-Aug-2018,215489,Caring Companions Limited,605.65,Revenue
DIRECT SOCIAL SERVICES,DIRECT SOCIAL SERVICES,21-Aug-2018,215489,Caring Companions Limited,605.65,Revenue
DIRECT SOCIAL SERVICES,DIRECT SOCIAL SERVICES,21-Aug-2018,215489,Caring Companions Limited,750.68,Revenue
DIRECT SOCIAL SERVICES,DIRECT SOCIAL SERVICES,21-Aug-2018,215489,Caring Companions Limited,571.55,Revenue
DIRECT SOCIAL SERVICES,DIRECT SOCIAL SERVICES,21-Aug-2018,215489,Caring Companions Limited,544.18,Revenue
DIRECT SOCIAL SERVICES,DIRECT SOCIAL SERVICES,21-Aug-2018,215489,Caring Companions Limited,605.65,Revenue
DIRECT SOCIAL SERVICES,DIRECT SOCIAL SERVICES,21-Aug-2018,215489,Caring Companions Limited,660.94,Revenue
DIRECT SOCIAL SERVICES,DIRECT SOCIAL SERVICES,21-Aug-2018,215489,Caring Companions Limited,523.60,Revenue
DIRECT SOCIAL SERVICES,DIRECT SOCIAL SERVICES,21-Aug-2018,215489,Caring Companions Limited,599.20,Revenue
DIRECT SOCIAL SERVICES,DIRECT SOCIAL SERVICES,21-Aug-2018,215489,GJ Care & Training Limited,559.02,Revenue
DIRECT SOCIAL SERVICES,DIRECT SOCIAL SERVICES,21-Aug-2018,215489,GJ Care & Training Limited,593.75,Revenue
DIRECT SOCIAL SERVICES,DIRECT SOCIAL SERVICES,21-Aug-2018,215489,GJ Care & Training Limited,618.26,Revenue
DIRECT SOCIAL SERVICES,DIRECT SOCIAL SERVICES,21-Aug-2018,217909,GJ Care & Training Limited,699.54,Revenue
DIRECT SOCIAL SERVICES,DIRECT SOCIAL SERVICES,21-Aug-2018,218321,GJ Care & Training Limited,571.20,Revenue
DIRECT SOCIAL SERVICES,DIRECT SOCIAL SERVICES,21-Aug-2018,218419,Annwyl Limited t/a Bluebird Care,625.01,Revenue
DIRECT LEARNING AND SKILLS,DIRECT LEARNING AND SKILLS,21-Aug-2018,130269,Spiro's (Cardiff) Limited,892.80,Revenue
DIRECT SOCIAL SERVICES,DIRECT SOCIAL SERVICES,21-Aug-2018,212741,Elliott Electrical Limited,817.00,Revenue
DIRECT SOCIAL SERVICES,DIRECT SOCIAL SERVICES,21-Aug-2018,215489,Celtic Community Services Limited,885.00,Revenue
DIRECT SOCIAL SERVICES,DIRECT SOCIAL SERVICES,21-Aug-2018,215489,Grangelodge Residential Home Limited t/a Grangelodge,513.66,Revenue
DIRECT SOCIAL SERVICES,DIRECT SOCIAL SERVICES,21-Aug-2018,215489,Salutem LD BIDCO IV Limited t/a Ambito Care & Education,"1,170.49",Revenue
DIRECT SOCIAL SERVICES,DIRECT SOCIAL SERVICES,21-Aug-2018,215489,Salutem LD BIDCO IV Limited t/a Ambito Care & Education,"1,170.49",Revenue
DIRECT SOCIAL SERVICES,DIRECT SOCIAL SERVICES,21-Aug-2018,215489,Salutem LD BIDCO IV Limited t/a Ambito Care & Education,"1,170.49",Revenue
DIRECT SOCIAL SERVICES,DIRECT SOCIAL SERVICES,21-Aug-2018,216179,Celtic Community Services Limited,659.25,Revenue
DIRECT SOCIAL SERVICES,DIRECT SOCIAL SERVICES,21-Aug-2018,216179,Celtic Community Services Limited,504.00,Revenue
DIRECT SOCIAL SERVICES,DIRECT SOCIAL SERVICES,21-Aug-2018,216179,Celtic Community Services Limited,741.00,Revenue
DIRECT SOCIAL SERVICES,DIRECT SOCIAL SERVICES,21-Aug-2018,216179,Celtic Community Services Limited,592.50,Revenue
DIRECT SOCIAL SERVICES,DIRECT SOCIAL SERVICES,21-Aug-2018,217909,Consensus Support Services Limited t/a Ty Machen,"2,163.85",Revenue
DIRECT SOCIAL SERVICES,DIRECT SOCIAL SERVICES,21-Aug-2018,217909,Salutem LD BIDCO IV Limited t/a Ambito Care & Education,"10,526.33",Revenue
DIRECT SOCIAL SERVICES,DIRECT SOCIAL SERVICES,21-Aug-2018,217909,Salutem LD BIDCO IV Limited t/a Ambito Care & Education,"10,302.74",Revenue
DIRECT SOCIAL SERVICES,DIRECT SOCIAL SERVICES,21-Aug-2018,217909,Salutem LD BIDCO IV Limited t/a Ambito Care & Education,"10,427.20",Revenue
DIRECT SOCIAL SERVICES,DIRECT SOCIAL SERVICES,21-Aug-2018,260130,Llamau Limited,700.00,Revenue
DIRECT SOCIAL SERVICES,DIRECT SOCIAL SERVICES,21-Aug-2018,260170,Watts Coaches Limited,895.50,Revenue
DIRECT ENVIRONMENT AND HOUSING,DIRECT ENVIRONMENT AND HOUSING,21-Aug-2018,300640,Golley Slater Group Limited,586.42,Revenue
DIRECT ENVIRONMENT AND HOUSING,DIRECT ENVIRONMENT AND HOUSING,21-Aug-2018,323684,Golley Slater Group Limited,"1,951.00",Revenue
DIRECT ENVIRONMENT AND HOUSING,DIRECT ENVIRONMENT AND HOUSING,21-Aug-2018,325345,Cemex UK Materials Limited,"1,459.05",Revenue
DIRECT ENVIRONMENT AND HOUSING,DIRECT ENVIRONMENT AND HOUSING,21-Aug-2018,402450,Jackson Lift Services Limited,774.00,Revenue
DIRECT ENVIRONMENT AND HOUSING,DIRECT ENVIRONMENT AND HOUSING,21-Aug-2018,403202,ALS Environmental Limited,886.70,Revenue
DIRECT ENVIRONMENT AND HOUSING,DIRECT ENVIRONMENT AND HOUSING,21-Aug-2018,407100,Northgate Public Services (UK) Limited,"2,000.00",Revenue
DIRECT MANAGING DIRECTOR AND RESOURCES,DIRECT MANAGING DIRECTOR AND RESOURCES,21-Aug-2018,420217,G4s Cash Solutions (UK) Limited,889.26,Revenue
DIRECT MANAGING DIRECTOR AND RESOURCES,DIRECT MANAGING DIRECTOR AND RESOURCES,21-Aug-2018,422100,Temperature Control Limited,890.00,Revenue
DIRECT MANAGING DIRECTOR AND RESOURCES,DIRECT MANAGING DIRECTOR AND RESOURCES,21-Aug-2018,479050,Zurich Insurance Plc t/a Zurich Municipal,"100,000.00",Revenue
DIRECT SOCIAL SERVICES,DIRECT SOCIAL SERVICES,21-Aug-2018,260050,Sara Owen,"2,450.00",Revenue
DIRECT ENVIRONMENT AND HOUSING,DIRECT ENVIRONMENT AND HOUSING,21-Aug-2018,359457,Crosskeys Silver Band,600.00,Revenue
DIRECT SOCIAL SERVICES,DIRECT SOCIAL SERVICES,21-Aug-2018,260150,Sanctuary Personnel Limited,"1,276.50",Revenue
DIRECT SOCIAL SERVICES,DIRECT SOCIAL SERVICES,21-Aug-2018,260150,Sanctuary Personnel Limited,"1,276.50",Revenue
DIRECT ENVIRONMENT AND HOUSING,DIRECT ENVIRONMENT AND HOUSING,21-Aug-2018,323686,Hays Specialist Recruitment Limited,"1,505.25",Revenue
DIRECT ENVIRONMENT AND HOUSING,DIRECT ENVIRONMENT AND HOUSING,21-Aug-2018,323686,Hays Specialist Recruitment Limited,640.64,Revenue
DIRECT ENVIRONMENT AND HOUSING,DIRECT ENVIRONMENT AND HOUSING,21-Aug-2018,407106,James Andrews Recruitment Solutions Limited,780.80,Revenue
DIRECT ENVIRONMENT AND HOUSING,DIRECT ENVIRONMENT AND HOUSING,21-Aug-2018,407118,James Andrews Recruitment Solutions Limited,"1,175.00",Revenue
DIRECT SOCIAL SERVICES,DIRECT SOCIAL SERVICES,21-Aug-2018,215486,Broadway Care Centre Limited T/A Hazelhurst Nursing Home,855.26,Revenue
DIRECT SOCIAL SERVICES,DIRECT SOCIAL SERVICES,21-Aug-2018,215486,Middlepatch Limited T/A College Fields Nursing Home,"1,496.70",Revenue
DIRECT SOCIAL SERVICES,DIRECT SOCIAL SERVICES,21-Aug-2018,215486,Springbank Care Home Limited T/A Springbank Nursing Home,555.92,Revenue
DIRECT SOCIAL SERVICES,DIRECT SOCIAL SERVICES,21-Aug-2018,215486,Waverley Care Centre Limited,"1,304.27",Revenue
DIRECT SOCIAL SERVICES,DIRECT SOCIAL SERVICES,21-Aug-2018,215486,Waverley Care Centre Limited,684.21,Revenue
DIRECT SOCIAL SERVICES,DIRECT SOCIAL SERVICES,21-Aug-2018,215489,Avan Limited T/A Brightside Manor,600.00,Revenue
DIRECT SOCIAL SERVICES,DIRECT SOCIAL SERVICES,21-Aug-2018,215489,Baltimore Care Limited,516.38,Revenue
DIRECT SOCIAL SERVICES,DIRECT SOCIAL SERVICES,21-Aug-2018,215489,Baltimore Care Limited,516.38,Revenue
DIRECT SOCIAL SERVICES,DIRECT SOCIAL SERVICES,21-Aug-2018,215489,Baltimore Care Limited,526.38,Revenue
DIRECT SOCIAL SERVICES,DIRECT SOCIAL SERVICES,21-Aug-2018,215489,Bellavista Care (Cardiff) Limited T/A Bellavista Nursing Home Cardiff,506.04,Revenue
DIRECT SOCIAL SERVICES,DIRECT SOCIAL SERVICES,21-Aug-2018,215489,Breaksea Residential Homes Limited,"3,450.68",Revenue
DIRECT SOCIAL SERVICES,DIRECT SOCIAL SERVICES,21-Aug-2018,215489,Broadway Care Centre Limited T/A Hazelhurst Nursing Home,"2,479.94",Revenue
DIRECT SOCIAL SERVICES,DIRECT SOCIAL SERVICES,21-Aug-2018,215489,Broadway Care Centre Limited T/A Hazelhurst Nursing Home,516.38,Revenue
DIRECT SOCIAL SERVICES,DIRECT SOCIAL SERVICES,21-Aug-2018,215489,Duffryn Ffrwd Manor Limited,549.49,Revenue
DIRECT SOCIAL SERVICES,DIRECT SOCIAL SERVICES,21-Aug-2018,215489,Forge Care Homes Limited t/a The Forge Care Centre,925.00,Revenue
DIRECT SOCIAL SERVICES,DIRECT SOCIAL SERVICES,21-Aug-2018,215489,Forge Care Homes Limited t/a The Forge Care Centre,753.97,Revenue
DIRECT SOCIAL SERVICES,DIRECT SOCIAL SERVICES,21-Aug-2018,215489,Forge Care Homes Limited t/a The Forge Care Centre,671.32,Revenue
DIRECT SOCIAL SERVICES,DIRECT SOCIAL SERVICES,21-Aug-2018,215489,Glamorgan Care Limited t/a Danygraig House,666.00,Revenue
DIRECT SOCIAL SERVICES,DIRECT SOCIAL SERVICES,21-Aug-2018,215489,Hafod Housing Association Limited T/A Brocastle Manor (Care Home),561.85,Revenue
DIRECT SOCIAL SERVICES,DIRECT SOCIAL SERVICES,21-Aug-2018,215489,Hafod Housing Association Limited T/A Brocastle Manor (Care Home),653.01,Revenue
DIRECT SOCIAL SERVICES,DIRECT SOCIAL SERVICES,21-Aug-2018,215489,Harrison Care Enterprises Barry Limited t/a Island View,516.38,Revenue
DIRECT SOCIAL SERVICES,DIRECT SOCIAL SERVICES,21-Aug-2018,215489,June Zehetmayr t/a Tower Hill Residential Home,538.12,Revenue
DIRECT SOCIAL SERVICES,DIRECT SOCIAL SERVICES,21-Aug-2018,215489,Llangoedmor Properties Limited T/A Parkside Residential Home,516.38,Revenue
DIRECT SOCIAL SERVICES,DIRECT SOCIAL SERVICES,21-Aug-2018,215489,Llangoedmor Properties Limited T/A Parkside Residential Home,545.22,Revenue
DIRECT SOCIAL SERVICES,DIRECT SOCIAL SERVICES,21-Aug-2018,215489,Llangoedmor Properties Limited T/A Parkside Residential Home,512.49,Revenue
DIRECT SOCIAL SERVICES,DIRECT SOCIAL SERVICES,21-Aug-2018,215489,Llangoedmor Properties Limited T/A Parkside Residential Home,516.38,Revenue
DIRECT SOCIAL SERVICES,DIRECT SOCIAL SERVICES,21-Aug-2018,215489,MHA Care Group t/a Morel Court,569.88,Revenue
DIRECT SOCIAL SERVICES,DIRECT SOCIAL SERVICES,21-Aug-2018,215489,MHA Care Group t/a Morel Court,531.09,Revenue
DIRECT SOCIAL SERVICES,DIRECT SOCIAL SERVICES,21-Aug-2018,215489,MHA Care Group t/a Ty Gwyn Private Nursing Home,581.24,Revenue
DIRECT SOCIAL SERVICES,DIRECT SOCIAL SERVICES,21-Aug-2018,215489,Middlepatch Limited T/A College Fields Nursing Home,592.17,Revenue
DIRECT SOCIAL SERVICES,DIRECT SOCIAL SERVICES,21-Aug-2018,215489,Middlepatch Limited T/A College Fields Nursing Home,621.36,Revenue
DIRECT SOCIAL SERVICES,DIRECT SOCIAL SERVICES,21-Aug-2018,215489,Middlepatch Limited T/A College Fields Nursing Home,605.25,Revenue
DIRECT SOCIAL SERVICES,DIRECT SOCIAL SERVICES,21-Aug-2018,215489,Middlepatch Limited T/A College Fields Nursing Home,602.96,Revenue
DIRECT SOCIAL SERVICES,DIRECT SOCIAL SERVICES,21-Aug-2018,215489,Middlepatch Limited T/A College Fields Nursing Home,"4,897.16",Revenue
DIRECT SOCIAL SERVICES,DIRECT SOCIAL SERVICES,21-Aug-2018,215489,Middlepatch Limited T/A College Fields Nursing Home,518.39,Revenue
DIRECT SOCIAL SERVICES,DIRECT SOCIAL SERVICES,21-Aug-2018,215489,Middlepatch Limited T/A College Fields Nursing Home,605.25,Revenue
DIRECT SOCIAL SERVICES,DIRECT SOCIAL SERVICES,21-Aug-2018,215489,Middlepatch Limited T/A College Fields Nursing Home,544.72,Revenue
DIRECT SOCIAL SERVICES,DIRECT SOCIAL SERVICES,21-Aug-2018,215489,Middlepatch Limited T/A College Fields Nursing Home,617.27,Revenue
DIRECT SOCIAL SERVICES,DIRECT SOCIAL SERVICES,21-Aug-2018,215489,Middlepatch Limited T/A College Fields Nursing Home,605.25,Revenue
DIRECT SOCIAL SERVICES,DIRECT SOCIAL SERVICES,21-Aug-2018,215489,Middlepatch Limited T/A College Fields Nursing Home,630.07,Revenue
DIRECT SOCIAL SERVICES,DIRECT SOCIAL SERVICES,21-Aug-2018,215489,Middlepatch Limited T/A College Fields Nursing Home,609.89,Revenue
DIRECT SOCIAL SERVICES,DIRECT SOCIAL SERVICES,21-Aug-2018,215489,Middlepatch Limited T/A College Fields Nursing Home,550.28,Revenue
DIRECT SOCIAL SERVICES,DIRECT SOCIAL SERVICES,21-Aug-2018,215489,Middlepatch Limited T/A College Fields Nursing Home,502.26,Revenue
DIRECT SOCIAL SERVICES,DIRECT SOCIAL SERVICES,21-Aug-2018,215489,Middlepatch Limited T/A College Fields Nursing Home,597.36,Revenue
DIRECT SOCIAL SERVICES,DIRECT SOCIAL SERVICES,21-Aug-2018,215489,Middlepatch Limited T/A College Fields Nursing Home,605.25,Revenue
DIRECT SOCIAL SERVICES,DIRECT SOCIAL SERVICES,21-Aug-2018,215489,Middlepatch Limited T/A College Fields Nursing Home,605.25,Revenue
DIRECT SOCIAL SERVICES,DIRECT SOCIAL SERVICES,21-Aug-2018,215489,Northcote Developments Limited,518.88,Revenue
DIRECT SOCIAL SERVICES,DIRECT SOCIAL SERVICES,21-Aug-2018,215489,Northcote Developments Limited,505.50,Revenue
DIRECT SOCIAL SERVICES,DIRECT SOCIAL SERVICES,21-Aug-2018,215489,Northcote Developments Limited,524.03,Revenue
DIRECT SOCIAL SERVICES,DIRECT SOCIAL SERVICES,21-Aug-2018,215489,Northcote Developments Limited,515.73,Revenue
DIRECT SOCIAL SERVICES,DIRECT SOCIAL SERVICES,21-Aug-2018,215489,Oakville Care Limited t/a Romilly Nursing Home,900.00,Revenue
DIRECT SOCIAL SERVICES,DIRECT SOCIAL SERVICES,21-Aug-2018,215489,Springbank Care Home Limited T/A Springbank Nursing Home,"1,738.14",Revenue
DIRECT SOCIAL SERVICES,DIRECT SOCIAL SERVICES,21-Aug-2018,215489,Springbank Care Home Limited T/A Springbank Nursing Home,603.33,Revenue
DIRECT SOCIAL SERVICES,DIRECT SOCIAL SERVICES,21-Aug-2018,215489,Springbank Care Home Limited T/A Springbank Nursing Home,615.00,Revenue
DIRECT SOCIAL SERVICES,DIRECT SOCIAL SERVICES,21-Aug-2018,215489,Springbank Care Home Limited T/A Springbank Nursing Home,556.38,Revenue
DIRECT SOCIAL SERVICES,DIRECT SOCIAL SERVICES,21-Aug-2018,215489,Springbank Care Home Limited T/A Springbank Nursing Home,666.50,Revenue
DIRECT SOCIAL SERVICES,DIRECT SOCIAL SERVICES,21-Aug-2018,215489,Waverley Care Centre Limited,519.12,Revenue
DIRECT SOCIAL SERVICES,DIRECT SOCIAL SERVICES,21-Aug-2018,215489,Waverley Care Centre Limited,"6,233.59",Revenue
DIRECT SOCIAL SERVICES,DIRECT SOCIAL SERVICES,21-Aug-2018,215489,Waverley Care Centre Limited,715.33,Revenue
DIRECT SOCIAL SERVICES,DIRECT SOCIAL SERVICES,21-Aug-2018,215489,Waverley Care Centre Limited,540.83,Revenue
DIRECT SOCIAL SERVICES,DIRECT SOCIAL SERVICES,21-Aug-2018,215489,Waverley Care Centre Limited,"1,858.47",Revenue
DIRECT SOCIAL SERVICES,DIRECT SOCIAL SERVICES,21-Aug-2018,215489,Waverley Care Centre Limited,605.03,Revenue
DIRECT SOCIAL SERVICES,DIRECT SOCIAL SERVICES,21-Aug-2018,215489,Waverley Care Centre Limited,675.33,Revenue
DIRECT SOCIAL SERVICES,DIRECT SOCIAL SERVICES,21-Aug-2018,215489,Waverley Care Centre Limited,"1,487.73",Revenue
DIRECT SOCIAL SERVICES,DIRECT SOCIAL SERVICES,21-Aug-2018,215489,Waverley Care Centre Limited,512.53,Revenue
DIRECT SOCIAL SERVICES,DIRECT SOCIAL SERVICES,21-Aug-2018,215489,Waverley Care Centre Limited,519.40,Revenue
DIRECT SOCIAL SERVICES,DIRECT SOCIAL SERVICES,21-Aug-2018,215489,Waverley Care Centre Limited,588.35,Revenue
DIRECT SOCIAL SERVICES,DIRECT SOCIAL SERVICES,21-Aug-2018,215489,Waverley Care Centre Limited,614.77,Revenue
DIRECT SOCIAL SERVICES,DIRECT SOCIAL SERVICES,21-Aug-2018,216179,Accomplish Group Limited t/a Cedar House,"1,380.73",Revenue
DIRECT SOCIAL SERVICES,DIRECT SOCIAL SERVICES,21-Aug-2018,216179,Amethyst Healthcare Limited t/a Hillstone House,"1,770.23",Revenue
DIRECT SOCIAL SERVICES,DIRECT SOCIAL SERVICES,21-Aug-2018,216179,Bellavista Nursing Homes (Wales) Limited t/a Bellavista Care Home,552.23,Revenue
DIRECT SOCIAL SERVICES,DIRECT SOCIAL SERVICES,21-Aug-2018,216179,Care 4 U (Neath) Limited,"1,754.28",Revenue
DIRECT SOCIAL SERVICES,DIRECT SOCIAL SERVICES,21-Aug-2018,216179,Crusader Medical Care Limited T/A St Saviours Nursing Home,551.35,Revenue
DIRECT SOCIAL SERVICES,DIRECT SOCIAL SERVICES,21-Aug-2018,216179,Leonard Cheshire Disability,"1,209.78",Revenue
DIRECT SOCIAL SERVICES,DIRECT SOCIAL SERVICES,21-Aug-2018,216179,Middlepatch Limited T/A College Fields Nursing Home,639.85,Revenue
DIRECT SOCIAL SERVICES,DIRECT SOCIAL SERVICES,21-Aug-2018,216179,Middlepatch Limited T/A College Fields Nursing Home,655.45,Revenue
DIRECT SOCIAL SERVICES,DIRECT SOCIAL SERVICES,21-Aug-2018,216179,Springbank Care Home Limited T/A Springbank Nursing Home,770.00,Revenue
DIRECT SOCIAL SERVICES,DIRECT SOCIAL SERVICES,21-Aug-2018,216179,Valebrook Care Homes Limited,"1,851.35",Revenue
DIRECT SOCIAL SERVICES,DIRECT SOCIAL SERVICES,21-Aug-2018,216179,Voyage 1 Limited t/a Brook Lodge,"2,528.80",Revenue
DIRECT SOCIAL SERVICES,DIRECT SOCIAL SERVICES,21-Aug-2018,216179,Voyage 1 Limited t/a Falcons Rest & Poachers Cottage,"1,729.64",Revenue
DIRECT SOCIAL SERVICES,DIRECT SOCIAL SERVICES,21-Aug-2018,217909,Accomplish Group Limited,"1,821.48",Revenue
DIRECT SOCIAL SERVICES,DIRECT SOCIAL SERVICES,21-Aug-2018,217909,Accomplish Group Limited,"2,146.47",Revenue
DIRECT SOCIAL SERVICES,DIRECT SOCIAL SERVICES,21-Aug-2018,217909,Accomplish Group Limited t/a Cedar House,"1,582.70",Revenue
DIRECT SOCIAL SERVICES,DIRECT SOCIAL SERVICES,21-Aug-2018,217909,Amethyst Healthcare Limited t/a Hillstone House,"1,680.86",Revenue
DIRECT SOCIAL SERVICES,DIRECT SOCIAL SERVICES,21-Aug-2018,217909,Amethyst Healthcare Limited t/a Hillstone House,"1,462.13",Revenue
DIRECT SOCIAL SERVICES,DIRECT SOCIAL SERVICES,21-Aug-2018,217909,Broadway Care Centre Limited T/A Hazelhurst Nursing Home,500.05,Revenue
DIRECT SOCIAL SERVICES,DIRECT SOCIAL SERVICES,21-Aug-2018,217909,Broadway Care Centre Limited T/A Hazelhurst Nursing Home,507.15,Revenue
DIRECT SOCIAL SERVICES,DIRECT SOCIAL SERVICES,21-Aug-2018,217909,Glasallt Fawr Camphill Centre,995.72,Revenue
DIRECT SOCIAL SERVICES,DIRECT SOCIAL SERVICES,21-Aug-2018,217909,Glasallt Fawr Camphill Centre,"1,544.90",Revenue
DIRECT SOCIAL SERVICES,DIRECT SOCIAL SERVICES,21-Aug-2018,217909,Heatherleigh Care Limited t/a 106 Splott Road,"1,563.71",Revenue
DIRECT SOCIAL SERVICES,DIRECT SOCIAL SERVICES,21-Aug-2018,217909,Heatherleigh Care Limited t/a 106 Splott Road,"1,223.14",Revenue
DIRECT SOCIAL SERVICES,DIRECT SOCIAL SERVICES,21-Aug-2018,217909,Llysywaun Limited t/a Bayview Lodge Nursing Home,"1,724.90",Revenue
DIRECT SOCIAL SERVICES,DIRECT SOCIAL SERVICES,21-Aug-2018,217909,Ocean Community Services Limited t/a Westminster Court Care Home,"1,116.27",Revenue
DIRECT SOCIAL SERVICES,DIRECT SOCIAL SERVICES,21-Aug-2018,217909,The Cedars Care Services Limited T/A Ashgrove Care Home,"2,112.35",Revenue
DIRECT SOCIAL SERVICES,DIRECT SOCIAL SERVICES,21-Aug-2018,217909,The Cedars Care Services Limited T/A Ashgrove Care Home,995.35,Revenue
DIRECT SOCIAL SERVICES,DIRECT SOCIAL SERVICES,21-Aug-2018,217909,The Cedars Care Services Limited T/A Oaklands,"1,030.35",Revenue
DIRECT SOCIAL SERVICES,DIRECT SOCIAL SERVICES,21-Aug-2018,217909,The Cedars Care Services Limited t/a Sycamore House,"2,026.35",Revenue
DIRECT SOCIAL SERVICES,DIRECT SOCIAL SERVICES,21-Aug-2018,217909,The Cedars Care Services Limited t/a Sycamore House,"1,809.35",Revenue
DIRECT SOCIAL SERVICES,DIRECT SOCIAL SERVICES,21-Aug-2018,217909,The Cedars Care Services Limited t/a The Cedars,"1,576.06",Revenue
DIRECT SOCIAL SERVICES,DIRECT SOCIAL SERVICES,21-Aug-2018,217909,The Cedars Care Services Limited t/a The Cedars,"1,365.05",Revenue
DIRECT SOCIAL SERVICES,DIRECT SOCIAL SERVICES,21-Aug-2018,217909,The Cedars Care Services Limited t/a The Hollies,"1,864.35",Revenue
DIRECT SOCIAL SERVICES,DIRECT SOCIAL SERVICES,21-Aug-2018,217909,Vale Phoenix Limited,"1,079.73",Revenue
DIRECT SOCIAL SERVICES,DIRECT SOCIAL SERVICES,21-Aug-2018,217909,Vale Phoenix Limited,"1,116.94",Revenue
DIRECT SOCIAL SERVICES,DIRECT SOCIAL SERVICES,21-Aug-2018,217909,Valebrook Care Homes Limited,"1,654.39",Revenue
DIRECT SOCIAL SERVICES,DIRECT SOCIAL SERVICES,21-Aug-2018,217909,Valebrook Care Homes Limited,"1,999.50",Revenue
DIRECT SOCIAL SERVICES,DIRECT SOCIAL SERVICES,21-Aug-2018,217909,Valebrook Care Homes Limited,"1,420.24",Revenue
DIRECT SOCIAL SERVICES,DIRECT SOCIAL SERVICES,21-Aug-2018,217909,Valebrook Care Homes Limited,"1,767.35",Revenue
DIRECT SOCIAL SERVICES,DIRECT SOCIAL SERVICES,21-Aug-2018,217909,Valebrook Care Homes Limited,"1,861.95",Revenue
DIRECT SOCIAL SERVICES,DIRECT SOCIAL SERVICES,21-Aug-2018,217909,Valebrook Care Homes Limited,"1,390.24",Revenue
DIRECT SOCIAL SERVICES,DIRECT SOCIAL SERVICES,21-Aug-2018,218321,Adriana Limited T/A The Priory Nursing Home,536.00,Revenue
DIRECT SOCIAL SERVICES,DIRECT SOCIAL SERVICES,21-Aug-2018,218321,Hafod Care Association Limited,635.50,Revenue
DIRECT SOCIAL SERVICES,DIRECT SOCIAL SERVICES,21-Aug-2018,218321,Harrison Care Enterprises Barry Limited t/a Island View,520.91,Revenue
DIRECT SOCIAL SERVICES,DIRECT SOCIAL SERVICES,21-Aug-2018,218321,Isman & Kinze Nessa T/A Haven House,516.38,Revenue
DIRECT SOCIAL SERVICES,DIRECT SOCIAL SERVICES,21-Aug-2018,218321,J and P Residential Homes Limited T/A Monkstone House,600.00,Revenue
DIRECT SOCIAL SERVICES,DIRECT SOCIAL SERVICES,21-Aug-2018,218321,Liam George t/a Claremont Care Home,516.45,Revenue
DIRECT SOCIAL SERVICES,DIRECT SOCIAL SERVICES,21-Aug-2018,218321,Sanda Mitchel & Ptn t/a Canola House Residential Home,600.00,Revenue
DIRECT SOCIAL SERVICES,DIRECT SOCIAL SERVICES,21-Aug-2018,218321,Sanda Mitchel & Ptn t/a Canola House Residential Home,501.35,Revenue
DIRECT SOCIAL SERVICES,DIRECT SOCIAL SERVICES,21-Aug-2018,218321,Waverley Care Centre Limited,909.98,Revenue
DIRECT SOCIAL SERVICES,DIRECT SOCIAL SERVICES,21-Aug-2018,218419,Anwen Care Limited t/a Anwen Care Home,690.56,Revenue
DIRECT SOCIAL SERVICES,DIRECT SOCIAL SERVICES,21-Aug-2018,218419,Baltimore Care Limited,508.51,Revenue
DIRECT SOCIAL SERVICES,DIRECT SOCIAL SERVICES,21-Aug-2018,218419,Baltimore Care Limited,527.38,Revenue
DIRECT SOCIAL SERVICES,DIRECT SOCIAL SERVICES,21-Aug-2018,218419,Bellavista Care (Cardiff) Limited T/A Bellavista Nursing Home Cardiff,546.71,Revenue
DIRECT SOCIAL SERVICES,DIRECT SOCIAL SERVICES,21-Aug-2018,218419,Bellavista Care (Cardiff) Limited T/A Bellavista Nursing Home Cardiff,516.38,Revenue
DIRECT SOCIAL SERVICES,DIRECT SOCIAL SERVICES,21-Aug-2018,218419,Broadway Care Centre Limited T/A Hazelhurst Nursing Home,516.38,Revenue
DIRECT SOCIAL SERVICES,DIRECT SOCIAL SERVICES,21-Aug-2018,218419,Broadway Care Centre Limited T/A Hazelhurst Nursing Home,699.85,Revenue
DIRECT SOCIAL SERVICES,DIRECT SOCIAL SERVICES,21-Aug-2018,218419,David Austin t/a Silverdale,663.68,Revenue
DIRECT SOCIAL SERVICES,DIRECT SOCIAL SERVICES,21-Aug-2018,218419,E & E Homes Limited T/A Cliffhaven Residential Home,501.05,Revenue
DIRECT SOCIAL SERVICES,DIRECT SOCIAL SERVICES,21-Aug-2018,218419,E & E Homes Limited T/A Cliffhaven Residential Home,516.38,Revenue
DIRECT SOCIAL SERVICES,DIRECT SOCIAL SERVICES,21-Aug-2018,218419,E & E Homes Limited T/A Cliffhaven Residential Home,516.38,Revenue
DIRECT SOCIAL SERVICES,DIRECT SOCIAL SERVICES,21-Aug-2018,218419,E & E Homes Limited T/A Cliffhaven Residential Home,505.20,Revenue
DIRECT SOCIAL SERVICES,DIRECT SOCIAL SERVICES,21-Aug-2018,218419,Forge Care Homes Limited t/a The Forge Care Centre,549.58,Revenue
DIRECT SOCIAL SERVICES,DIRECT SOCIAL SERVICES,21-Aug-2018,218419,Hallmark Care Homes (Bute Town) Limited t/a Shire Hall Care Home,784.67,Revenue
DIRECT SOCIAL SERVICES,DIRECT SOCIAL SERVICES,21-Aug-2018,218419,Hallmark Care Homes (Bute Town) Limited t/a Shire Hall Care Home,"1,215.50",Revenue
DIRECT SOCIAL SERVICES,DIRECT SOCIAL SERVICES,21-Aug-2018,218419,Harrison Care Enterprises Barry Limited t/a Island View,516.38,Revenue
DIRECT SOCIAL SERVICES,DIRECT SOCIAL SERVICES,21-Aug-2018,218419,Harrison Care Enterprises Barry Limited t/a Island View,501.96,Revenue
DIRECT SOCIAL SERVICES,DIRECT SOCIAL SERVICES,21-Aug-2018,218419,Harrison Care Enterprises Barry Limited t/a Island View,650.88,Revenue
DIRECT SOCIAL SERVICES,DIRECT SOCIAL SERVICES,21-Aug-2018,218419,Harrison Care Enterprises Barry Limited t/a Island View,514.75,Revenue
DIRECT SOCIAL SERVICES,DIRECT SOCIAL SERVICES,21-Aug-2018,218419,Harrison Care Enterprises Barry Limited t/a Island View,544.81,Revenue
DIRECT SOCIAL SERVICES,DIRECT SOCIAL SERVICES,21-Aug-2018,218419,Harrison Care Enterprises Barry Limited t/a Island View,516.38,Revenue
DIRECT SOCIAL SERVICES,DIRECT SOCIAL SERVICES,21-Aug-2018,218419,Harrison Care Enterprises Barry Limited t/a Island View,516.38,Revenue
DIRECT SOCIAL SERVICES,DIRECT SOCIAL SERVICES,21-Aug-2018,218419,Harrison Care Enterprises Barry Limited t/a Island View,516.38,Revenue
DIRECT SOCIAL SERVICES,DIRECT SOCIAL SERVICES,21-Aug-2018,218419,Harrison Care Enterprises Barry Limited t/a Island View,503.11,Revenue
DIRECT SOCIAL SERVICES,DIRECT SOCIAL SERVICES,21-Aug-2018,218419,Harrison Care Enterprises Barry Limited t/a Island View,516.38,Revenue
DIRECT SOCIAL SERVICES,DIRECT SOCIAL SERVICES,21-Aug-2018,218419,Hebron Hall Limited,"3,767.28",Revenue
DIRECT SOCIAL SERVICES,DIRECT SOCIAL SERVICES,21-Aug-2018,218419,Hebron Hall Limited,503.59,Revenue
DIRECT SOCIAL SERVICES,DIRECT SOCIAL SERVICES,21-Aug-2018,218419,Hebron Hall Limited,"6,618.14",Revenue
DIRECT SOCIAL SERVICES,DIRECT SOCIAL SERVICES,21-Aug-2018,218419,June Zehetmayr t/a Tower Hill Residential Home,650.88,Revenue
DIRECT SOCIAL SERVICES,DIRECT SOCIAL SERVICES,21-Aug-2018,218419,June Zehetmayr t/a Tower Hill Residential Home,518.38,Revenue
DIRECT SOCIAL SERVICES,DIRECT SOCIAL SERVICES,21-Aug-2018,218419,June Zehetmayr t/a Tower Hill Residential Home,516.38,Revenue
DIRECT SOCIAL SERVICES,DIRECT SOCIAL SERVICES,21-Aug-2018,218419,June Zehetmayr t/a Tower Hill Residential Home,516.56,Revenue
DIRECT SOCIAL SERVICES,DIRECT SOCIAL SERVICES,21-Aug-2018,218419,Llangoedmor Properties Limited T/A Parkside Residential Home,513.83,Revenue
DIRECT SOCIAL SERVICES,DIRECT SOCIAL SERVICES,21-Aug-2018,218419,Llangoedmor Properties Limited T/A Parkside Residential Home,650.88,Revenue
DIRECT SOCIAL SERVICES,DIRECT SOCIAL SERVICES,21-Aug-2018,218419,Middlepatch Limited T/A College Fields Nursing Home,516.12,Revenue
DIRECT SOCIAL SERVICES,DIRECT SOCIAL SERVICES,21-Aug-2018,218419,Shirwan Al-Mufti & Ptn t/a Pontcanna House,600.00,Revenue
DIRECT SOCIAL SERVICES,DIRECT SOCIAL SERVICES,21-Aug-2018,218419,The Manor House St Hilary Limited T/A Milsom House,700.33,Revenue
DIRECT SOCIAL SERVICES,DIRECT SOCIAL SERVICES,21-Aug-2018,218419,Waverley Care Centre Limited,508.92,Revenue
DIRECT SOCIAL SERVICES,DIRECT SOCIAL SERVICES,21-Aug-2018,218419,Waverley Care Centre Limited,516.38,Revenue
DIRECT SOCIAL SERVICES,DIRECT SOCIAL SERVICES,21-Aug-2018,218419,Waverley Care Centre Limited,650.88,Revenue
DIRECT SOCIAL SERVICES,DIRECT SOCIAL SERVICES,21-Aug-2018,218419,Waverley Care Centre Limited,574.00,Revenue
DIRECT SOCIAL SERVICES,DIRECT SOCIAL SERVICES,21-Aug-2018,218419,Waverley Care Centre Limited,688.89,Revenue
DIRECT ENVIRONMENT AND HOUSING,DIRECT ENVIRONMENT AND HOUSING,21-Aug-2018,359457,City of Cardiff (Melingriffith) Brass Band,500.00,Revenue
DIRECT ENVIRONMENT AND HOUSING,DIRECT ENVIRONMENT AND HOUSING,21-Aug-2018,359457,Oakdale Silver Band,500.00,Revenue
DIRECT ENVIRONMENT AND HOUSING,DIRECT ENVIRONMENT AND HOUSING,21-Aug-2018,359457,The Rogerstone Band,600.00,Revenue
DIRECT MANAGING DIRECTOR AND RESOURCES,DIRECT MANAGING DIRECTOR AND RESOURCES,21-Aug-2018,440032,Coastlands Family Church,"1,901.42",Revenue
DIRECT MANAGING DIRECTOR AND RESOURCES,DIRECT MANAGING DIRECTOR AND RESOURCES,21-Aug-2018,440032,Woody's Lodge,"1,000.00",Revenue
DIRECT SOCIAL SERVICES,DIRECT SOCIAL SERVICES,22-Aug-2018,215489,All Care (South Wales) Limited,801.09,Revenue
DIRECT SOCIAL SERVICES,DIRECT SOCIAL SERVICES,22-Aug-2018,215489,All Care (South Wales) Limited,810.41,Revenue
DIRECT SOCIAL SERVICES,DIRECT SOCIAL SERVICES,22-Aug-2018,215489,All Care (South Wales) Limited,530.96,Revenue
DIRECT SOCIAL SERVICES,DIRECT SOCIAL SERVICES,22-Aug-2018,215489,All Care (South Wales) Limited,950.13,Revenue
DIRECT SOCIAL SERVICES,DIRECT SOCIAL SERVICES,22-Aug-2018,215489,Cherish Cymru Limited,617.90,Revenue
DIRECT SOCIAL SERVICES,DIRECT SOCIAL SERVICES,22-Aug-2018,215489,Cherish Cymru Limited,603.59,Revenue
DIRECT SOCIAL SERVICES,DIRECT SOCIAL SERVICES,22-Aug-2018,215489,Cherish Cymru Limited,637.01,Revenue
DIRECT SOCIAL SERVICES,DIRECT SOCIAL SERVICES,22-Aug-2018,215489,Cherish Cymru Limited,538.54,Revenue
DIRECT SOCIAL SERVICES,DIRECT SOCIAL SERVICES,22-Aug-2018,215489,Cherish Cymru Limited,533.74,Revenue
DIRECT SOCIAL SERVICES,DIRECT SOCIAL SERVICES,22-Aug-2018,215489,Cherish Cymru Limited,884.19,Revenue
DIRECT SOCIAL SERVICES,DIRECT SOCIAL SERVICES,22-Aug-2018,215489,Nestor Primecare Services Limited t/a Allied Healthcare,575.20,Revenue
DIRECT SOCIAL SERVICES,DIRECT SOCIAL SERVICES,22-Aug-2018,216179,All Care (South Wales) Limited,894.24,Revenue
DIRECT SOCIAL SERVICES,DIRECT SOCIAL SERVICES,22-Aug-2018,216179,Nestor Primecare Services Limited t/a Allied Healthcare,723.89,Revenue
DIRECT MANAGING DIRECTOR AND RESOURCES,DIRECT MANAGING DIRECTOR AND RESOURCES,22-Aug-2018,140111,Cantium Business Solutions Limited,"3,950.00",Revenue
DIRECT SOCIAL SERVICES,DIRECT SOCIAL SERVICES,22-Aug-2018,215025,Mind in the Vale of Glamorgan Limited,"13,496.43",Revenue
DIRECT SOCIAL SERVICES,DIRECT SOCIAL SERVICES,22-Aug-2018,215025,Mind in the Vale of Glamorgan Limited,"13,496.43",Revenue
DIRECT SOCIAL SERVICES,DIRECT SOCIAL SERVICES,22-Aug-2018,215025,Mind in the Vale of Glamorgan Limited,"7,260.56",Revenue
DIRECT SOCIAL SERVICES,DIRECT SOCIAL SERVICES,22-Aug-2018,215025,Mind in the Vale of Glamorgan Limited,"7,260.56",Revenue
DIRECT SOCIAL SERVICES,DIRECT SOCIAL SERVICES,22-Aug-2018,215121,Tunstall Healthcare (UK) Limited,"3,500.00",Revenue
DIRECT SOCIAL SERVICES,DIRECT SOCIAL SERVICES,22-Aug-2018,215489,Cartrefi Cymru Co-Operative Limited,"2,832.00",Revenue
DIRECT SOCIAL SERVICES,DIRECT SOCIAL SERVICES,22-Aug-2018,215489,Cartrefi Cymru Co-Operative Limited,933.38,Revenue
DIRECT SOCIAL SERVICES,DIRECT SOCIAL SERVICES,22-Aug-2018,217909,Everycare (Cardiff) Limited,822.12,Revenue
DIRECT SOCIAL SERVICES,DIRECT SOCIAL SERVICES,22-Aug-2018,217909,Everycare (Cardiff) Limited,661.08,Revenue
DIRECT SOCIAL SERVICES,DIRECT SOCIAL SERVICES,22-Aug-2018,239043,Jane Moore Associates Limited,"4,106.80",Revenue
DIRECT SOCIAL SERVICES,DIRECT SOCIAL SERVICES,22-Aug-2018,239043,Oxford Brookes Enterprises Limited,"2,411.20",Revenue
DIRECT SOCIAL SERVICES,DIRECT SOCIAL SERVICES,22-Aug-2018,260130,PayPoint Payment Services Limited t/a CSGA Glamorgan,679.52,Revenue
DIRECT SOCIAL SERVICES,DIRECT SOCIAL SERVICES,22-Aug-2018,260140,PayPoint Payment Services Limited t/a CSGA Glamorgan,798.13,Revenue
DIRECT ENVIRONMENT AND HOUSING,DIRECT ENVIRONMENT AND HOUSING,22-Aug-2018,325097,Calibre Contracting Limited,617.10,Revenue
DIRECT ENVIRONMENT AND HOUSING,DIRECT ENVIRONMENT AND HOUSING,22-Aug-2018,325345,Calibre Contracting Limited,"2,050.20",Revenue
DIRECT ENVIRONMENT AND HOUSING,DIRECT ENVIRONMENT AND HOUSING,22-Aug-2018,325501,Calibre Contracting Limited,617.10,Revenue
DIRECT ENVIRONMENT AND HOUSING,DIRECT ENVIRONMENT AND HOUSING,22-Aug-2018,325600,Calibre Contracting Limited,972.69,Revenue
DIRECT ENVIRONMENT AND HOUSING,DIRECT ENVIRONMENT AND HOUSING,22-Aug-2018,341180,G.A.E. Smith (Holdings) Limited t/a Casepak,571.89,Revenue
DIRECT ENVIRONMENT AND HOUSING,DIRECT ENVIRONMENT AND HOUSING,22-Aug-2018,341182,FCC Recycling (UK) Limited,"-7,935.23",Revenue
DIRECT ENVIRONMENT AND HOUSING,DIRECT ENVIRONMENT AND HOUSING,22-Aug-2018,341182,FCC Recycling (UK) Limited,"43,861.83",Revenue
DIRECT ENVIRONMENT AND HOUSING,DIRECT ENVIRONMENT AND HOUSING,22-Aug-2018,341182,FCC Recycling (UK) Limited,"3,124.07",Revenue
DIRECT ENVIRONMENT AND HOUSING,DIRECT ENVIRONMENT AND HOUSING,22-Aug-2018,341220,G.A.E. Smith (Holdings) Limited t/a Casepak,"61,256.31",Revenue
DIRECT ENVIRONMENT AND HOUSING,DIRECT ENVIRONMENT AND HOUSING,22-Aug-2018,352730,Pinit Building & Civil Engineering Limited,"2,510.00",Revenue
DIRECT ENVIRONMENT AND HOUSING,DIRECT ENVIRONMENT AND HOUSING,22-Aug-2018,365786,First Cymru Buses Limited,"8,622.70",Revenue
DIRECT ENVIRONMENT AND HOUSING,DIRECT ENVIRONMENT AND HOUSING,22-Aug-2018,365790,First Cymru Buses Limited,"1,265.40",Revenue
DIRECT ENVIRONMENT AND HOUSING,DIRECT ENVIRONMENT AND HOUSING,22-Aug-2018,402500,Blackwell UK Limited T/A Blackwell's Bookshops,"1,233.50",Revenue
DIRECT ENVIRONMENT AND HOUSING,DIRECT ENVIRONMENT AND HOUSING,22-Aug-2018,407114,IOTS (UK) Limited,"2,340.00",Revenue
DIRECT ENVIRONMENT AND HOUSING,DIRECT ENVIRONMENT AND HOUSING,22-Aug-2018,407400,Glamorgan Gem Limited,500.00,Revenue
DIRECT CAPITAL LEARN AND SKILLS,DIRECT CAPITAL LEARN AND SKILLS,22-Aug-2018,810120,LCB Construction Limited,"110,606.38",Capital
DIRECT CAPITAL LEARN AND SKILLS,DIRECT CAPITAL LEARN AND SKILLS,22-Aug-2018,810120,LCB Construction Limited,"274,457.17",Capital
DIRECT CAPITAL VISIBLE AND HOUSING SERVICES,DIRECT CAPITAL VISIBLE AND HOUSING SERVICES,22-Aug-2018,831528,Ritetech Limited,"2,171.00",Capital
DIRECT CAPITAL DEVELOPMENT,DIRECT CAPITAL DEVELOPMENT,22-Aug-2018,834231,Alun Griffiths (Contractors) Limited,"568,358.46",Capital
DIRECT CAPITAL VISIBLE AND HOUSING SERVICES,DIRECT CAPITAL VISIBLE AND HOUSING SERVICES,22-Aug-2018,842067,Fusion Electrical & Building Services Engineering Limited,"1,504.80",Capital
DIRECT CAPITAL VISIBLE AND HOUSING SERVICES,DIRECT CAPITAL VISIBLE AND HOUSING SERVICES,22-Aug-2018,842067,Fusion Electrical & Building Services Engineering Limited,"1,851.30",Capital
DIRECT CAPITAL VISIBLE AND HOUSING SERVICES,DIRECT CAPITAL VISIBLE AND HOUSING SERVICES,22-Aug-2018,842067,Fusion Electrical & Building Services Engineering Limited,"1,851.30",Capital
DIRECT CAPITAL VISIBLE AND HOUSING SERVICES,DIRECT CAPITAL VISIBLE AND HOUSING SERVICES,22-Aug-2018,842067,Fusion Electrical & Building Services Engineering Limited,"1,504.80",Capital
DIRECT CAPITAL VISIBLE AND HOUSING SERVICES,DIRECT CAPITAL VISIBLE AND HOUSING SERVICES,22-Aug-2018,842067,Fusion Electrical & Building Services Engineering Limited,"1,851.30",Capital
DIRECT CAPITAL VISIBLE AND HOUSING SERVICES,DIRECT CAPITAL VISIBLE AND HOUSING SERVICES,22-Aug-2018,842067,Fusion Electrical & Building Services Engineering Limited,"1,386.00",Capital
DIRECT CAPITAL DEVELOPMENT,DIRECT CAPITAL DEVELOPMENT,22-Aug-2018,845003,ASW Property Services Limited,"5,653.59",Capital
DIRECT CAPITAL DEVELOPMENT,DIRECT CAPITAL DEVELOPMENT,22-Aug-2018,845003,ASW Property Services Limited,"9,246.46",Capital
DIRECT CAPITAL DEVELOPMENT,DIRECT CAPITAL DEVELOPMENT,22-Aug-2018,845003,ASW Property Services Limited,"3,917.84",Capital
DIRECT CAPITAL DEVELOPMENT,DIRECT CAPITAL DEVELOPMENT,22-Aug-2018,845003,Bradley Associates Limited,570.00,Capital
DIRECT CAPITAL DEVELOPMENT,DIRECT CAPITAL DEVELOPMENT,22-Aug-2018,845003,MAZ Builders Limited,921.86,Capital
DIRECT LEARNING AND SKILLS,DIRECT LEARNING AND SKILLS,22-Aug-2018,100404,Cardiff County Council,"4,907.90",Revenue
DIRECT SOCIAL SERVICES,DIRECT SOCIAL SERVICES,22-Aug-2018,239011,Cardiff County Council,"5,373.26",Revenue
DIRECT ENVIRONMENT AND HOUSING,DIRECT ENVIRONMENT AND HOUSING,22-Aug-2018,303000,Cardiff County Council,"3,187.85",Revenue
DIRECT ENVIRONMENT AND HOUSING,DIRECT ENVIRONMENT AND HOUSING,22-Aug-2018,333220,Cardiff County Council,920.39,Revenue
DIRECT ENVIRONMENT AND HOUSING,DIRECT ENVIRONMENT AND HOUSING,22-Aug-2018,349702,Cardiff County Council,"8,788.38",Revenue
DIRECT ENVIRONMENT AND HOUSING,DIRECT ENVIRONMENT AND HOUSING,22-Aug-2018,360002,Cardiff County Council,586.95,Revenue
DIRECT ENVIRONMENT AND HOUSING,DIRECT ENVIRONMENT AND HOUSING,22-Aug-2018,402005,Cardiff County Council,"1,532.10",Revenue
DIRECT ENVIRONMENT AND HOUSING,DIRECT ENVIRONMENT AND HOUSING,22-Aug-2018,407100,Cardiff County Council,"1,034.94",Revenue
DIRECT MANAGING DIRECTOR AND RESOURCES,DIRECT MANAGING DIRECTOR AND RESOURCES,22-Aug-2018,420201,Cardiff County Council,"3,149.95",Revenue
DIRECT MANAGING DIRECTOR AND RESOURCES,DIRECT MANAGING DIRECTOR AND RESOURCES,22-Aug-2018,471900,Cardiff County Council,"13,522.31",Revenue
DIRECT SOCIAL SERVICES,DIRECT SOCIAL SERVICES,22-Aug-2018,218321,John Vincent O'Connell,"1,348.50",Revenue
DIRECT SOCIAL SERVICES,DIRECT SOCIAL SERVICES,22-Aug-2018,218321,John Vincent O'Connell,"1,305.00",Revenue
DIRECT ENVIRONMENT AND HOUSING,DIRECT ENVIRONMENT AND HOUSING,22-Aug-2018,400050,David Evans - Solicitor,540.00,Revenue
DIRECT ENVIRONMENT AND HOUSING,DIRECT ENVIRONMENT AND HOUSING,22-Aug-2018,400050,Richard Miller,"10,800.00",Revenue
DIRECT ENVIRONMENT AND HOUSING,DIRECT ENVIRONMENT AND HOUSING,22-Aug-2018,402501,Robin Neill,"4,000.00",Revenue
DIRECT SOCIAL SERVICES,DIRECT SOCIAL SERVICES,22-Aug-2018,215489,April Complete Care Solutions Limited,584.00,Revenue
DIRECT SOCIAL SERVICES,DIRECT SOCIAL SERVICES,22-Aug-2018,216179,April Complete Care Solutions Limited,605.48,Revenue
DIRECT SOCIAL SERVICES,DIRECT SOCIAL SERVICES,22-Aug-2018,216179,April Complete Care Solutions Limited,922.66,Revenue
DIRECT SOCIAL SERVICES,DIRECT SOCIAL SERVICES,22-Aug-2018,216179,April Complete Care Solutions Limited,605.48,Revenue
DIRECT SOCIAL SERVICES,DIRECT SOCIAL SERVICES,22-Aug-2018,216179,April Complete Care Solutions Limited,922.66,Revenue
DIRECT SOCIAL SERVICES,DIRECT SOCIAL SERVICES,22-Aug-2018,217909,April Complete Care Solutions Limited,800.56,Revenue
DIRECT ENVIRONMENT AND HOUSING,DIRECT ENVIRONMENT AND HOUSING,22-Aug-2018,405305,James Andrews Recruitment Solutions Limited,796.25,Revenue
